Local authority department which incurred the expenditure,Service Division,Cost Centre,Summary of the Purpose of Expenditure,Expense Type,Expense Code,Detailed Expense Type,Date of Transaction,Transaction Number,Beneficiary,Merchant Category Number,Merchant Category,Gross Amount,VAT,Net Amount
Regeneration and Local Services,Economic Development and Housing,30699,Business Growth and Innovation General,Supplies and Services,304403,Equipment and Materials,02-Jan-17,5619299821,ADOBE CREATIVE CLOUD,5734,Other consumables,45.73,7.62,38.11
Regeneration and Local Services,Culture & Sport,11219,Office Services,Third Party Payments,430100,Rendered by Private Contractors,02-Jan-17,5619299933,MAILCHIMP,7399,Payments to sub-contractors,53.63,0,53.63
Resources,Resources Management,69000,Resources Management,Supplies and Services,324117,Provisions,02-Jan-17,5619300247,CO-OP GROUP 310016,5411,Catering costs - provisions,2.2,0,2.2
Regeneration and Local Services,Culture & Sport,11191,Wellbeing4Life,Supplies and Services,304259,Equipment and Materials,02-Jan-17,5619300411,SPORTSDIRECT 264,5941,Equipment-purchase and rental,171.89,0,171.89
Regeneration and Local Services,Economic Development and Housing,30737,Durham Works Flexible Fund,Supplies and Services,324117,Provisions,02-Jan-17,5619300421,CO-OP GROUP 310027,5411,Catering costs - provisions,184,0,184
Children and Young Peoples Services,Education,71801,Selby Cottage Childcare Centre,Supplies and Services,324117,Provisions,03-Jan-17,5620706099,ASDA HOME SHOPPING,5411,Catering costs - provisions,48.77,0,48.77
Children and Young Peoples Services,Education,71801,Selby Cottage Childcare Centre,Supplies and Services,324117,Provisions,03-Jan-17,5620706105,ASDA HOME SHOPPING,5411,Catering costs - provisions,0.65,0,0.65
Children and Young Peoples Services,Education,71801,Selby Cottage Childcare Centre,Supplies and Services,324117,Provisions,03-Jan-17,5620706109,ASDA HOME SHOPPING,5411,Catering costs - provisions,35.15,5.86,29.29
Children and Young Peoples Services,Childrens Services,85957,Secure Management,Supplies and Services,328041,Clothing Uniforms and Laundry,03-Jan-17,5620706147,M and M Direct Ltd,5941,Clothing uniforms and laundry,21.48,0,21.48
Children and Young Peoples Services,Childrens Services,85957,Secure Management,Supplies and Services,328041,Clothing Uniforms and Laundry,03-Jan-17,5620706153,WWW.FOOTASYLUM.COM,5941,Clothing uniforms and laundry,229.95,0,229.95
Children and Young Peoples Services,Childrens Services,85954,Walworth,Supplies and Services,384999,Miscellaneous Expenses,03-Jan-17,5620706157,ARGOS RETAIL GROUP,5310,Other expenses,59.92,0,59.92
Regeneration and Local Services,Direct Services,10367,C&G - South Grounds Maintenance,Supplies and Services,304259,Equipment and Materials,03-Jan-17,5620706169,SCREWFIX,5211,Equipment-purchase and rental,18.99,3.17,15.82
Regeneration and Local Services,Economic Development and Housing,30737,Durham Works Flexible Fund,Transport,230031,Contract Hire,03-Jan-17,5620706185,ARRIVA PASSENGER S,7538,Pupils-transport to play fields etc,85.5,0,85.5
Regeneration and Local Services,Economic Development and Housing,30737,Durham Works Flexible Fund,Supplies and Services,328041,Clothing Uniforms and Laundry,03-Jan-17,5620706193,NEW LOOK MCOMM,5621,Clothing uniforms and laundry,109.23,0,109.23
Regeneration and Local Services,Direct Services,21242,Catering - County Hall,Supplies and Services,324117,Provisions,03-Jan-17,5620706197,BRAKE BROS LTD,5811,Catering costs - provisions,311.6,0,311.6
Children and Young Peoples Services,Education,70169,Durham SSP,Supplies and Services,384199,Miscellaneous Expenses,03-Jan-17,5620706207,PRO AUDIO CENTRE,5732,Other hired and contracted services,135,22.5,112.5
Regeneration and Local Services,Culture & Sport,54812,Gala Theatre - Catering etc,Supplies and Services,324117,Provisions,03-Jan-17,5620706221,JR HOLLAND FOODSERVICE,5422,Catering costs - provisions,34.49,0,34.49
Children and Young Peoples Services,Childrens Services,85333,Coxhoe Satelite Home,Supplies and Services,304259,Equipment and Materials,03-Jan-17,5620706251,M and M Direct Ltd,5941,Equipment-purchase and rental,40.98,0,40.98
Children and Young Peoples Services,Education,71732,Dean Bank Childcare,Supplies and Services,324117,Provisions,03-Jan-17,5620706275,CO-OP GROUP 010518,5411,Catering costs - provisions,10.58,0,10.58
Regeneration and Local Services,Economic Development and Housing,30737,Durham Works Flexible Fund,Supplies and Services,328041,Clothing Uniforms and Laundry,03-Jan-17,5620706301,WWWMISSGUIDEDCOUK,5691,Clothing uniforms and laundry,122.5,0,122.5
Regeneration and Local Services,Economic Development and Housing,30737,Durham Works Flexible Fund,Supplies and Services,328041,Clothing Uniforms and Laundry,03-Jan-17,5620706303,NEW LOOK INTERNET,5621,Clothing uniforms and laundry,33.97,0,33.97
Regeneration and Local Services,Economic Development and Housing,30737,Durham Works Flexible Fund,Supplies and Services,328041,Clothing Uniforms and Laundry,03-Jan-17,5620706307,PEACOCK STORES,5331,Clothing uniforms and laundry,32.99,5.5,27.49
Regeneration and Local Services,Direct Services,10301,C&G - North Grounds Maintenance,Supplies and Services,328041,Clothing Uniforms and Laundry,03-Jan-17,5620706325,THOMAS OWEN & SONS /N/,5611,Clothing uniforms and laundry,417.75,69.63,348.12
Regeneration and Local Services,Direct Services,10301,C&G - North Grounds Maintenance,Supplies and Services,328041,Clothing Uniforms and Laundry,03-Jan-17,5620706331,THOMAS OWEN & SONS /N/,5611,Clothing uniforms and laundry,99.59,0,99.59
Regeneration and Local Services,Culture & Sport,11060,Hardwick Park Catering,Supplies and Services,324117,Provisions,03-Jan-17,5620706337,FREEMAN CATERING BUTCH,5422,Catering costs - provisions,53.74,0,53.74
Regeneration and Local Services,Culture & Sport,11060,Hardwick Park Catering,Supplies and Services,324117,Provisions,03-Jan-17,5620706347,FREEMAN CATERING BUTCH,5422,Catering costs - provisions,44.76,0,44.76
Regeneration and Local Services,Culture & Sport,11060,Hardwick Park Catering,Supplies and Services,324117,Provisions,03-Jan-17,5620706349,JR HOLLAND FOODSERVICE,5422,Catering costs - provisions,77.51,0,77.51
Regeneration and Local Services,Culture & Sport,11060,Hardwick Park Catering,Supplies and Services,324117,Provisions,03-Jan-17,5620706361,BRAKE BROS LTD,5811,Catering costs - provisions,60.46,0,60.46
Regeneration and Local Services,Direct Services,21234,Catering - Locomotion,Supplies and Services,324117,Provisions,03-Jan-17,5620706371,BRAMBLES FOODS LTD,5499,Catering costs - provisions,50.97,0,50.97
Regeneration and Local Services,Direct Services,21234,Catering - Locomotion,Supplies and Services,324117,Provisions,03-Jan-17,5620706377,JR HOLLAND FOODSERVICE,5422,Catering costs - provisions,62.55,0,62.55
Regeneration and Local Services,Direct Services,21234,Catering - Locomotion,Supplies and Services,324117,Provisions,03-Jan-17,5620706383,JR HOLLAND FOODSERVICE,5422,Catering costs - provisions,14.46,0,14.46
Regeneration and Local Services,Direct Services,10525,Catering - Green Lane,Supplies and Services,324117,Provisions,03-Jan-17,5620706397,BRAKE BROS LTD,5811,Catering costs - provisions,72,12,60
Regeneration and Local Services,Direct Services,10525,Catering - Green Lane,Supplies and Services,324117,Provisions,03-Jan-17,5620706397 - 1,BRAKE BROS LTD,5811,Catering costs - provisions,68.42,,68.42
Children and Young Peoples Services,Childrens Services,88063,Bishop Auckland 0 - 5,Supplies and Services,324117,Provisions,03-Jan-17,5620706459,ASDA STORES,5411,Catering costs - provisions,5.91,0,5.91
Adult and Health Services,Planning & Service Strategy,52934,Training - Social Work - Childrens Care,Supplies and Services,304403,Equipment and Materials,03-Jan-17,5620706475,Amazon EU,5969,Other consumables,258.61,0,258.61
Dedicated Schools Grant,Dedicated Schools Grant,79052,Part Sighted-Belmont Comp,Supplies and Services,364320,Grants to Voluntary Organisations,03-Jan-17,5620706539,IMPERIAL LONDON HOTELS,7011,Accommodation assistance,650,0,650
Regeneration and Local Services,Culture & Sport,54235,Bp Auckland Town Hall Cafe,Supplies and Services,324117,Provisions,03-Jan-17,5620706595,BRAKE BROS LTD,5811,Catering costs - provisions,89.7,14.95,74.75
Regeneration and Local Services,Culture & Sport,54235,Bp Auckland Town Hall Cafe,Supplies and Services,324117,Provisions,03-Jan-17,5620706595 - 1,BRAKE BROS LTD,5811,Catering costs - provisions,277.7,,277.7
Regeneration and Local Services,Culture & Sport,54235,Bp Auckland Town Hall Cafe,Supplies and Services,324117,Provisions,03-Jan-17,5620706609,BRAKE BROS LTD,5811,Catering costs - provisions,148.24,0,148.24
Regeneration and Local Services,Transport and Contracted Services,31701,Care Connect All Localities,Supplies and Services,344033,Telephones,03-Jan-17,5620706615,BT BILL PAYMENT 2,4812,Telephones general-all costs,88.47,14.75,73.72
Regeneration and Local Services,Direct Services,21324,Catering - Meadowfield,Supplies and Services,324117,Provisions,03-Jan-17,5620706629,BRAKE BROS LTD,5811,Catering costs - provisions,34.71,0,34.71
Regeneration and Local Services,Direct Services,21235,Catering - Wharton Park,Supplies and Services,324117,Provisions,03-Jan-17,5620706717,BRAMBLES FOODS LTD,5499,Catering costs - provisions,119.17,0,119.17
Regeneration and Local Services,Economic Development and Housing,30737,Durham Works Flexible Fund,Supplies and Services,328041,Clothing Uniforms and Laundry,03-Jan-17,5623258659,RIVER ISLAND 400,5691,Clothing uniforms and laundry,31.95,0,31.95
Regeneration and Local Services,Culture & Sport,54399,Local Delivery-Libraries,Supplies and Services,304403,Equipment and Materials,03-Jan-17,5623258821,AMAZON UK RETAIL AMAZO,5999,Other consumables,7.85,0,7.85
Transformation and Partnerships,Policy & Communications Division,60270,Communications and Marketing,Supplies and Services,342033,Computers and Communications,04-Jan-17,5620706535,Amazon EU,5969,Computer hardware,64.15,0,64.15
Children and Young Peoples Services,Education,71801,Selby Cottage Childcare Centre,Supplies and Services,328041,Clothing Uniforms and Laundry,04-Jan-17,5623258489,THE RANGE,5311,Clothing uniforms and laundry,239.97,0,239.97
Children and Young Peoples Services,Education,71801,Selby Cottage Childcare Centre,Supplies and Services,324117,Provisions,04-Jan-17,5623258491,TESCO STORES 2278,5411,Catering costs - provisions,1.75,0,1.75
Children and Young Peoples Services,Education,71801,Selby Cottage Childcare Centre,Supplies and Services,328041,Clothing Uniforms and Laundry,04-Jan-17,5623258495,B&M RETAIL,5310,Clothing uniforms and laundry,29.43,0,29.43
Children and Young Peoples Services,Childrens Services,85957,Secure Management,Supplies and Services,384999,Miscellaneous Expenses,04-Jan-17,5623258511,Amazon UK Marketplace,5942,Other expenses,18.96,0,18.96
Children and Young Peoples Services,Childrens Services,85957,Secure Management,Supplies and Services,328041,Clothing Uniforms and Laundry,04-Jan-17,5623258515,Amazon EU,5969,Clothing uniforms and laundry,7.56,0,7.56
Children and Young Peoples Services,Childrens Services,85957,Secure Management,Supplies and Services,328041,Clothing Uniforms and Laundry,04-Jan-17,5623258517,WWW.FOOTLOCKER.EU,5661,Clothing uniforms and laundry,129.99,21.67,108.32
Children and Young Peoples Services,Childrens Services,85957,Secure Management,Supplies and Services,328041,Clothing Uniforms and Laundry,04-Jan-17,5623258519,WWW.FOOTASYLUM.COM,5941,Clothing uniforms and laundry,89.98,0,89.98
Children and Young Peoples Services,Childrens Services,85957,Secure Management,Supplies and Services,328041,Clothing Uniforms and Laundry,04-Jan-17,5623258521,THEIDLEMANCOM,5691,Clothing uniforms and laundry,78,0,78
Children and Young Peoples Services,Childrens Services,85957,Secure Management,Supplies and Services,324117,Provisions,04-Jan-17,5623258525,TESCO STORES 6329,5411,Catering costs - provisions,66.75,0,66.75
Children and Young Peoples Services,Childrens Services,85957,Secure Management,Supplies and Services,328041,Clothing Uniforms and Laundry,04-Jan-17,5623258529,NEXT DIRECTORY,5651,Clothing uniforms and laundry,53.99,0,53.99
Children and Young Peoples Services,Childrens Services,85957,Secure Management,Supplies and Services,328041,Clothing Uniforms and Laundry,04-Jan-17,5623258531,VERY.CO.UK,5964,Clothing uniforms and laundry,39,0,39
Children and Young Peoples Services,Childrens Services,85957,Secure Management,Supplies and Services,328041,Clothing Uniforms and Laundry,04-Jan-17,5623258537,VERY.CO.UK,5964,Clothing uniforms and laundry,3.99,0,3.99
Children and Young Peoples Services,Education,79599,Psychological-HQ,Supplies and Services,332047,Printing Stationery and Gen Off Exps,04-Jan-17,5623258543,Amazon UK Marketplace,5942,Stationery,53.98,0,53.98
Regeneration and Local Services,Economic Development and Housing,30737,Durham Works Flexible Fund,Transport,230031,Contract Hire,04-Jan-17,5623258561,GO NORTH EAST - V/T,4131,Pupils-transport to play fields etc,24.9,0,24.9
Regeneration and Local Services,Direct Services,21242,Catering - County Hall,Supplies and Services,324117,Provisions,04-Jan-17,5623258565,BRAKE BROS LTD,5811,Catering costs - provisions,613.02,102.17,510.85
Regeneration and Local Services,Direct Services,21242,Catering - County Hall,Supplies and Services,324117,Provisions,04-Jan-17,5623258565 - 1,BRAKE BROS LTD,5811,Catering costs - provisions,163.98,,163.98
Children and Young Peoples Services,Education,71732,Dean Bank Childcare,Supplies and Services,324117,Provisions,04-Jan-17,5623258619,ASDA HOME SHOPPING,5411,Catering costs - provisions,71.03,0,71.03
Regeneration and Local Services,Economic Development and Housing,30737,Durham Works Flexible Fund,Supplies and Services,312011,Newspapers Books and Periodicals,04-Jan-17,5623258627,CHARLES DICKENS (SPENN,5251,Books-school library,19.99,3.33,16.66
Adult and Health Services,Head of Adults,51602,OP/PD Derwentside,Supplies and Services,364320,Grants to Voluntary Organisations,04-Jan-17,5623258637,TRAVELODGE,3615,Accommodation assistance,-521.5,0,-521.5
Regeneration and Local Services,Culture & Sport,11060,Hardwick Park Catering,Supplies and Services,324117,Provisions,04-Jan-17,5623258671,JR HOLLAND FOODSERVICE,5422,Catering costs - provisions,108.68,0,108.68
Regeneration and Local Services,Culture & Sport,11060,Hardwick Park Catering,Supplies and Services,324117,Provisions,04-Jan-17,5623258677,JR HOLLAND FOODSERVICE,5422,Catering costs - provisions,51.13,0,51.13
Regeneration and Local Services,Culture & Sport,11060,Hardwick Park Catering,Supplies and Services,324117,Provisions,04-Jan-17,5623258679,JR HOLLAND FOODSERVICE,5422,Catering costs - provisions,10.41,0,10.41
Regeneration and Local Services,Culture & Sport,11060,Hardwick Park Catering,Supplies and Services,324117,Provisions,04-Jan-17,5623258681,BRAKE BROS LTD,5811,Catering costs - provisions,159.36,26.56,132.8
Regeneration and Local Services,Culture & Sport,11060,Hardwick Park Catering,Supplies and Services,324117,Provisions,04-Jan-17,5623258681 - 1,BRAKE BROS LTD,5811,Catering costs - provisions,324.22,,324.22
Children and Young Peoples Services,Childrens Services,85551,Short Break Services-Park Hse Sher,Supplies and Services,324117,Provisions,04-Jan-17,5623258697,ALDI,5411,Catering costs - provisions,110.42,0,110.42
Regeneration and Local Services,Direct Services,21234,Catering - Locomotion,Supplies and Services,324117,Provisions,04-Jan-17,5623258703,JR HOLLAND FOODSERVICE,5422,Catering costs - provisions,20.13,0,20.13
Regeneration and Local Services,Direct Services,21234,Catering - Locomotion,Supplies and Services,324117,Provisions,04-Jan-17,5623258709,BRAKE BROS LTD,5811,Catering costs - provisions,119.7,19.95,99.75
Regeneration and Local Services,Direct Services,21234,Catering - Locomotion,Supplies and Services,324117,Provisions,04-Jan-17,5623258709 - 1,BRAKE BROS LTD,5811,Catering costs - provisions,137.18,,137.18
Regeneration and Local Services,Direct Services,21234,Catering - Locomotion,Supplies and Services,324117,Provisions,04-Jan-17,5623258711,BRAKE BROS LTD,5811,Catering costs - provisions,171.12,28.52,142.6
Regeneration and Local Services,Direct Services,21234,Catering - Locomotion,Supplies and Services,324117,Provisions,04-Jan-17,5623258711 - 1,BRAKE BROS LTD,5811,Catering costs - provisions,50.84,,50.84
Regeneration and Local Services,Direct Services,10525,Catering - Green Lane,Supplies and Services,324117,Provisions,04-Jan-17,5623258727,BRAKE BROS LTD,5811,Catering costs - provisions,33.9,0,33.9
Adult and Health Services,Planning & Service Strategy,52934,Training - Social Work - Childrens Care,Supplies and Services,304403,Equipment and Materials,04-Jan-17,5623258757,Amazon EU,5969,Other consumables,127.74,0,127.74
Children and Young Peoples Services,Childrens Services,85333,Coxhoe Satelite Home,Supplies and Services,312011,Newspapers Books and Periodicals,04-Jan-17,5623258803,HOME BARGAINS SPENNYMO,5251,Books-school library,17.29,0,17.29
Children and Young Peoples Services,Childrens Services,85333,Coxhoe Satelite Home,Supplies and Services,324117,Provisions,04-Jan-17,5623258811,ASDA SUPERSTORE 4987,5411,Catering costs - provisions,15,0,15
Children and Young Peoples Services,Childrens Services,85100,Child Protection & Disabilty Strategic Manager,Supplies and Services,384199,Miscellaneous Expenses,04-Jan-17,5623258813,NEWCASTLE CITY COUNCIL,4789,Other hired and contracted services,26.52,0,26.52
Children and Young Peoples Services,Childrens Services,88013,Seaham 0 - 5,Supplies and Services,304403,Equipment and Materials,04-Jan-17,5623258863,TESCO DIRECT,5999,Other consumables,23,0,23
Regeneration and Local Services,Direct Services,21324,Catering - Meadowfield,Supplies and Services,324117,Provisions,04-Jan-17,5623258877,BRAKE BROS LTD,5811,Catering costs - provisions,93.24,15.54,77.7
Regeneration and Local Services,Direct Services,21324,Catering - Meadowfield,Supplies and Services,324117,Provisions,04-Jan-17,5623258877 - 1,BRAKE BROS LTD,5811,Catering costs - provisions,34.54,,34.54
Children and Young Peoples Services,Childrens Services,85333,Coxhoe Satelite Home,Supplies and Services,304221,Equipment and Materials,04-Jan-17,5623258883,PAYPAL DX,5169,Direct materials,20.5,0,20.5
Children and Young Peoples Services,Childrens Services,85333,Coxhoe Satelite Home,Supplies and Services,384999,Miscellaneous Expenses,04-Jan-17,5623258887,PAYPAL ABCPRODUCTS,5946,Other expenses,2.95,0,2.95
Children and Young Peoples Services,Childrens Services,85333,Coxhoe Satelite Home,Supplies and Services,324117,Provisions,04-Jan-17,5623258889,ALDI,5411,Catering costs - provisions,122.63,0,122.63
Children and Young Peoples Services,Childrens Services,88083,Ferryhill 0 - 5,Supplies and Services,324117,Provisions,04-Jan-17,5623258913,TESCO STORES 2916,5411,Catering costs - provisions,20.55,0,20.55
Regeneration and Local Services,Direct Services,21235,Catering - Wharton Park,Supplies and Services,324117,Provisions,04-Jan-17,5623258935,JR HOLLAND FOODSERVICE,5422,Catering costs - provisions,12.45,0,12.45
Regeneration and Local Services,Direct Services,21235,Catering - Wharton Park,Supplies and Services,324117,Provisions,04-Jan-17,5623258939,JR HOLLAND FOODSERVICE,5422,Catering costs - provisions,4.46,0,4.46
Regeneration and Local Services,Economic Development and Housing,30699,Business Growth and Innovation General,Supplies and Services,304403,Equipment and Materials,04-Jan-17,5626523325,MEETEDGAR MONTHLY,5734,Other consumables,40.01,0,40.01
Regeneration and Local Services,Culture & Sport,54815,Gala Theatre Stage School,Supplies and Services,304403,Equipment and Materials,04-Jan-17,5626523471,RS COMPONENTS,5065,Other consumables,116.4,19.4,97
Adult and Health Services,Planning & Service Strategy,52934,Training - Social Work - Childrens Care,Supplies and Services,304403,Equipment and Materials,04-Jan-17,5626523537,AMAZON UK RETAIL AMAZO,5999,Other consumables,-11.51,0,-11.51
Regeneration and Local Services,Culture & Sport,54399,Local Delivery-Libraries,Supplies and Services,304403,Equipment and Materials,04-Jan-17,5626523631,AMAZON UK RETAIL AMAZO,5999,Other consumables,6.47,0,6.47
Regeneration and Local Services,Culture & Sport,54399,Local Delivery-Libraries,Supplies and Services,304403,Equipment and Materials,04-Jan-17,5626523633,AMAZON UK RETAIL AMAZO,5999,Other consumables,13.76,0,13.76
Regeneration and Local Services,Direct Services,10383,C&G - South Street Cleansing,Transport,215995,Running Costs of Vehicles,04-Jan-17,5630612895,SNOWBALLS (RAILWAY,5533,Vehicle running expenses,43.2,7.2,36
Children and Young Peoples Services,Education,71801,Selby Cottage Childcare Centre,Supplies and Services,324117,Provisions,05-Jan-17,5626523267,TESCO STORES 2278,5411,Catering costs - provisions,3.7,0,3.7
Regeneration and Local Services,Economic Development and Housing,31500,Housing Solutions - Core Team,Supplies and Services,352001,Conference Expenses,05-Jan-17,5626523283,TRAVELODGE,3615,Conferencesseminars fees etc,45,7.5,37.5
Children and Young Peoples Services,Education,78411,16-19 Education & Training,Supplies and Services,340001,Postages,05-Jan-17,5626523299,ROYAL MAIL ONLINE SHOP,9402,Postages,242.5,0,242.5
Children and Young Peoples Services,Childrens Services,85957,Secure Management,Supplies and Services,384999,Miscellaneous Expenses,05-Jan-17,5626523309,Amazon EU,5969,Other expenses,3.99,0,3.99
Children and Young Peoples Services,Childrens Services,85957,Secure Management,Supplies and Services,324117,Provisions,05-Jan-17,5626523311,TESCO STORES 6329,5411,Catering costs - provisions,73.54,0,73.54
Regeneration and Local Services,Economic Development and Housing,30699,Business Growth and Innovation General,Supplies and Services,336005,Advertising,05-Jan-17,5626523329,ADROLL,7311,Advertising other than for staff,1.75,0,1.75
Regeneration and Local Services,Economic Development and Housing,30699,Business Growth and Innovation General,Supplies and Services,304999,Equipment and Materials,05-Jan-17,5626523331,LINKEDIN-241 5473676,5968,Misc equipment tools and materials,24.6,4.1,20.5
Regeneration and Local Services,Economic Development and Housing,30699,Business Growth and Innovation General,Supplies and Services,312011,Newspapers Books and Periodicals,05-Jan-17,5626523335,FASTHOSTS INTERNET,4816,Books-school library,59.99,10,49.99
Regeneration and Local Services,Direct Services,21242,Catering - County Hall,Supplies and Services,324117,Provisions,05-Jan-17,5626523359,JR HOLLAND FOODSERVICE,5422,Catering costs - provisions,231.6,0,231.6
Regeneration and Local Services,Direct Services,21242,Catering - County Hall,Supplies and Services,324117,Provisions,05-Jan-17,5626523363,JR HOLLAND FOODSERVICE,5422,Catering costs - provisions,31.35,0,31.35
Regeneration and Local Services,Direct Services,21242,Catering - County Hall,Supplies and Services,324117,Provisions,05-Jan-17,5626523365,JR HOLLAND FOODSERVICE,5422,Catering costs - provisions,13.16,0,13.16
Regeneration and Local Services,Culture & Sport,54812,Gala Theatre - Catering etc,Supplies and Services,324117,Provisions,05-Jan-17,5626523369,JR HOLLAND FOODSERVICE,5422,Catering costs - provisions,43.23,0,43.23
Regeneration and Local Services,Direct Services,21242,Catering - County Hall,Supplies and Services,324117,Provisions,05-Jan-17,5626523387,SAINSBURYS LOC4634,5411,Catering costs - provisions,11.2,0,11.2
Children and Young Peoples Services,Childrens Services,71445,Chester le Street One Point Hub,Supplies and Services,312011,Newspapers Books and Periodicals,05-Jan-17,5626523443,Amazon EU,5969,Books-school library,52.7,0,52.7
Children and Young Peoples Services,Childrens Services,85957,Secure Management,Supplies and Services,328041,Clothing Uniforms and Laundry,05-Jan-17,5626523445,WWW.FOOTLOCKER.EU,5661,Clothing uniforms and laundry,-129.99,0,-129.99
Regeneration and Local Services,Culture & Sport,11060,Hardwick Park Catering,Supplies and Services,324117,Provisions,05-Jan-17,5626523449,JR HOLLAND FOODSERVICE,5422,Catering costs - provisions,55.04,0,55.04
Regeneration and Local Services,Culture & Sport,11060,Hardwick Park Catering,Supplies and Services,324117,Provisions,05-Jan-17,5626523453,JR HOLLAND FOODSERVICE,5422,Catering costs - provisions,53.16,0,53.16
Resources,I.C.T. Services,70204,Operations - System & Repairs Team,Supplies and Services,304999,Equipment and Materials,05-Jan-17,5626523467,THE REPLACE BASE LTD,7699,Misc equipment tools and materials,199.7,33.28,166.42
Regeneration and Local Services,Direct Services,10525,Catering - Green Lane,Supplies and Services,324117,Provisions,05-Jan-17,5626523495,JR HOLLAND FOODSERVICE,5422,Catering costs - provisions,74.88,0,74.88
Dedicated Schools Grant,Dedicated Schools Grant,79044,Home Tuition - Mid,Supplies and Services,384999,Miscellaneous Expenses,05-Jan-17,5626523509,Amazon UK Marketplace,5942,Other expenses,1.51,0,1.51
Adult and Health Services,Head of Adults,55807,Newton Aycliffe Pathways,Supplies and Services,304649,Equipment and Materials,05-Jan-17,5626523513,Amazon UK Marketplace,5942,Toys,41.65,0,41.65
Children and Young Peoples Services,Childrens Services,85352,Tow Law CU,Supplies and Services,328041,Clothing Uniforms and Laundry,05-Jan-17,5626523515,MATALAN,5691,Clothing uniforms and laundry,81.05,0,81.05
Children and Young Peoples Services,Childrens Services,85352,Tow Law CU,Supplies and Services,324117,Provisions,05-Jan-17,5626523519,WM MORRISONS,5411,Catering costs - provisions,56.66,0,56.66
Regeneration and Local Services,Direct Services,10367,C&G - South Grounds Maintenance,Supplies and Services,312011,Newspapers Books and Periodicals,05-Jan-17,5626523559,CHARLES DICKENS (SPENN,5251,Books-school library,24.99,0,24.99
Regeneration and Local Services,Economic Development and Housing,30749,Employability - Youth Contract,Supplies and Services,304259,Equipment and Materials,05-Jan-17,5626523599,DVLA DRIVER ONLINE,9399,Equipment-purchase and rental,34,0,34
Transformation and Partnerships,Partnerships & Community Engagement Div.,60530,3 Towns AAP,Supplies and Services,332047,Printing Stationery and Gen Off Exps,05-Jan-17,5626523619,Amazon UK Marketplace,5942,Stationery,21.98,0,21.98
Regeneration and Local Services,Spatial Policy Planning Assets & Environment,31071,Sustainability and Climate Change,Supplies and Services,332047,Printing Stationery and Gen Off Exps,05-Jan-17,5626523623,Amazon UK Marketplace,5942,Stationery,28.74,0,28.74
Transformation and Partnerships,Policy & Communications Division,60270,Communications and Marketing,Supplies and Services,332047,Printing Stationery and Gen Off Exps,05-Jan-17,5626523625,AMAZON UK RETAIL AMAZO,5999,Stationery,3.45,0,3.45
Regeneration and Local Services,Culture & Sport,54235,Bp Auckland Town Hall Cafe,Supplies and Services,324117,Provisions,05-Jan-17,5626523677,JR HOLLAND FOODSERVICE,5422,Catering costs - provisions,39.65,0,39.65
Regeneration and Local Services,Direct Services,21324,Catering - Meadowfield,Supplies and Services,324117,Provisions,05-Jan-17,5626523691,JR HOLLAND FOODSERVICE,5422,Catering costs - provisions,44.43,0,44.43
Regeneration and Local Services,Culture & Sport,11191,Wellbeing4Life,Supplies and Services,328041,Clothing Uniforms and Laundry,05-Jan-17,5626523731,W BOYES & CO LTD BISHO,5310,Clothing uniforms and laundry,2.45,0,2.45
Regeneration and Local Services,Culture & Sport,11191,Wellbeing4Life,Supplies and Services,324117,Provisions,05-Jan-17,5626523735,WM MORRISON 040,5411,Catering costs - provisions,6.39,0,6.39
Children and Young Peoples Services,Childrens Services,85331,New Lea Childrens Home,Transport,235057,Public Transport,05-Jan-17,5626523739,WWW.SIMPLYGO.COM,4131,Staff travelling,15.5,0,15.5
Children and Young Peoples Services,Childrens Services,85331,New Lea Childrens Home,Supplies and Services,324117,Provisions,05-Jan-17,5626523743,ASDA HOME SHOPPING,5411,Catering costs - provisions,148.27,0,148.27
Children and Young Peoples Services,Childrens Services,74000,TTF-Attachment and Results,Supplies and Services,308011,Furniture,05-Jan-17,5626523757,J DODDS CARPETS LTD,5713,Furniture repair and replacement,114,0,114
Children and Young Peoples Services,Childrens Services,74000,TTF-Attachment and Results,Supplies and Services,304259,Equipment and Materials,05-Jan-17,5626523761,WILKO.COM,5722,Equipment-purchase and rental,36,0,36
Regeneration and Local Services,Culture & Sport,11060,Hardwick Park Catering,Supplies and Services,304245,Equipment and Materials,05-Jan-17,5626523773,PORTER AND WOODMAN,5947,Materials,194.16,32.36,161.8
Regeneration and Local Services,Culture & Sport,10605,Woodhouse Close Leisure Complex,Supplies and Services,324117,Provisions,05-Jan-17,5626523777,JR HOLLAND FOODSERVICE,5422,Catering costs - provisions,30.88,0,30.88
Regeneration and Local Services,Culture & Sport,10605,Woodhouse Close Leisure Complex,Supplies and Services,324117,Provisions,05-Jan-17,5626523779,BRAKE BROS LTD,5811,Catering costs - provisions,16.26,2.71,13.55
Regeneration and Local Services,Culture & Sport,10605,Woodhouse Close Leisure Complex,Supplies and Services,324117,Provisions,05-Jan-17,5626523779 - 1,BRAKE BROS LTD,5811,Catering costs - provisions,145.58,,145.58
Regeneration and Local Services,Culture & Sport,11225,Locality 2 Team Management,Supplies and Services,328041,Clothing Uniforms and Laundry,05-Jan-17,5626523801,ARGOS LTD,5310,Clothing uniforms and laundry,164.98,0,164.98
Regeneration and Local Services,Economic Development and Housing,30737,Durham Works Flexible Fund,Supplies and Services,328041,Clothing Uniforms and Laundry,05-Jan-17,5626523809,BRANTANO FOOTWEAR LTD,5661,Clothing uniforms and laundry,34.2,0,34.2
Regeneration and Local Services,Economic Development and Housing,30737,Durham Works Flexible Fund,Supplies and Services,304259,Equipment and Materials,05-Jan-17,5626523811,SPORTSDIRECT.COM,5941,Equipment-purchase and rental,34.05,0,34.05
Regeneration and Local Services,Spatial Policy Planning Assets & Environment,31200,North Pennines Core,Supplies and Services,324117,Provisions,05-Jan-17,5626523817,STANHOPE PAPER SHOP,5399,Catering costs - provisions,26.4,0,26.4
Children and Young Peoples Services,Childrens Services,88003,Peterlee 0 - 5,Supplies and Services,328041,Clothing Uniforms and Laundry,05-Jan-17,5626523827,ARGOS RETAIL GROUP,5310,Clothing uniforms and laundry,28.94,4.82,24.12
Regeneration and Local Services,Economic Development and Housing,30699,Business Growth and Innovation General,Supplies and Services,304403,Equipment and Materials,06-Jan-17,5626523339,MEETEDGAR MONTHLY,5734,Other consumables,1.1,0,1.1
Regeneration and Local Services,Economic Development and Housing,30699,Business Growth and Innovation General,Supplies and Services,336005,Advertising,06-Jan-17,5626523341,ADROLL,7311,Advertising other than for staff,0.05,0,0.05
Children and Young Peoples Services,Education,71801,Selby Cottage Childcare Centre,Supplies and Services,324117,Provisions,06-Jan-17,5630612863,ASDA HOME SHOPPING,5411,Catering costs - provisions,115.6,0,115.6
Adult and Health Services,Head of Adults,52720,Mental Health S28A and Central,Income,720130,Fees and Charges,06-Jan-17,5630612879,COUNTY COURT,9222,Fees-legal,110,0,110
Regeneration and Local Services,Economic Development and Housing,31500,Housing Solutions - Core Team,Supplies and Services,352001,Conference Expenses,06-Jan-17,5630612889,TRAVELODGE,3615,Conferencesseminars fees etc,136,22.67,113.33
Children and Young Peoples Services,Childrens Services,85957,Secure Management,Supplies and Services,384999,Miscellaneous Expenses,06-Jan-17,5630612899,FAST KEY SERVICES LIMI,7399,Other expenses,13.2,2.2,11
Children and Young Peoples Services,Childrens Services,85957,Secure Management,Supplies and Services,324117,Provisions,06-Jan-17,5630612901,TESCO STORES 6329,5411,Catering costs - provisions,73.57,0,73.57
Adult and Health Services,Planning & Service Strategy,52933,Training - Fostering and Adoption,Supplies and Services,312009,Newspapers Books and Periodicals,06-Jan-17,5630612919,PARTRIDGE & PRINT,8299,Newspapers books and periodicals,20,0,20
Regeneration and Local Services,Direct Services,21242,Catering - County Hall,Supplies and Services,324117,Provisions,06-Jan-17,5630612939,JR HOLLAND FOODSERVICE,5422,Catering costs - provisions,63.67,0,63.67
Regeneration and Local Services,Direct Services,21242,Catering - County Hall,Supplies and Services,324117,Provisions,06-Jan-17,5630612941,JR HOLLAND FOODSERVICE,5422,Catering costs - provisions,23.45,0,23.45
Regeneration and Local Services,Direct Services,21242,Catering - County Hall,Supplies and Services,324117,Provisions,06-Jan-17,5630612943,JR HOLLAND FOODSERVICE,5422,Catering costs - provisions,13.16,0,13.16
Regeneration and Local Services,Direct Services,21242,Catering - County Hall,Supplies and Services,324117,Provisions,06-Jan-17,5630612945,BRAKE BROS LTD,5811,Catering costs - provisions,325.92,54.32,271.6
Regeneration and Local Services,Direct Services,21242,Catering - County Hall,Supplies and Services,324117,Provisions,06-Jan-17,5630612945 - 1,BRAKE BROS LTD,5811,Catering costs - provisions,286.93,,286.93
Regeneration and Local Services,Direct Services,21242,Catering - County Hall,Supplies and Services,324117,Provisions,06-Jan-17,5630612959,BRAKE BROS LTD,5811,Catering costs - provisions,341.51,0,341.51
Regeneration and Local Services,Culture & Sport,54812,Gala Theatre - Catering etc,Supplies and Services,324117,Provisions,06-Jan-17,5630612969,BRAKE BROS LTD,5811,Catering costs - provisions,106.43,17.74,88.69
Regeneration and Local Services,Direct Services,10900,Fleet - Meadowfield Fleet,Transport,215013,Running Costs of Vehicles,06-Jan-17,5630613009,DVLA VEHICLE TAX,9399,Vehicle Excise Duty (VED),167.5,0,167.5
Regeneration and Local Services,Direct Services,10900,Fleet - Meadowfield Fleet,Transport,215013,Running Costs of Vehicles,06-Jan-17,5630613011,DVLA VEHICLE TAX,9399,Vehicle Excise Duty (VED),132.5,0,132.5
Regeneration and Local Services,Direct Services,10561,Fleet - Morrison Busty Fleet,Transport,215013,Running Costs of Vehicles,06-Jan-17,5630613013,DVLA VEHICLE TAX,9399,Vehicle Excise Duty (VED),167.5,0,167.5
Regeneration and Local Services,Direct Services,10900,Fleet - Meadowfield Fleet,Transport,215013,Running Costs of Vehicles,06-Jan-17,5630613015,DVLA VEHICLE TAX,9399,Vehicle Excise Duty (VED),22.5,0,22.5
Regeneration and Local Services,Direct Services,10551,Fleet - Chilton Fleet,Transport,215013,Running Costs of Vehicles,06-Jan-17,5630613017,DVLA VEHICLE TAX,9399,Vehicle Excise Duty (VED),167.5,0,167.5
Regeneration and Local Services,Direct Services,10864,Fleet - Hackworth Road Fleet,Transport,215013,Running Costs of Vehicles,06-Jan-17,5630613019,DVLA VEHICLE TAX,9399,Vehicle Excise Duty (VED),167.5,0,167.5
Regeneration and Local Services,Direct Services,10551,Fleet - Chilton Fleet,Transport,215013,Running Costs of Vehicles,06-Jan-17,5630613021,DVLA VEHICLE TAX,9399,Vehicle Excise Duty (VED),232.5,0,232.5
Regeneration and Local Services,Direct Services,10900,Fleet - Meadowfield Fleet,Transport,215013,Running Costs of Vehicles,06-Jan-17,5630613023,DVLA VEHICLE TAX,9399,Vehicle Excise Duty (VED),167.5,0,167.5
Regeneration and Local Services,Direct Services,10864,Fleet - Hackworth Road Fleet,Transport,215013,Running Costs of Vehicles,06-Jan-17,5630613025,DVLA VEHICLE TAX,9399,Vehicle Excise Duty (VED),167.5,0,167.5
Regeneration and Local Services,Direct Services,10551,Fleet - Chilton Fleet,Transport,215013,Running Costs of Vehicles,06-Jan-17,5630613027,DVLA VEHICLE TAX,9399,Vehicle Excise Duty (VED),167.5,0,167.5
Children and Young Peoples Services,Education,71732,Dean Bank Childcare,Supplies and Services,324117,Provisions,06-Jan-17,5630613043,ASDA HOME SHOPPING,5411,Catering costs - provisions,5,0,5
Regeneration and Local Services,Economic Development and Housing,30737,Durham Works Flexible Fund,Supplies and Services,304259,Equipment and Materials,06-Jan-17,5630613047,DURHAM COUNTY COUNCIL,9399,Equipment-purchase and rental,12,0,12
Regeneration and Local Services,Economic Development and Housing,30737,Durham Works Flexible Fund,Transport,235005,Public Transport,06-Jan-17,5630613049,ARRIVA PASSENGER S,7538,Contract tickets,7,0,7
Children and Young Peoples Services,Childrens Services,71445,Chester le Street One Point Hub,Supplies and Services,312011,Newspapers Books and Periodicals,06-Jan-17,5630613081,Amazon EU,5969,Books-school library,8.99,0,8.99
Regeneration and Local Services,Direct Services,10301,C&G - North Grounds Maintenance,Supplies and Services,304221,Equipment and Materials,06-Jan-17,5630613093,ARCO LTD,5085,Direct materials,54.99,9.17,45.82
Regeneration and Local Services,Culture & Sport,11060,Hardwick Park Catering,Supplies and Services,324117,Provisions,06-Jan-17,5630613097,JR HOLLAND FOODSERVICE,5422,Catering costs - provisions,44.14,0,44.14
Regeneration and Local Services,Culture & Sport,11060,Hardwick Park Catering,Supplies and Services,324117,Provisions,06-Jan-17,5630613099,BRAKE BROS LTD,5811,Catering costs - provisions,76.68,12.78,63.9
Regeneration and Local Services,Culture & Sport,11060,Hardwick Park Catering,Supplies and Services,324117,Provisions,06-Jan-17,5630613099 - 1,BRAKE BROS LTD,5811,Catering costs - provisions,141.76,,141.76
Regeneration and Local Services,Culture & Sport,11060,Hardwick Park Catering,Supplies and Services,324117,Provisions,06-Jan-17,5630613101,BRAKE BROS LTD,5811,Catering costs - provisions,74.42,0,74.42
Children and Young Peoples Services,Childrens Services,88037,One Point YEI,Supplies and Services,338045,Services,06-Jan-17,5630613127,DURHAM COUNTY COUNCIL,9399,Legal expenses,10,0,10
Regeneration and Local Services,Direct Services,10367,C&G - South Grounds Maintenance,Supplies and Services,304259,Equipment and Materials,06-Jan-17,5630613161,JEWSON LTD,5211,Equipment-purchase and rental,496.66,82.78,413.88
Regeneration and Local Services,Economic Development and Housing,30749,Employability - Youth Contract,Supplies and Services,324117,Provisions,06-Jan-17,5630613179,TESCO STORES 2371,5411,Catering costs - provisions,14.99,0,14.99
Children and Young Peoples Services,Childrens Services,85333,Coxhoe Satelite Home,Supplies and Services,324117,Provisions,06-Jan-17,5630613181,TESCO STORES 2371,5411,Catering costs - provisions,30.32,0,30.32
Children and Young Peoples Services,Childrens Services,85333,Coxhoe Satelite Home,Supplies and Services,324117,Provisions,06-Jan-17,5630613183,TESCO STORES 2371,5411,Catering costs - provisions,22.19,0,22.19
Children and Young Peoples Services,Childrens Services,85333,Coxhoe Satelite Home,Supplies and Services,304259,Equipment and Materials,06-Jan-17,5630613185,B & Q 1343,5211,Equipment-purchase and rental,9.57,0,9.57
Children and Young Peoples Services,Childrens Services,85333,Coxhoe Satelite Home,Supplies and Services,328041,Clothing Uniforms and Laundry,06-Jan-17,5630613187,ARGOS LTD,5310,Clothing uniforms and laundry,41.98,0,41.98
Children and Young Peoples Services,Childrens Services,85333,Coxhoe Satelite Home,Supplies and Services,328041,Clothing Uniforms and Laundry,06-Jan-17,5630613189,B & M RETAIL,5310,Clothing uniforms and laundry,25.4,0,25.4
Regeneration and Local Services,Spatial Policy Planning Assets & Environment,31070,Landscape,Supplies and Services,332047,Printing Stationery and Gen Off Exps,06-Jan-17,5630613205,Amazon UK Marketplace,5942,Stationery,26.61,0,26.61
Transformation and Partnerships,Policy & Communications Division,60200,Policy/Communications Management,Supplies and Services,344033,Telephones,06-Jan-17,5630613207,Amazon UK Marketplace,5942,Telephones general-all costs,3.49,0,3.49
Resources,I.C.T. Services,65303,Design & Print - Design,Supplies and Services,384199,Miscellaneous Expenses,06-Jan-17,5630613209,APPY PIE,5734,Other hired and contracted services,48,0,48
Regeneration and Local Services,Spatial Policy Planning Assets & Environment,31070,Landscape,Supplies and Services,332047,Printing Stationery and Gen Off Exps,06-Jan-17,5630613211,Amazon UK Marketplace,5999,Stationery,-16.72,0,-16.72
Adult and Health Services,Planning & Service Strategy,52969,Service Support Team 1,Supplies and Services,338064,Services,06-Jan-17,5630613213,DISCLOSURE SCOT,9399,Disclosure & Barring (DBS) Fees,25,0,25
Regeneration and Local Services,Direct Services,21324,Catering - Meadowfield,Supplies and Services,324117,Provisions,06-Jan-17,5630613269,JR HOLLAND FOODSERVICE,5422,Catering costs - provisions,37.43,0,37.43
Regeneration and Local Services,Direct Services,21324,Catering - Meadowfield,Supplies and Services,324117,Provisions,06-Jan-17,5630613271,JR HOLLAND FOODSERVICE,5422,Catering costs - provisions,9.87,0,9.87
Regeneration and Local Services,Direct Services,21235,Catering - Wharton Park,Supplies and Services,324117,Provisions,06-Jan-17,5630613317,JR HOLLAND FOODSERVICE,5422,Catering costs - provisions,24.79,0,24.79
Regeneration and Local Services,Direct Services,21235,Catering - Wharton Park,Supplies and Services,324117,Provisions,06-Jan-17,5630613319,JR HOLLAND FOODSERVICE,5422,Catering costs - provisions,14.98,0,14.98
Regeneration and Local Services,Culture & Sport,10605,Woodhouse Close Leisure Complex,Supplies and Services,324117,Provisions,06-Jan-17,5630613329,BRAKE BROS LTD,5811,Catering costs - provisions,88.51,0,88.51
Regeneration and Local Services,Culture & Sport,11225,Locality 2 Team Management,Supplies and Services,312011,Newspapers Books and Periodicals,06-Jan-17,5630613349,CHARLES DICKENS (SPENN,5251,Books-school library,33.94,0,33.94
Children and Young Peoples Services,Childrens Services,85957,Secure Management,Supplies and Services,324117,Provisions,07-Jan-17,5630612903,TESCO STORES 6329,5411,Catering costs - provisions,75.34,0,75.34
Regeneration and Local Services,Economic Development and Housing,30699,Business Growth and Innovation General,Supplies and Services,336005,Advertising,07-Jan-17,5630612915,TWITTER ADVERTISING,7311,Advertising other than for staff,28.71,0,28.71
Children and Young Peoples Services,Childrens Services,85333,Coxhoe Satelite Home,Supplies and Services,312011,Newspapers Books and Periodicals,07-Jan-17,5630612995,Amazon UK Marketplace,5942,Books-school library,45.99,0,45.99
Children and Young Peoples Services,Childrens Services,85957,Secure Management,Supplies and Services,312009,Newspapers Books and Periodicals,07-Jan-17,5630613085,Amazon EU,5969,Newspapers books and periodicals,-6.51,0,-6.51
Children and Young Peoples Services,Childrens Services,85957,Secure Management,Supplies and Services,304649,Equipment and Materials,07-Jan-17,5630613087,ARGOS LTD,5310,Toys,-9.99,0,-9.99
Regeneration and Local Services,Economic Development and Housing,31576,B& B - Temp Accom,Employees,40149,Recruitment Instruction and Training,07-Jan-17,5630613177,PREMIER INN,3811,Training-all costs,141.5,0,141.5
Resources,Resources Management,69000,Resources Management,Supplies and Services,324117,Provisions,07-Jan-17,5630613191,CO-OP GROUP 310016,5411,Catering costs - provisions,2,0,2
Transformation and Partnerships,Policy & Communications Division,60700,Civil Contingencies Unit,Supplies and Services,342033,Computers and Communications,07-Jan-17,5630613215,AMAZON UK RETAIL AMAZO,5999,Computer hardware,17.97,0,17.97
Regeneration and Local Services,Direct Services,21235,Catering - Wharton Park,Supplies and Services,324117,Provisions,07-Jan-17,5630613321,BRAKE BROS LTD,5811,Catering costs - provisions,65.88,10.98,54.9
Regeneration and Local Services,Direct Services,21235,Catering - Wharton Park,Supplies and Services,324117,Provisions,07-Jan-17,5630613321 - 1,BRAKE BROS LTD,5811,Catering costs - provisions,48.18,,48.18
Children and Young Peoples Services,Childrens Services,85331,New Lea Childrens Home,Supplies and Services,308011,Furniture,07-Jan-17,5636493743,IKEA ONLINE,5719,Furniture repair and replacement,-20,0,-20
Children and Young Peoples Services,Childrens Services,85333,Coxhoe Satelite Home,Supplies and Services,304259,Equipment and Materials,08-Jan-17,5630612997,M and M Direct Ltd,5941,Equipment-purchase and rental,50.95,0,50.95
Children and Young Peoples Services,Childrens Services,85957,Secure Management,Supplies and Services,328041,Clothing Uniforms and Laundry,08-Jan-17,5630613089,SCOTTS INTERNET,5941,Clothing uniforms and laundry,-55,0,-55
Regeneration and Local Services,Culture & Sport,54399,Local Delivery-Libraries,Supplies and Services,312011,Newspapers Books and Periodicals,08-Jan-17,5630613229,Amazon UK Marketplace,5942,Books-school library,10.75,0,10.75
Children and Young Peoples Services,Childrens Services,88083,Ferryhill 0 - 5,Supplies and Services,328041,Clothing Uniforms and Laundry,08-Jan-17,5630613295,THE RANGE,5311,Clothing uniforms and laundry,27,0,27
Regeneration and Local Services,Culture & Sport,54604,Seven Hills Spennymoor,Supplies and Services,304403,Equipment and Materials,08-Jan-17,5636493571,AMAZON UK RETAIL AMAZO,5999,Other consumables,52.8,0,52.8
Regeneration and Local Services,Culture & Sport,54399,Local Delivery-Libraries,Supplies and Services,304403,Equipment and Materials,08-Jan-17,5636493575,AMAZON UK RETAIL AMAZO,5999,Other consumables,20.98,0,20.98
Regeneration and Local Services,Economic Development and Housing,31576,B& B - Temp Accom,Supplies and Services,352001,Conference Expenses,09-Jan-17,5636493231,THE HONEST LAWYER HOTE,7011,Conferencesseminars fees etc,80,0,80
Children and Young Peoples Services,Childrens Services,88093,Newton Aycliffe 0 - 5,Supplies and Services,324117,Provisions,09-Jan-17,5636493235,ASDA HOME SHOPPING,5411,Catering costs - provisions,28.24,0,28.24
Regeneration and Local Services,Economic Development and Housing,31500,Housing Solutions - Core Team,Supplies and Services,352001,Conference Expenses,09-Jan-17,5636493243,THE HONEST LAWYER HOTE,7011,Conferencesseminars fees etc,80,0,80
Regeneration and Local Services,Economic Development and Housing,31500,Housing Solutions - Core Team,Supplies and Services,352001,Conference Expenses,09-Jan-17,5636493245,TRAVELODGE,3615,Conferencesseminars fees etc,45,7.5,37.5
Regeneration and Local Services,Direct Services,10383,C&G - South Street Cleansing,Supplies and Services,304259,Equipment and Materials,09-Jan-17,5636493265,TUDOR ENVIRONMENTAL,5261,Equipment-purchase and rental,452.3,75.38,376.92
Children and Young Peoples Services,Childrens Services,85957,Secure Management,Supplies and Services,304403,Equipment and Materials,09-Jan-17,5636493269,TESCO - Maplin,5999,Other consumables,22.96,0,22.96
Children and Young Peoples Services,Childrens Services,85957,Secure Management,Supplies and Services,328041,Clothing Uniforms and Laundry,09-Jan-17,5636493273,ARGOS RETAIL GROUP,5310,Clothing uniforms and laundry,368.93,0,368.93
Regeneration and Local Services,Economic Development and Housing,30699,Business Growth and Innovation General,Supplies and Services,336005,Advertising,09-Jan-17,5636493291,TWITTER ADVERTISING,7311,Advertising other than for staff,60,0,60
Regeneration and Local Services,Economic Development and Housing,30699,Business Growth and Innovation General,Supplies and Services,304999,Equipment and Materials,09-Jan-17,5636493295,LINKEDIN-241 9187256,5968,Misc equipment tools and materials,106.8,17.8,89
Regeneration and Local Services,Economic Development and Housing,30737,Durham Works Flexible Fund,Supplies and Services,304259,Equipment and Materials,09-Jan-17,5636493307,DVLA DRIVER ONLINE,9399,Equipment-purchase and rental,34,0,34
Regeneration and Local Services,Direct Services,21242,Catering - County Hall,Supplies and Services,324117,Provisions,09-Jan-17,5636493311,BRAMBLES FOODS LTD,5499,Catering costs - provisions,362.19,0,362.19
Regeneration and Local Services,Direct Services,21242,Catering - County Hall,Supplies and Services,324117,Provisions,09-Jan-17,5636493315,JR HOLLAND FOODSERVICE,5422,Catering costs - provisions,98.58,0,98.58
Regeneration and Local Services,Direct Services,21242,Catering - County Hall,Supplies and Services,324117,Provisions,09-Jan-17,5636493317,JR HOLLAND FOODSERVICE,5422,Catering costs - provisions,13.52,0,13.52
Children and Young Peoples Services,Education,71732,Dean Bank Childcare,Supplies and Services,324117,Provisions,09-Jan-17,5636493359,CO-OP GROUP 010518,5411,Catering costs - provisions,6.53,0,6.53
Children and Young Peoples Services,Childrens Services,85341,High Etherley Satelite Home,Supplies and Services,324117,Provisions,09-Jan-17,5636493361,TESCO STORES 6329,5411,Catering costs - provisions,30.69,0,30.69
Regeneration and Local Services,Economic Development and Housing,30737,Durham Works Flexible Fund,Transport,235005,Public Transport,09-Jan-17,5636493371,ARRIVA PASSENGER S,7538,Contract tickets,14,0,14
Regeneration and Local Services,Spatial Policy Planning Assets & Environment,31222,North Pennines Allen Valleys Landscape Partnership,Supplies and Services,324117,Provisions,09-Jan-17,5636493419,WWW.CATER4YOU.CO.UK,5811,Catering costs - provisions,14.01,2.34,11.67
Regeneration and Local Services,Culture & Sport,11060,Hardwick Park Catering,Supplies and Services,324117,Provisions,09-Jan-17,5636493423,JR HOLLAND FOODSERVICE,5422,Catering costs - provisions,26.58,0,26.58
Regeneration and Local Services,Culture & Sport,11060,Hardwick Park Catering,Supplies and Services,324117,Provisions,09-Jan-17,5636493425,BRAKE BROS LTD,5811,Catering costs - provisions,79.86,13.31,66.55
Regeneration and Local Services,Culture & Sport,11060,Hardwick Park Catering,Supplies and Services,324117,Provisions,09-Jan-17,5636493425 - 1,BRAKE BROS LTD,5811,Catering costs - provisions,130.51,,130.51
Regeneration and Local Services,Culture & Sport,11060,Hardwick Park Catering,Supplies and Services,324117,Provisions,09-Jan-17,5636493429,BRAKE BROS LTD,5811,Catering costs - provisions,131.34,21.89,109.45
Regeneration and Local Services,Culture & Sport,11060,Hardwick Park Catering,Supplies and Services,324117,Provisions,09-Jan-17,5636493429 - 1,BRAKE BROS LTD,5811,Catering costs - provisions,31.15,,31.15
Resources,I.C.T. Services,70204,Operations - System & Repairs Team,Supplies and Services,304999,Equipment and Materials,09-Jan-17,5636493435,THE REPLACE BASE LTD,7699,Misc equipment tools and materials,241.93,40.32,201.61
Regeneration and Local Services,Direct Services,21234,Catering - Locomotion,Supplies and Services,324117,Provisions,09-Jan-17,5636493447,BRAMBLES FOODS LTD,5499,Catering costs - provisions,99.88,0,99.88
Regeneration and Local Services,Direct Services,10525,Catering - Green Lane,Supplies and Services,324117,Provisions,09-Jan-17,5636493469,BRAMBLES FOODS LTD,5499,Catering costs - provisions,53,0,53
Regeneration and Local Services,Direct Services,10525,Catering - Green Lane,Supplies and Services,324117,Provisions,09-Jan-17,5636493471,BRAKE BROS LTD,5811,Catering costs - provisions,75.79,0,75.79
Children and Young Peoples Services,Childrens Services,88037,One Point YEI,Supplies and Services,304259,Equipment and Materials,09-Jan-17,5636493481,DURHAM COUNTY COUNCIL,9399,Equipment-purchase and rental,10,0,10
Children and Young Peoples Services,Childrens Services,88063,Bishop Auckland 0 - 5,Supplies and Services,324117,Provisions,09-Jan-17,5636493487,LIDL UK,5411,Catering costs - provisions,25.83,0,25.83
Children and Young Peoples Services,Childrens Services,88063,Bishop Auckland 0 - 5,Supplies and Services,324117,Provisions,09-Jan-17,5636493489,WM MORRISON 040,5411,Catering costs - provisions,23.11,0,23.11
Regeneration and Local Services,Economic Development and Housing,30749,Employability - Youth Contract,Supplies and Services,304259,Equipment and Materials,09-Jan-17,5636493543,SUNDERLAND CC,9399,Equipment-purchase and rental,10,0,10
Children and Young Peoples Services,Childrens Services,85100,Child Protection & Disabilty Strategic Manager,Supplies and Services,384199,Miscellaneous Expenses,09-Jan-17,5636493559,SUNDERLAND CC,9399,Other hired and contracted services,10,0,10
Resources,I.C.T. Services,65433,Spatial Technologies,Employees,40149,Recruitment Instruction and Training,09-Jan-17,5636493563,Udemy,7372,Training-all costs,10,0,10
Resources,Financial Services,52865,SF-Financial Services Team,Supplies and Services,338048,Services,09-Jan-17,5636493599,HMCOURTS-SERVICE.G,9222,Court Costs,"6,045.00",0,6045
Regeneration and Local Services,Culture & Sport,54235,Bp Auckland Town Hall Cafe,Supplies and Services,324117,Provisions,09-Jan-17,5636493615,JR HOLLAND FOODSERVICE,5422,Catering costs - provisions,24.2,0,24.2
Regeneration and Local Services,Transport and Contracted Services,31701,Care Connect All Localities,Supplies and Services,344033,Telephones,09-Jan-17,5636493621,BT BILL PAYMENT 1,4812,Telephones general-all costs,29.49,4.92,24.57
Regeneration and Local Services,Direct Services,21324,Catering - Meadowfield,Supplies and Services,324117,Provisions,09-Jan-17,5636493639,BRAMBLES FOODS LTD,5499,Catering costs - provisions,35.75,0,35.75
Children and Young Peoples Services,Childrens Services,88083,Ferryhill 0 - 5,Supplies and Services,324117,Provisions,09-Jan-17,5636493709,ASDA SUPERSTORE 4987,5411,Catering costs - provisions,49.83,0,49.83
Regeneration and Local Services,Culture & Sport,10605,Woodhouse Close Leisure Complex,Supplies and Services,324117,Provisions,09-Jan-17,5636493783,JR HOLLAND FOODSERVICE,5422,Catering costs - provisions,37.02,0,37.02
Regeneration and Local Services,Economic Development and Housing,30705,Visit County Durham,Supplies and Services,340001,Postages,09-Jan-17,5636493787,POST OFFICE SELF SERVI,9402,Postages,63.36,10.56,52.8
Resources,Financial Services,65166,Finance - Post Entry Training,Employees,40149,Recruitment Instruction and Training,09-Jan-17,5636493789,WWW.CIPS.ORG,8699,Training-all costs,183.6,0,183.6
Regeneration and Local Services,Economic Development and Housing,31500,Housing Solutions - Core Team,Employees,40149,Recruitment Instruction and Training,09-Jan-17,5639563783,PREMIER INN,3811,Training-all costs,93.5,15.58,77.92
Adult and Health Services,Head of Adults,52750,Learning Disability Management,Supplies and Services,364320,Grants to Voluntary Organisations,09-Jan-17,5639564351,RADCLIFFE,7011,Accommodation assistance,79,13.17,65.83
Children and Young Peoples Services,Education,71801,Selby Cottage Childcare Centre,Supplies and Services,324117,Provisions,10-Jan-17,5639563771,TESCO STORES 2278,5411,Catering costs - provisions,2.81,0,2.81
Regeneration and Local Services,Economic Development and Housing,31500,Housing Solutions - Core Team,Supplies and Services,352001,Conference Expenses,10-Jan-17,5639563787,THE HONEST LAWYER HOTE,7011,Conferencesseminars fees etc,80,0,80
Children and Young Peoples Services,Education,79027,Behaviour Intervention Team,Supplies and Services,312009,Newspapers Books and Periodicals,10-Jan-17,5639563795,Amazon EU,5969,Newspapers books and periodicals,5.95,0,5.95
Children and Young Peoples Services,Education,79027,Behaviour Intervention Team,Supplies and Services,312009,Newspapers Books and Periodicals,10-Jan-17,5639563797,AMAZON UK RETAIL AMAZO,5999,Newspapers books and periodicals,51.74,0,51.74
Children and Young Peoples Services,Childrens Services,85957,Secure Management,Supplies and Services,304245,Equipment and Materials,10-Jan-17,5639563825,Amazon UK Marketplace,5942,Materials,18.9,0,18.9
Regeneration and Local Services,Spatial Policy Planning Assets & Environment,31222,North Pennines Allen Valleys Landscape Partnership,Supplies and Services,348037,Subsistence,10-Jan-17,5639563837,IZ The Golden Lion Ho,5812,Subsistence,19.4,0,19.4
Regeneration and Local Services,Direct Services,21242,Catering - County Hall,Supplies and Services,324117,Provisions,10-Jan-17,5639563855,FREEMAN CATERING BUTCH,5422,Catering costs - provisions,52.92,0,52.92
Regeneration and Local Services,Direct Services,21242,Catering - County Hall,Supplies and Services,324117,Provisions,10-Jan-17,5639563859,JR HOLLAND FOODSERVICE,5422,Catering costs - provisions,56.57,0,56.57
Regeneration and Local Services,Direct Services,21242,Catering - County Hall,Supplies and Services,324117,Provisions,10-Jan-17,5639563863,JR HOLLAND FOODSERVICE,5422,Catering costs - provisions,6.58,0,6.58
Resources,I.C.T. Services,65464,Domains,Supplies and Services,372009,Subscriptions,10-Jan-17,5639563871,NOMINET UK,7379,Subscriptions,67.5,11.25,56.25
Regeneration and Local Services,Culture & Sport,54812,Gala Theatre - Catering etc,Supplies and Services,324117,Provisions,10-Jan-17,5639563879,FREEMAN CATERING BUTCH,5422,Catering costs - provisions,24.3,0,24.3
Regeneration and Local Services,Culture & Sport,54812,Gala Theatre - Catering etc,Supplies and Services,324117,Provisions,10-Jan-17,5639563883,JR HOLLAND FOODSERVICE,5422,Catering costs - provisions,46.81,0,46.81
Regeneration and Local Services,Culture & Sport,54812,Gala Theatre - Catering etc,Supplies and Services,324117,Provisions,10-Jan-17,5639563887,BRAKE BROS LTD,5811,Catering costs - provisions,72.84,12.14,60.7
Regeneration and Local Services,Culture & Sport,54812,Gala Theatre - Catering etc,Supplies and Services,324117,Provisions,10-Jan-17,5639563887 - 1,BRAKE BROS LTD,5811,Catering costs - provisions,124.93,,124.93
Regeneration and Local Services,Culture & Sport,54812,Gala Theatre - Catering etc,Supplies and Services,324117,Provisions,10-Jan-17,5639563897,BRAKE BROS LTD,5811,Catering costs - provisions,36.71,0,36.71
Children and Young Peoples Services,Childrens Services,85333,Coxhoe Satelite Home,Supplies and Services,312011,Newspapers Books and Periodicals,10-Jan-17,5639563927,Amazon UK Marketplace,5942,Books-school library,5.53,0,5.53
Children and Young Peoples Services,Education,71732,Dean Bank Childcare,Supplies and Services,324117,Provisions,10-Jan-17,5639563963,ASDA HOME SHOPPING,5411,Catering costs - provisions,56.04,0,56.04
Children and Young Peoples Services,Childrens Services,85332,Middlestone Moor CU,Supplies and Services,324117,Provisions,10-Jan-17,5639563971,TESCO STORES 2371,5411,Catering costs - provisions,63.21,0,63.21
Regeneration and Local Services,Economic Development and Housing,30737,Durham Works Flexible Fund,Transport,235057,Public Transport,10-Jan-17,5639563991,STAGECOACH SERVICE,4131,Staff travelling,46.05,0,46.05
Regeneration and Local Services,Economic Development and Housing,30737,Durham Works Flexible Fund,Transport,235057,Public Transport,10-Jan-17,5639563993,WWW.SIMPLYGO.COM,4131,Staff travelling,68,0,68
Regeneration and Local Services,Economic Development and Housing,30737,Durham Works Flexible Fund,Transport,235057,Public Transport,10-Jan-17,5639563997,WWW.SIMPLYGO.COM,4131,Staff travelling,5,0,5
Children and Young Peoples Services,Childrens Services,85957,Secure Management,Supplies and Services,312011,Newspapers Books and Periodicals,10-Jan-17,5639564011,Amazon UK Marketplace,5942,Books-school library,16.48,0,16.48
Children and Young Peoples Services,Childrens Services,85957,Secure Management,Supplies and Services,328041,Clothing Uniforms and Laundry,10-Jan-17,5639564013,M and M Direct Ltd,5941,Clothing uniforms and laundry,99.98,0,99.98
Children and Young Peoples Services,Childrens Services,85957,Secure Management,Supplies and Services,328041,Clothing Uniforms and Laundry,10-Jan-17,5639564017,RMS EMBROIDERY EMBROID,5655,Clothing uniforms and laundry,406,0,406
Children and Young Peoples Services,Childrens Services,85957,Secure Management,Supplies and Services,328041,Clothing Uniforms and Laundry,10-Jan-17,5639564021,WWW.FOOTLOCKER.EU,5661,Clothing uniforms and laundry,84.99,0,84.99
Children and Young Peoples Services,Childrens Services,85957,Secure Management,Supplies and Services,328041,Clothing Uniforms and Laundry,10-Jan-17,5639564025,HOUSE OF FRASER,5311,Clothing uniforms and laundry,96,0,96
Children and Young Peoples Services,Childrens Services,85957,Secure Management,Supplies and Services,328041,Clothing Uniforms and Laundry,10-Jan-17,5639564027,WWW.FOOTASYLUM.COM,5941,Clothing uniforms and laundry,23.94,0,23.94
Children and Young Peoples Services,Childrens Services,85957,Secure Management,Supplies and Services,324117,Provisions,10-Jan-17,5639564029,TESCO STORES 6329,5411,Catering costs - provisions,73.77,0,73.77
Children and Young Peoples Services,Childrens Services,85957,Secure Management,Supplies and Services,328041,Clothing Uniforms and Laundry,10-Jan-17,5639564033,NEXT DIRECTORY,5651,Clothing uniforms and laundry,52.99,0,52.99
Children and Young Peoples Services,Childrens Services,85957,Secure Management,Supplies and Services,328041,Clothing Uniforms and Laundry,10-Jan-17,5639564035,VERY.CO.UK,5964,Clothing uniforms and laundry,12.16,0,12.16
Children and Young Peoples Services,Childrens Services,85957,Secure Management,Supplies and Services,328041,Clothing Uniforms and Laundry,10-Jan-17,5639564039,VERY.CO.UK,5964,Clothing uniforms and laundry,3.99,0,3.99
Regeneration and Local Services,Culture & Sport,11060,Hardwick Park Catering,Supplies and Services,324117,Provisions,10-Jan-17,5639564051,FREEMAN CATERING BUTCH,5422,Catering costs - provisions,40.8,0,40.8
Regeneration and Local Services,Culture & Sport,11060,Hardwick Park Catering,Supplies and Services,324117,Provisions,10-Jan-17,5639564055,FREEMAN CATERING BUTCH,5422,Catering costs - provisions,17.14,0,17.14
Regeneration and Local Services,Culture & Sport,11060,Hardwick Park Catering,Supplies and Services,324117,Provisions,10-Jan-17,5639564059,JR HOLLAND FOODSERVICE,5422,Catering costs - provisions,26.25,0,26.25
Regeneration and Local Services,Economic Development and Housing,30762,Organisational Training & Development,Employees,40149,Recruitment Instruction and Training,10-Jan-17,5639564075,CITB,8220,Training-all costs,30,0,30
Regeneration and Local Services,Economic Development and Housing,30762,Organisational Training & Development,Employees,40149,Recruitment Instruction and Training,10-Jan-17,5639564079,CITB,8220,Training-all costs,30,0,30
Regeneration and Local Services,Direct Services,21234,Catering - Locomotion,Supplies and Services,324117,Provisions,10-Jan-17,5639564081,JR HOLLAND FOODSERVICE,5422,Catering costs - provisions,34.2,0,34.2
Regeneration and Local Services,Direct Services,10525,Catering - Green Lane,Supplies and Services,324117,Provisions,10-Jan-17,5639564099,FREEMAN CATERING BUTCH,5422,Catering costs - provisions,45.18,0,45.18
Regeneration and Local Services,Direct Services,10525,Catering - Green Lane,Supplies and Services,324117,Provisions,10-Jan-17,5639564103,FREEMAN CATERING BUTCH,5422,Catering costs - provisions,6.94,0,6.94
Regeneration and Local Services,Direct Services,10525,Catering - Green Lane,Supplies and Services,324117,Provisions,10-Jan-17,5639564105,BRAKE BROS LTD,5811,Catering costs - provisions,73.86,12.31,61.55
Regeneration and Local Services,Direct Services,10525,Catering - Green Lane,Supplies and Services,324117,Provisions,10-Jan-17,5639564105 - 1,BRAKE BROS LTD,5811,Catering costs - provisions,32.35,,32.35
Regeneration and Local Services,Direct Services,10367,C&G - South Grounds Maintenance,Supplies and Services,304221,Equipment and Materials,10-Jan-17,5639564129,RIPON FARM SERVICES,5599,Direct materials,70.36,0,70.36
Regeneration and Local Services,Direct Services,10367,C&G - South Grounds Maintenance,Supplies and Services,312011,Newspapers Books and Periodicals,10-Jan-17,5639564131,CHARLES DICKENS (SPENN,5251,Books-school library,11.94,0,11.94
Regeneration and Local Services,Economic Development and Housing,30749,Employability - Youth Contract,Supplies and Services,340001,Postages,10-Jan-17,5639564137,POST OFFICE SELF SERVI,9402,Postages,1.74,0,1.74
Regeneration and Local Services,Direct Services,10367,C&G - South Grounds Maintenance,Supplies and Services,324117,Provisions,10-Jan-17,5639564143,J M RAINE,5399,Catering costs - provisions,48.71,8.12,40.59
Regeneration and Local Services,Direct Services,10900,Fleet - Meadowfield Fleet,Supplies and Services,384999,Miscellaneous Expenses,10-Jan-17,5639564155,DVSA MOT COMP 2,9399,Other expenses,410,0,410
Children and Young Peoples Services,Childrens Services,74000,TTF-Attachment and Results,Supplies and Services,304259,Equipment and Materials,10-Jan-17,5639564161,WILKO.COM,5722,Equipment-purchase and rental,123,0,123
Transformation and Partnerships,Policy & Communications Division,60270,Communications and Marketing,Supplies and Services,372009,Subscriptions,10-Jan-17,5639564163,ADOBE CAPTIVATE SUBS,5734,Subscriptions,22.86,0,22.86
Children and Young Peoples Services,Education,78146,CPD Conferences,Supplies and Services,364320,Grants to Voluntary Organisations,10-Jan-17,5639564167,THE KINGSLODGE INN,7011,Accommodation assistance,95,0,95
Regeneration and Local Services,Culture & Sport,54235,Bp Auckland Town Hall Cafe,Supplies and Services,324117,Provisions,10-Jan-17,5639564205,JR HOLLAND FOODSERVICE,5422,Catering costs - provisions,24.75,0,24.75
Regeneration and Local Services,Direct Services,21324,Catering - Meadowfield,Supplies and Services,324117,Provisions,10-Jan-17,5639564225,FREEMAN CATERING BUTCH,5422,Catering costs - provisions,61.04,0,61.04
Regeneration and Local Services,Direct Services,21324,Catering - Meadowfield,Supplies and Services,324117,Provisions,10-Jan-17,5639564227,BRAKE BROS LTD,5811,Catering costs - provisions,89.09,0,89.09
Children and Young Peoples Services,Childrens Services,74000,TTF-Attachment and Results,Supplies and Services,304403,Equipment and Materials,10-Jan-17,5639564309,TESCO - PLO,5999,Other consumables,57.84,0,57.84
Children and Young Peoples Services,Childrens Services,74000,TTF-Attachment and Results,Supplies and Services,304403,Equipment and Materials,10-Jan-17,5639564315,TESCO - Safetots Limit,5999,Other consumables,22.94,0,22.94
Children and Young Peoples Services,Childrens Services,74000,TTF-Attachment and Results,Supplies and Services,304403,Equipment and Materials,10-Jan-17,5639564319,TESCO DIRECT,5999,Other consumables,67.18,0,67.18
Children and Young Peoples Services,Childrens Services,74000,TTF-Attachment and Results,Supplies and Services,304403,Equipment and Materials,10-Jan-17,5639564321,TESCO DIRECT,5999,Other consumables,18,0,18
Children and Young Peoples Services,Childrens Services,71404,Laurel Avenue Childrens Centre,Supplies and Services,312011,Newspapers Books and Periodicals,10-Jan-17,5639564327,HOME BARGAINS,5251,Books-school library,23.12,0,23.12
Children and Young Peoples Services,Childrens Services,71404,Laurel Avenue Childrens Centre,Supplies and Services,324117,Provisions,10-Jan-17,5639564331,ICELAND,5411,Catering costs - provisions,14.68,0,14.68
Regeneration and Local Services,Direct Services,21235,Catering - Wharton Park,Supplies and Services,324117,Provisions,10-Jan-17,5639564335,JR HOLLAND FOODSERVICE,5422,Catering costs - provisions,30.29,0,30.29
Regeneration and Local Services,Direct Services,21235,Catering - Wharton Park,Supplies and Services,324117,Provisions,10-Jan-17,5639564339,JR HOLLAND FOODSERVICE,5422,Catering costs - provisions,-7.23,0,-7.23
Regeneration and Local Services,Culture & Sport,10605,Woodhouse Close Leisure Complex,Supplies and Services,324117,Provisions,10-Jan-17,5639564343,FREEMAN CATERING BUTCH,5422,Catering costs - provisions,49.8,0,49.8
Regeneration and Local Services,Economic Development and Housing,31500,Housing Solutions - Core Team,Employees,40149,Recruitment Instruction and Training,10-Jan-17,5643495871,PREMIER INN,3811,Training-all costs,98,16.33,81.67
Children and Young Peoples Services,Childrens Services,85957,Secure Management,Supplies and Services,328041,Clothing Uniforms and Laundry,10-Jan-17,5643496159,SPORTSDIRECT.COM,5941,Clothing uniforms and laundry,17.99,0,17.99
Children and Young Peoples Services,Education,71801,Selby Cottage Childcare Centre,Supplies and Services,324117,Provisions,11-Jan-17,5643495865,TESCO STORES 2278,5411,Catering costs - provisions,2.99,0,2.99
Regeneration and Local Services,Economic Development and Housing,31500,Housing Solutions - Core Team,Supplies and Services,352001,Conference Expenses,11-Jan-17,5643495867,DAYS INN,7011,Conferencesseminars fees etc,49,8.17,40.83
Regeneration and Local Services,Economic Development and Housing,31500,Housing Solutions - Core Team,Supplies and Services,352001,Conference Expenses,11-Jan-17,5643495873,TRAVELODGE,3615,Conferencesseminars fees etc,45,7.5,37.5
Children and Young Peoples Services,Childrens Services,85965,Barnard,Supplies and Services,384999,Miscellaneous Expenses,11-Jan-17,5643495895,Amazon UK Marketplace,5942,Other expenses,16.58,0,16.58
Children and Young Peoples Services,Childrens Services,85957,Secure Management,Supplies and Services,384999,Miscellaneous Expenses,11-Jan-17,5643495899,WWW.COOPERSOFSTORTFORD,5311,Other expenses,24.98,0,24.98
Regeneration and Local Services,Economic Development and Housing,30699,Business Growth and Innovation General,Supplies and Services,336005,Advertising,11-Jan-17,5643495901,TWITTER ADVERTISING,7311,Advertising other than for staff,60,0,60
Regeneration and Local Services,Direct Services,21242,Catering - County Hall,Supplies and Services,324117,Provisions,11-Jan-17,5643495935,JR HOLLAND FOODSERVICE,5422,Catering costs - provisions,97.8,0,97.8
Regeneration and Local Services,Direct Services,21242,Catering - County Hall,Supplies and Services,324117,Provisions,11-Jan-17,5643495941,JR HOLLAND FOODSERVICE,5422,Catering costs - provisions,31.35,0,31.35
Regeneration and Local Services,Direct Services,10900,Fleet - Meadowfield Fleet,Transport,215013,Running Costs of Vehicles,11-Jan-17,5643495969,DVLA VEHICLE TAX,9399,Vehicle Excise Duty (VED),232.5,0,232.5
Regeneration and Local Services,Direct Services,10900,Fleet - Meadowfield Fleet,Transport,215013,Running Costs of Vehicles,11-Jan-17,5643495973,DVLA VEHICLE TAX,9399,Vehicle Excise Duty (VED),232.5,0,232.5
Regeneration and Local Services,Direct Services,10900,Fleet - Meadowfield Fleet,Transport,215013,Running Costs of Vehicles,11-Jan-17,5643495975,DVLA VEHICLE TAX,9399,Vehicle Excise Duty (VED),232.5,0,232.5
Regeneration and Local Services,Direct Services,10900,Fleet - Meadowfield Fleet,Transport,215013,Running Costs of Vehicles,11-Jan-17,5643495977,DVLA VEHICLE TAX,9399,Vehicle Excise Duty (VED),232.5,0,232.5
Regeneration and Local Services,Direct Services,10900,Fleet - Meadowfield Fleet,Transport,215013,Running Costs of Vehicles,11-Jan-17,5643495979,DVLA VEHICLE TAX,9399,Vehicle Excise Duty (VED),232.5,0,232.5
Regeneration and Local Services,Direct Services,10551,Fleet - Chilton Fleet,Transport,215013,Running Costs of Vehicles,11-Jan-17,5643495981,DVLA VEHICLE TAX,9399,Vehicle Excise Duty (VED),232.5,0,232.5
Regeneration and Local Services,Direct Services,10900,Fleet - Meadowfield Fleet,Transport,215013,Running Costs of Vehicles,11-Jan-17,5643495983,DVLA VEHICLE TAX,9399,Vehicle Excise Duty (VED),232.5,0,232.5
Regeneration and Local Services,Direct Services,10900,Fleet - Meadowfield Fleet,Transport,215013,Running Costs of Vehicles,11-Jan-17,5643495987,DVLA VEHICLE TAX,9399,Vehicle Excise Duty (VED),232.5,0,232.5
Regeneration and Local Services,Direct Services,10900,Fleet - Meadowfield Fleet,Transport,215013,Running Costs of Vehicles,11-Jan-17,5643495989,DVLA VEHICLE TAX,9399,Vehicle Excise Duty (VED),232.5,0,232.5
Regeneration and Local Services,Direct Services,10900,Fleet - Meadowfield Fleet,Transport,215013,Running Costs of Vehicles,11-Jan-17,5643495991,DVLA VEHICLE TAX,9399,Vehicle Excise Duty (VED),232.5,0,232.5
Regeneration and Local Services,Direct Services,10900,Fleet - Meadowfield Fleet,Transport,215013,Running Costs of Vehicles,11-Jan-17,5643495995,DVLA VEHICLE TAX,9399,Vehicle Excise Duty (VED),232.5,0,232.5
Regeneration and Local Services,Direct Services,10900,Fleet - Meadowfield Fleet,Transport,215013,Running Costs of Vehicles,11-Jan-17,5643495997,DVLA VEHICLE TAX,9399,Vehicle Excise Duty (VED),232.5,0,232.5
Regeneration and Local Services,Direct Services,10900,Fleet - Meadowfield Fleet,Transport,215013,Running Costs of Vehicles,11-Jan-17,5643495999,DVLA VEHICLE TAX,9399,Vehicle Excise Duty (VED),232.5,0,232.5
Regeneration and Local Services,Direct Services,10900,Fleet - Meadowfield Fleet,Transport,215013,Running Costs of Vehicles,11-Jan-17,5643496003,DVLA VEHICLE TAX,9399,Vehicle Excise Duty (VED),232.5,0,232.5
Regeneration and Local Services,Direct Services,10900,Fleet - Meadowfield Fleet,Transport,215013,Running Costs of Vehicles,11-Jan-17,5643496005,DVLA VEHICLE TAX,9399,Vehicle Excise Duty (VED),232.5,0,232.5
Regeneration and Local Services,Direct Services,10900,Fleet - Meadowfield Fleet,Transport,215013,Running Costs of Vehicles,11-Jan-17,5643496009,DVLA VEHICLE TAX,9399,Vehicle Excise Duty (VED),232.5,0,232.5
Regeneration and Local Services,Direct Services,10900,Fleet - Meadowfield Fleet,Transport,215013,Running Costs of Vehicles,11-Jan-17,5643496011,DVLA VEHICLE TAX,9399,Vehicle Excise Duty (VED),232.5,0,232.5
Regeneration and Local Services,Direct Services,10900,Fleet - Meadowfield Fleet,Transport,215013,Running Costs of Vehicles,11-Jan-17,5643496013,DVLA VEHICLE TAX,9399,Vehicle Excise Duty (VED),232.5,0,232.5
Regeneration and Local Services,Direct Services,10900,Fleet - Meadowfield Fleet,Transport,215013,Running Costs of Vehicles,11-Jan-17,5643496015,DVLA VEHICLE TAX,9399,Vehicle Excise Duty (VED),232.5,0,232.5
Regeneration and Local Services,Direct Services,10900,Fleet - Meadowfield Fleet,Transport,215013,Running Costs of Vehicles,11-Jan-17,5643496019,DVLA VEHICLE TAX,9399,Vehicle Excise Duty (VED),232.5,0,232.5
Regeneration and Local Services,Direct Services,10900,Fleet - Meadowfield Fleet,Transport,215013,Running Costs of Vehicles,11-Jan-17,5643496021,DVLA VEHICLE TAX,9399,Vehicle Excise Duty (VED),232.5,0,232.5
Regeneration and Local Services,Direct Services,10900,Fleet - Meadowfield Fleet,Transport,215013,Running Costs of Vehicles,11-Jan-17,5643496025,DVLA VEHICLE TAX,9399,Vehicle Excise Duty (VED),232.5,0,232.5
Regeneration and Local Services,Direct Services,10561,Fleet - Morrison Busty Fleet,Transport,215013,Running Costs of Vehicles,11-Jan-17,5643496027,DVLA VEHICLE TAX,9399,Vehicle Excise Duty (VED),232.5,0,232.5
Regeneration and Local Services,Direct Services,10900,Fleet - Meadowfield Fleet,Transport,215013,Running Costs of Vehicles,11-Jan-17,5643496031,DVLA VEHICLE TAX,9399,Vehicle Excise Duty (VED),232.5,0,232.5
Regeneration and Local Services,Direct Services,10900,Fleet - Meadowfield Fleet,Transport,215013,Running Costs of Vehicles,11-Jan-17,5643496033,DVLA VEHICLE TAX,9399,Vehicle Excise Duty (VED),232.5,0,232.5
Regeneration and Local Services,Direct Services,10900,Fleet - Meadowfield Fleet,Transport,215013,Running Costs of Vehicles,11-Jan-17,5643496037,DVLA VEHICLE TAX,9399,Vehicle Excise Duty (VED),232.5,0,232.5
Regeneration and Local Services,Direct Services,10900,Fleet - Meadowfield Fleet,Transport,215013,Running Costs of Vehicles,11-Jan-17,5643496041,DVLA VEHICLE TAX,9399,Vehicle Excise Duty (VED),232.5,0,232.5
Regeneration and Local Services,Direct Services,10900,Fleet - Meadowfield Fleet,Transport,215013,Running Costs of Vehicles,11-Jan-17,5643496043,DVLA VEHICLE TAX,9399,Vehicle Excise Duty (VED),232.5,0,232.5
Regeneration and Local Services,Direct Services,10900,Fleet - Meadowfield Fleet,Transport,215013,Running Costs of Vehicles,11-Jan-17,5643496047,DVLA VEHICLE TAX,9399,Vehicle Excise Duty (VED),232.5,0,232.5
Regeneration and Local Services,Direct Services,10900,Fleet - Meadowfield Fleet,Transport,215013,Running Costs of Vehicles,11-Jan-17,5643496049,DVLA VEHICLE TAX,9399,Vehicle Excise Duty (VED),232.5,0,232.5
Regeneration and Local Services,Direct Services,10561,Fleet - Morrison Busty Fleet,Transport,215013,Running Costs of Vehicles,11-Jan-17,5643496051,DVLA VEHICLE TAX,9399,Vehicle Excise Duty (VED),232.5,0,232.5
Regeneration and Local Services,Direct Services,10900,Fleet - Meadowfield Fleet,Transport,215013,Running Costs of Vehicles,11-Jan-17,5643496055,DVLA VEHICLE TAX,9399,Vehicle Excise Duty (VED),232.5,0,232.5
Regeneration and Local Services,Direct Services,10900,Fleet - Meadowfield Fleet,Transport,215013,Running Costs of Vehicles,11-Jan-17,5643496057,DVLA VEHICLE TAX,9399,Vehicle Excise Duty (VED),232.5,0,232.5
Regeneration and Local Services,Direct Services,10900,Fleet - Meadowfield Fleet,Transport,215013,Running Costs of Vehicles,11-Jan-17,5643496059,DVLA VEHICLE TAX,9399,Vehicle Excise Duty (VED),167.5,0,167.5
Regeneration and Local Services,Direct Services,10900,Fleet - Meadowfield Fleet,Transport,215013,Running Costs of Vehicles,11-Jan-17,5643496063,DVLA VEHICLE TAX,9399,Vehicle Excise Duty (VED),232.5,0,232.5
Regeneration and Local Services,Direct Services,10551,Fleet - Chilton Fleet,Transport,215013,Running Costs of Vehicles,11-Jan-17,5643496065,DVLA VEHICLE TAX,9399,Vehicle Excise Duty (VED),232.5,0,232.5
Regeneration and Local Services,Direct Services,10864,Fleet - Hackworth Road Fleet,Transport,215013,Running Costs of Vehicles,11-Jan-17,5643496067,DVLA VEHICLE TAX,9399,Vehicle Excise Duty (VED),232.5,0,232.5
Regeneration and Local Services,Direct Services,10900,Fleet - Meadowfield Fleet,Transport,215013,Running Costs of Vehicles,11-Jan-17,5643496071,DVLA VEHICLE TAX,9399,Vehicle Excise Duty (VED),232.5,0,232.5
Regeneration and Local Services,Direct Services,10900,Fleet - Meadowfield Fleet,Transport,215013,Running Costs of Vehicles,11-Jan-17,5643496073,DVLA VEHICLE TAX,9399,Vehicle Excise Duty (VED),232.5,0,232.5
Regeneration and Local Services,Direct Services,10900,Fleet - Meadowfield Fleet,Transport,215013,Running Costs of Vehicles,11-Jan-17,5643496075,DVLA VEHICLE TAX,9399,Vehicle Excise Duty (VED),232.5,0,232.5
Regeneration and Local Services,Direct Services,10900,Fleet - Meadowfield Fleet,Transport,215013,Running Costs of Vehicles,11-Jan-17,5643496079,DVLA VEHICLE TAX,9399,Vehicle Excise Duty (VED),232.5,0,232.5
Regeneration and Local Services,Direct Services,10900,Fleet - Meadowfield Fleet,Transport,215013,Running Costs of Vehicles,11-Jan-17,5643496083,DVLA VEHICLE TAX,9399,Vehicle Excise Duty (VED),232.5,0,232.5
Regeneration and Local Services,Direct Services,10900,Fleet - Meadowfield Fleet,Transport,215013,Running Costs of Vehicles,11-Jan-17,5643496085,DVLA VEHICLE TAX,9399,Vehicle Excise Duty (VED),232.5,0,232.5
Regeneration and Local Services,Direct Services,10900,Fleet - Meadowfield Fleet,Transport,215013,Running Costs of Vehicles,11-Jan-17,5643496089,DVLA VEHICLE TAX,9399,Vehicle Excise Duty (VED),232.5,0,232.5
Regeneration and Local Services,Direct Services,10900,Fleet - Meadowfield Fleet,Transport,215013,Running Costs of Vehicles,11-Jan-17,5643496091,DVLA VEHICLE TAX,9399,Vehicle Excise Duty (VED),232.5,0,232.5
Regeneration and Local Services,Direct Services,10900,Fleet - Meadowfield Fleet,Transport,215013,Running Costs of Vehicles,11-Jan-17,5643496093,DVLA VEHICLE TAX,9399,Vehicle Excise Duty (VED),232.5,0,232.5
Regeneration and Local Services,Direct Services,10900,Fleet - Meadowfield Fleet,Transport,215013,Running Costs of Vehicles,11-Jan-17,5643496095,DVLA VEHICLE TAX,9399,Vehicle Excise Duty (VED),232.5,0,232.5
Regeneration and Local Services,Direct Services,10900,Fleet - Meadowfield Fleet,Transport,215013,Running Costs of Vehicles,11-Jan-17,5643496097,DVLA VEHICLE TAX,9399,Vehicle Excise Duty (VED),232.5,0,232.5
Regeneration and Local Services,Direct Services,10900,Fleet - Meadowfield Fleet,Transport,215013,Running Costs of Vehicles,11-Jan-17,5643496101,DVLA VEHICLE TAX,9399,Vehicle Excise Duty (VED),232.5,0,232.5
Regeneration and Local Services,Direct Services,10900,Fleet - Meadowfield Fleet,Transport,215013,Running Costs of Vehicles,11-Jan-17,5643496103,DVLA VEHICLE TAX,9399,Vehicle Excise Duty (VED),232.5,0,232.5
Children and Young Peoples Services,Childrens Services,88063,Bishop Auckland 0 - 5,Supplies and Services,324117,Provisions,11-Jan-17,5643496107,TESCO STORES 6329,5411,Catering costs - provisions,9,0,9
Regeneration and Local Services,Economic Development and Housing,30553,Europe Direct Scheme,Transport,235057,Public Transport,11-Jan-17,5643496109,NCP LIMITED,7523,Staff travelling,6.3,0,6.3
Children and Young Peoples Services,Childrens Services,88037,One Point YEI,Supplies and Services,304403,Equipment and Materials,11-Jan-17,5643496133,GRO HM PASSPORT OFFICE,9399,Other consumables,9.25,0,9.25
Children and Young Peoples Services,Childrens Services,85957,Secure Management,Supplies and Services,304403,Equipment and Materials,11-Jan-17,5643496149,Amazon UK Marketplace,5942,Other consumables,3.75,0,3.75
Children and Young Peoples Services,Childrens Services,85957,Secure Management,Supplies and Services,328041,Clothing Uniforms and Laundry,11-Jan-17,5643496153,WWW.FOOTLOCKER.EU,5661,Clothing uniforms and laundry,129.99,21.67,108.32
Children and Young Peoples Services,Childrens Services,85957,Secure Management,Supplies and Services,328041,Clothing Uniforms and Laundry,11-Jan-17,5643496157,SCOTTS INTERNET,5941,Clothing uniforms and laundry,43.99,0,43.99
Children and Young Peoples Services,Childrens Services,85957,Secure Management,Supplies and Services,328041,Clothing Uniforms and Laundry,11-Jan-17,5643496161,WWW.FOOTASYLUM.COM,5941,Clothing uniforms and laundry,104.98,0,104.98
Children and Young Peoples Services,Childrens Services,85957,Secure Management,Supplies and Services,328041,Clothing Uniforms and Laundry,11-Jan-17,5643496163,NEW LOOK INTERNET,5621,Clothing uniforms and laundry,26.98,0,26.98
Children and Young Peoples Services,Childrens Services,85957,Secure Management,Supplies and Services,324117,Provisions,11-Jan-17,5643496167,TESCO STORES 6329,5411,Catering costs - provisions,90.21,0,90.21
Children and Young Peoples Services,Childrens Services,85957,Secure Management,Supplies and Services,328041,Clothing Uniforms and Laundry,11-Jan-17,5643496169,RIVER ISLAND 400,5691,Clothing uniforms and laundry,73.95,0,73.95
Children and Young Peoples Services,Childrens Services,85957,Secure Management,Supplies and Services,328041,Clothing Uniforms and Laundry,11-Jan-17,5643496171,VERY.CO.UK,5964,Clothing uniforms and laundry,40,0,40
Children and Young Peoples Services,Childrens Services,85957,Secure Management,Supplies and Services,328041,Clothing Uniforms and Laundry,11-Jan-17,5643496173,VERY.CO.UK,5964,Clothing uniforms and laundry,40,0,40
Children and Young Peoples Services,Childrens Services,85957,Secure Management,Supplies and Services,328041,Clothing Uniforms and Laundry,11-Jan-17,5643496177,VERY.CO.UK,5964,Clothing uniforms and laundry,38,0,38
Children and Young Peoples Services,Childrens Services,85958,Support Services,Supplies and Services,328041,Clothing Uniforms and Laundry,11-Jan-17,5643496181,VERY.CO.UK,5964,Clothing uniforms and laundry,3.99,0,3.99
Children and Young Peoples Services,Childrens Services,85957,Secure Management,Supplies and Services,328041,Clothing Uniforms and Laundry,11-Jan-17,5643496183,VERY.CO.UK,5964,Clothing uniforms and laundry,3.99,0,3.99
Regeneration and Local Services,Culture & Sport,11060,Hardwick Park Catering,Supplies and Services,324117,Provisions,11-Jan-17,5643496187,JR HOLLAND FOODSERVICE,5422,Catering costs - provisions,54.89,0,54.89
Regeneration and Local Services,Culture & Sport,11060,Hardwick Park Catering,Supplies and Services,324117,Provisions,11-Jan-17,5643496189,JR HOLLAND FOODSERVICE,5422,Catering costs - provisions,34.57,0,34.57
Regeneration and Local Services,Culture & Sport,11060,Hardwick Park Catering,Supplies and Services,324117,Provisions,11-Jan-17,5643496193,BRAKE BROS LTD,5811,Catering costs - provisions,54.72,9.12,45.6
Regeneration and Local Services,Culture & Sport,11060,Hardwick Park Catering,Supplies and Services,324117,Provisions,11-Jan-17,5643496193 - 1,BRAKE BROS LTD,5811,Catering costs - provisions,89.33,,89.33
Regeneration and Local Services,Culture & Sport,11060,Hardwick Park Catering,Supplies and Services,324117,Provisions,11-Jan-17,5643496197,BRAKE BROS LTD,5811,Catering costs - provisions,109.82,0,109.82
Regeneration and Local Services,Economic Development and Housing,30762,Organisational Training & Development,Employees,40149,Recruitment Instruction and Training,11-Jan-17,5643496209,NCS VUE CITB HS&E REV,8299,Training-all costs,487.5,0,487.5
Regeneration and Local Services,Economic Development and Housing,30762,Organisational Training & Development,Employees,40149,Recruitment Instruction and Training,11-Jan-17,5643496213,CITB,8220,Training-all costs,30,0,30
Regeneration and Local Services,Direct Services,21234,Catering - Locomotion,Supplies and Services,324117,Provisions,11-Jan-17,5643496217,JR HOLLAND FOODSERVICE,5422,Catering costs - provisions,-4.92,0,-4.92
Regeneration and Local Services,Direct Services,10525,Catering - Green Lane,Supplies and Services,324117,Provisions,11-Jan-17,5643496229,JR HOLLAND FOODSERVICE,5422,Catering costs - provisions,33.92,0,33.92
Children and Young Peoples Services,Childrens Services,85352,Tow Law CU,Supplies and Services,324117,Provisions,11-Jan-17,5643496245,TESCO STORES 2371,5411,Catering costs - provisions,253.15,0,253.15
Children and Young Peoples Services,Childrens Services,88063,Bishop Auckland 0 - 5,Supplies and Services,338045,Services,11-Jan-17,5643496261,DURHAM COUNTY COUNCIL,9399,Legal expenses,10,0,10
Children and Young Peoples Services,Childrens Services,85623,Families First Bishop Auckland,Supplies and Services,384999,Miscellaneous Expenses,11-Jan-17,5643496263,ASDA STORES,5411,Other expenses,38.64,0,38.64
Regeneration and Local Services,Direct Services,10367,C&G - South Grounds Maintenance,Supplies and Services,324117,Provisions,11-Jan-17,5643496279,J M RAINE,5399,Catering costs - provisions,39,0,39
Resources,Resources Management,69000,Resources Management,Supplies and Services,324117,Provisions,11-Jan-17,5643496289,SAINSBURYS LOC4937,5411,Catering costs - provisions,10.8,0,10.8
Regeneration and Local Services,Culture & Sport,11191,Wellbeing4Life,Supplies and Services,328041,Clothing Uniforms and Laundry,11-Jan-17,5643496325,W BOYES & CO LTD NEWTO,5310,Clothing uniforms and laundry,16.49,2.75,13.74
Children and Young Peoples Services,Childrens Services,74000,TTF-Attachment and Results,Supplies and Services,304403,Equipment and Materials,11-Jan-17,5643496335,TESCO - Childrens Room,5999,Other consumables,15.9,0,15.9
Children and Young Peoples Services,Childrens Services,88094,Newton Aycliffe 5 - 19,Supplies and Services,304403,Equipment and Materials,11-Jan-17,5643496339,TESCO - Seller_IST_1_2,5999,Other consumables,146.3,0,146.3
Children and Young Peoples Services,Childrens Services,74000,TTF-Attachment and Results,Supplies and Services,304403,Equipment and Materials,11-Jan-17,5643496341,TESCO DIRECT,5999,Other consumables,132.95,0,132.95
Resources,I.C.T. Services,69010,Administration,Supplies and Services,332047,Printing Stationery and Gen Off Exps,11-Jan-17,5643496345,Amazon UK Marketplace,5942,Stationery,15.27,0,15.27
Regeneration and Local Services,Direct Services,10913,Bldg Serv - Construction General,Supplies and Services,344033,Telephones,11-Jan-17,5643496347,Amazon UK Marketplace,5942,Telephones general-all costs,41.97,0,41.97
Regeneration and Local Services,Culture & Sport,54399,Local Delivery-Libraries,Supplies and Services,312011,Newspapers Books and Periodicals,11-Jan-17,5643496351,Amazon UK Marketplace,5942,Books-school library,8.17,0,8.17
Regeneration and Local Services,Culture & Sport,54399,Local Delivery-Libraries,Supplies and Services,304403,Equipment and Materials,11-Jan-17,5643496353,AMAZON UK RETAIL AMAZO,5999,Other consumables,10.95,0,10.95
Regeneration and Local Services,Culture & Sport,54399,Local Delivery-Libraries,Supplies and Services,304403,Equipment and Materials,11-Jan-17,5643496357,AMAZON UK RETAIL AMAZO,5999,Other consumables,16,0,16
Regeneration and Local Services,Direct Services,10301,C&G - North Grounds Maintenance,Supplies and Services,304259,Equipment and Materials,11-Jan-17,5643496365,TRAVIS PERKINS,5211,Equipment-purchase and rental,289.44,48.24,241.2
Regeneration and Local Services,Direct Services,10301,C&G - North Grounds Maintenance,Supplies and Services,304403,Equipment and Materials,11-Jan-17,5643496369,BESCOL,5231,Other consumables,29.05,4.84,24.21
Regeneration and Local Services,Direct Services,10301,C&G - North Grounds Maintenance,Supplies and Services,304403,Equipment and Materials,11-Jan-17,5643496371,BESCOL,5231,Other consumables,15.37,2.56,12.81
Children and Young Peoples Services,Childrens Services,88001,Peterlee Locality,Supplies and Services,304259,Equipment and Materials,11-Jan-17,5643496387,HARTLEPOOL BC CNP,9399,Equipment-purchase and rental,14.25,0,14.25
Regeneration and Local Services,Culture & Sport,54235,Bp Auckland Town Hall Cafe,Supplies and Services,324117,Provisions,11-Jan-17,5643496395,JR HOLLAND FOODSERVICE,5422,Catering costs - provisions,31.23,0,31.23
Regeneration and Local Services,Direct Services,21324,Catering - Meadowfield,Supplies and Services,324117,Provisions,11-Jan-17,5643496417,JR HOLLAND FOODSERVICE,5422,Catering costs - provisions,29.43,0,29.43
Regeneration and Local Services,Direct Services,21324,Catering - Meadowfield,Supplies and Services,324117,Provisions,11-Jan-17,5643496419,JR HOLLAND FOODSERVICE,5422,Catering costs - provisions,13.45,0,13.45
Regeneration and Local Services,Direct Services,21324,Catering - Meadowfield,Supplies and Services,324117,Provisions,11-Jan-17,5643496421,BRAKE BROS LTD,5811,Catering costs - provisions,120.12,20.02,100.1
Regeneration and Local Services,Direct Services,21324,Catering - Meadowfield,Supplies and Services,324117,Provisions,11-Jan-17,5643496421 - 1,BRAKE BROS LTD,5811,Catering costs - provisions,42.92,,42.92
Regeneration and Local Services,Culture & Sport,11191,Wellbeing4Life,Supplies and Services,324117,Provisions,11-Jan-17,5643496493,TESCO STORES 2916,5411,Catering costs - provisions,58.08,0,58.08
Children and Young Peoples Services,Childrens Services,74000,TTF-Attachment and Results,Supplies and Services,308011,Furniture,11-Jan-17,5643496503,EDS BEDS LTD,5712,Furniture repair and replacement,131,0,131
Children and Young Peoples Services,Childrens Services,74000,TTF-Attachment and Results,Supplies and Services,308011,Furniture,11-Jan-17,5643496507,EDS BEDS LTD,5712,Furniture repair and replacement,101,0,101
Regeneration and Local Services,Direct Services,21235,Catering - Wharton Park,Supplies and Services,324117,Provisions,11-Jan-17,5643496509,JR HOLLAND FOODSERVICE,5422,Catering costs - provisions,23.06,0,23.06
Regeneration and Local Services,Culture & Sport,10605,Woodhouse Close Leisure Complex,Supplies and Services,324117,Provisions,11-Jan-17,5643496521,JR HOLLAND FOODSERVICE,5422,Catering costs - provisions,24.88,0,24.88
Regeneration and Local Services,Culture & Sport,11225,Locality 2 Team Management,Supplies and Services,328041,Clothing Uniforms and Laundry,11-Jan-17,5643496543,ARGOS LTD,5310,Clothing uniforms and laundry,116.48,0,116.48
Regeneration and Local Services,Spatial Policy Planning Assets & Environment,31200,North Pennines Core,Supplies and Services,340001,Postages,11-Jan-17,5643496559,THE POST OFFICE,9402,Postages,6.6,0,6.6
Regeneration and Local Services,Economic Development and Housing,31500,Housing Solutions - Core Team,Employees,40149,Recruitment Instruction and Training,11-Jan-17,5647635103,PREMIER INN,3811,Training-all costs,96.5,16.08,80.42
Children and Young Peoples Services,Childrens Services,85957,Secure Management,Supplies and Services,328041,Clothing Uniforms and Laundry,11-Jan-17,5647635339,SPORTSDIRECT.COM,5941,Clothing uniforms and laundry,66.98,11.16,55.82
Children and Young Peoples Services,Childrens Services,85957,Secure Management,Supplies and Services,304403,Equipment and Materials,11-Jan-17,5647635341,LIGHT/MINI IN THE BOX,5399,Other consumables,20.73,0,20.73
Children and Young Peoples Services,Childrens Services,88003,Peterlee 0 - 5,Supplies and Services,304403,Equipment and Materials,11-Jan-17,5647635587,AMAZON UK RETAIL AMAZO,5999,Other consumables,33.49,5.58,27.91
Regeneration and Local Services,Direct Services,10367,C&G - South Grounds Maintenance,Transport,215995,Running Costs of Vehicles,11-Jan-17,5652686145,SNOWBALLS (RAILWAY,5533,Vehicle running expenses,99.06,16.51,82.55
Regeneration and Local Services,Economic Development and Housing,31500,Housing Solutions - Core Team,Supplies and Services,352001,Conference Expenses,12-Jan-17,5647635101,DAYS INN,7011,Conferencesseminars fees etc,49,0,49
Regeneration and Local Services,Economic Development and Housing,31500,Housing Solutions - Core Team,Supplies and Services,352001,Conference Expenses,12-Jan-17,5647635107,TRAVELODGE,3615,Conferencesseminars fees etc,45,7.5,37.5
Regeneration and Local Services,Economic Development and Housing,31500,Housing Solutions - Core Team,Supplies and Services,348037,Subsistence,12-Jan-17,5647635109,MANOR HOUSE,5812,Subsistence,55,0,55
Dedicated Schools Grant,Dedicated Schools Grant,79044,Home Tuition - Mid,Supplies and Services,312009,Newspapers Books and Periodicals,12-Jan-17,5647635113,Amazon UK Marketplace,5942,Newspapers books and periodicals,17.22,0,17.22
Regeneration and Local Services,Direct Services,10383,C&G - South Street Cleansing,Supplies and Services,304403,Equipment and Materials,12-Jan-17,5647635125,W E & J ROWLE,5947,Other consumables,17.49,0,17.49
Children and Young Peoples Services,Childrens Services,85965,Barnard,Supplies and Services,384999,Miscellaneous Expenses,12-Jan-17,5647635133,Amazon UK Marketplace,5942,Other expenses,17.73,0,17.73
Children and Young Peoples Services,Childrens Services,85957,Secure Management,Supplies and Services,304245,Equipment and Materials,12-Jan-17,5647635135,F WS LTD,5200,Materials,268.44,0,268.44
Regeneration and Local Services,Economic Development and Housing,30699,Business Growth and Innovation General,Supplies and Services,336005,Advertising,12-Jan-17,5647635141,ADROLL,7311,Advertising other than for staff,2.53,0,2.53
Regeneration and Local Services,Economic Development and Housing,30699,Business Growth and Innovation General,Supplies and Services,304999,Equipment and Materials,12-Jan-17,5647635145,LINKEDIN-242 3114046,5968,Misc equipment tools and materials,106.8,17.8,89
Children and Young Peoples Services,Childrens Services,71746,Newton Aycliffe Childrens Centre,Supplies and Services,340001,Postages,12-Jan-17,5647635155,ROYAL MAIL ONLINE SHOP,9402,Postages,35.53,0,35.53
Resources,I.C.T. Services,70204,Operations - System & Repairs Team,Supplies and Services,332047,Printing Stationery and Gen Off Exps,12-Jan-17,5647635157,Amazon UK Marketplace,5942,Stationery,31.74,0,31.74
Regeneration and Local Services,Economic Development and Housing,30737,Durham Works Flexible Fund,Transport,230031,Contract Hire,12-Jan-17,5647635185,GO NORTH EAST - V/T,4131,Pupils-transport to play fields etc,6.4,0,6.4
Regeneration and Local Services,Economic Development and Housing,30737,Durham Works Flexible Fund,Transport,230031,Contract Hire,12-Jan-17,5647635187,GO NORTH EAST - V/T,4131,Pupils-transport to play fields etc,12.8,0,12.8
Regeneration and Local Services,Economic Development and Housing,30737,Durham Works Flexible Fund,Supplies and Services,328041,Clothing Uniforms and Laundry,12-Jan-17,5647635189,ASDA GEORGE COM LEEDS,5411,Clothing uniforms and laundry,26.5,0,26.5
Regeneration and Local Services,Direct Services,21242,Catering - County Hall,Supplies and Services,324117,Provisions,12-Jan-17,5647635191,JR HOLLAND FOODSERVICE,5422,Catering costs - provisions,105,0,105
Regeneration and Local Services,Direct Services,21242,Catering - County Hall,Supplies and Services,324117,Provisions,12-Jan-17,5647635195,JR HOLLAND FOODSERVICE,5422,Catering costs - provisions,41.06,0,41.06
Regeneration and Local Services,Direct Services,21242,Catering - County Hall,Supplies and Services,324117,Provisions,12-Jan-17,5647635201,JR HOLLAND FOODSERVICE,5422,Catering costs - provisions,13.16,0,13.16
Regeneration and Local Services,Direct Services,21242,Catering - County Hall,Supplies and Services,324117,Provisions,12-Jan-17,5647635205,BRAKE BROS LTD,5811,Catering costs - provisions,299.88,0,299.88
Regeneration and Local Services,Culture & Sport,54233,Bp Auckland Town Hall Library,Supplies and Services,312011,Newspapers Books and Periodicals,12-Jan-17,5647635209,HOME BARGAINS,5251,Books-school library,28.07,4.68,23.39
Regeneration and Local Services,Economic Development and Housing,30554,International Relations,Payments In Advance,932001,Payments in advance,12-Jan-17,5647635211,E/TUNNEL INTERNET,4789,Payments in advance,870,0,870
Regeneration and Local Services,Culture & Sport,54812,Gala Theatre - Catering etc,Supplies and Services,324117,Provisions,12-Jan-17,5647635215,JR HOLLAND FOODSERVICE,5422,Catering costs - provisions,61.29,0,61.29
Regeneration and Local Services,Economic Development and Housing,30737,Durham Works Flexible Fund,Employees,40149,Recruitment Instruction and Training,12-Jan-17,5647635299,WP-THE VIRTUAL COL,8299,Training-all costs,30,0,30
Regeneration and Local Services,Economic Development and Housing,30737,Durham Works Flexible Fund,Transport,235057,Public Transport,12-Jan-17,5647635301,WWW.SIMPLYGO.COM,4131,Staff travelling,5,0,5
Children and Young Peoples Services,Childrens Services,88094,Newton Aycliffe 5 - 19,Supplies and Services,304403,Equipment and Materials,12-Jan-17,5647635305,TESCO - Seller_IST_1_2,5999,Other consumables,58.97,0,58.97
Children and Young Peoples Services,Childrens Services,88094,Newton Aycliffe 5 - 19,Supplies and Services,304403,Equipment and Materials,12-Jan-17,5647635309,TESCO - Seller_IST_1_2,5999,Other consumables,22.99,0,22.99
Children and Young Peoples Services,Childrens Services,88094,Newton Aycliffe 5 - 19,Supplies and Services,304403,Equipment and Materials,12-Jan-17,5647635311,TESCO - Terrys Fabrics,5999,Other consumables,21.99,0,21.99
Children and Young Peoples Services,Childrens Services,88094,Newton Aycliffe 5 - 19,Supplies and Services,304403,Equipment and Materials,12-Jan-17,5647635315,TESCO DIRECT,5999,Other consumables,12,0,12
Children and Young Peoples Services,Childrens Services,88094,Newton Aycliffe 5 - 19,Supplies and Services,304403,Equipment and Materials,12-Jan-17,5647635317,TESCO-Seller_IST_1_240,5999,Other consumables,20,0,20
Children and Young Peoples Services,Childrens Services,85957,Secure Management,Supplies and Services,324117,Provisions,12-Jan-17,5647635345,TESCO STORES 6329,5411,Catering costs - provisions,127.1,0,127.1
Children and Young Peoples Services,Childrens Services,85957,Secure Management,Supplies and Services,328041,Clothing Uniforms and Laundry,12-Jan-17,5647635347,VERY.CO.UK,5964,Clothing uniforms and laundry,17,0,17
Regeneration and Local Services,Direct Services,10301,C&G - North Grounds Maintenance,Supplies and Services,304221,Equipment and Materials,12-Jan-17,5647635355,SPALDINGS LIMITED,5085,Direct materials,263.76,43.96,219.8
Regeneration and Local Services,Direct Services,10301,C&G - North Grounds Maintenance,Supplies and Services,328041,Clothing Uniforms and Laundry,12-Jan-17,5647635361,THOMAS OWEN & SONS /N/,5611,Clothing uniforms and laundry,494.52,82.42,412.1
Regeneration and Local Services,Culture & Sport,11060,Hardwick Park Catering,Supplies and Services,324117,Provisions,12-Jan-17,5647635365,JR HOLLAND FOODSERVICE,5422,Catering costs - provisions,20.07,0,20.07
Regeneration and Local Services,Culture & Sport,11060,Hardwick Park Catering,Supplies and Services,324117,Provisions,12-Jan-17,5647635369,JR HOLLAND FOODSERVICE,5422,Catering costs - provisions,1.64,0,1.64
Resources,I.C.T. Services,70204,Operations - System & Repairs Team,Supplies and Services,304999,Equipment and Materials,12-Jan-17,5647635375,THE REPLACE BASE LTD,7699,Misc equipment tools and materials,49.92,8.32,41.6
Resources,I.C.T. Services,70204,Operations - System & Repairs Team,Supplies and Services,304999,Equipment and Materials,12-Jan-17,5647635375 - 1,THE REPLACE BASE LTD,7699,Misc equipment tools and materials,2.38,,2.38
Children and Young Peoples Services,Central Charges (CYPS),85823,CDYOS North Area,Supplies and Services,312011,Newspapers Books and Periodicals,12-Jan-17,5647635413,Amazon UK Marketplace,5942,Books-school library,88.55,0,88.55
Children and Young Peoples Services,Central Charges (CYPS),85823,CDYOS North Area,Supplies and Services,312011,Newspapers Books and Periodicals,12-Jan-17,5647635415,Amazon EU,5969,Books-school library,77.94,0,77.94
Adult and Health Services,Head of Adults,55807,Newton Aycliffe Pathways,Supplies and Services,384999,Miscellaneous Expenses,12-Jan-17,5647635425,Amazon UK Marketplace,5942,Other expenses,12.95,0,12.95
Adult and Health Services,Head of Adults,55807,Newton Aycliffe Pathways,Supplies and Services,332047,Printing Stationery and Gen Off Exps,12-Jan-17,5647635429,Amazon UK Marketplace,5942,Stationery,9.98,0,9.98
Children and Young Peoples Services,Childrens Services,88037,One Point YEI,Supplies and Services,338045,Services,12-Jan-17,5647635439,DURHAM COUNTY COUNCIL,9399,Legal expenses,10,0,10
Children and Young Peoples Services,Childrens Services,88063,Bishop Auckland 0 - 5,Supplies and Services,324117,Provisions,12-Jan-17,5647635441,ASDA STORES,5411,Catering costs - provisions,7.17,0,7.17
Regeneration and Local Services,Economic Development and Housing,30749,Employability - Youth Contract,Supplies and Services,304259,Equipment and Materials,12-Jan-17,5647635457,DVLA DRIVER ONLINE,9399,Equipment-purchase and rental,20,0,20
Children and Young Peoples Services,Childrens Services,85333,Coxhoe Satelite Home,Supplies and Services,324117,Provisions,12-Jan-17,5647635459,ALDI,5411,Catering costs - provisions,48.32,0,48.32
Children and Young Peoples Services,Childrens Services,71443,Stanley One Point Hub,Supplies and Services,312011,Newspapers Books and Periodicals,12-Jan-17,5647635461,Amazon UK Marketplace,5942,Books-school library,85.75,0,85.75
Regeneration and Local Services,Direct Services,10367,C&G - South Grounds Maintenance,Supplies and Services,304259,Equipment and Materials,12-Jan-17,5647635465,WINDROW SPORTS,5941,Equipment-purchase and rental,14.1,0,14.1
Resources,I.C.T. Services,65487,ICT Telephony Recharges,Supplies and Services,344033,Telephones,12-Jan-17,5647635467,Amazon UK Marketplace,5942,Telephones general-all costs,280,0,280
Resources,Legal & Democratic Services,67910,Democratic Representation,Supplies and Services,332047,Printing Stationery and Gen Off Exps,12-Jan-17,5647635469,ABSOLUTE,5719,Stationery,50.99,8.5,42.49
Resources,I.C.T. Services,65350,Cultural Change and New Ways of Working,Employees,40149,Recruitment Instruction and Training,12-Jan-17,5647635471,PAYPAL CIATRAINING,5942,Training-all costs,38,0,38
Regeneration and Local Services,Direct Services,10301,C&G - North Grounds Maintenance,Supplies and Services,328041,Clothing Uniforms and Laundry,12-Jan-17,5647635491,THOMAS OWEN & SONS /N/,5611,Clothing uniforms and laundry,449.28,74.88,374.4
Regeneration and Local Services,Direct Services,10301,C&G - North Grounds Maintenance,Supplies and Services,304259,Equipment and Materials,12-Jan-17,5647635493,HARELAW SAWMILL,5211,Equipment-purchase and rental,104.77,17.46,87.31
Children and Young Peoples Services,Childrens Services,88001,Peterlee Locality,Supplies and Services,304259,Equipment and Materials,12-Jan-17,5647635501,MANCHESTER CC - REGIST,9399,Equipment-purchase and rental,11,0,11
Regeneration and Local Services,Transport and Contracted Services,31701,Care Connect All Localities,Supplies and Services,344033,Telephones,12-Jan-17,5647635503,BT BILL PAYMENT 2,4812,Telephones general-all costs,-65.59,-10.93,-54.66
Regeneration and Local Services,Direct Services,10301,C&G - North Grounds Maintenance,Supplies and Services,328041,Clothing Uniforms and Laundry,12-Jan-17,5647635527,THOMAS OWEN & SONS /N/,5611,Clothing uniforms and laundry,337.1,56.18,280.92
Children and Young Peoples Services,Childrens Services,85331,New Lea Childrens Home,Transport,235057,Public Transport,12-Jan-17,5647635559,WWW.SIMPLYGO.COM,4131,Staff travelling,15.5,0,15.5
Regeneration and Local Services,Culture & Sport,10605,Woodhouse Close Leisure Complex,Supplies and Services,324117,Provisions,12-Jan-17,5647635567,BRAKE BROS LTD,5811,Catering costs - provisions,60.12,10.02,50.1
Regeneration and Local Services,Culture & Sport,10605,Woodhouse Close Leisure Complex,Supplies and Services,324117,Provisions,12-Jan-17,5647635567 - 1,BRAKE BROS LTD,5811,Catering costs - provisions,60.7,,60.7
Adult and Health Services,Head of Adults,51602,OP/PD Derwentside,Supplies and Services,384956,Miscellaneous Expenses,12-Jan-17,5647635569,WWW.GOV.UK,8999,Licences,40,0,40
Regeneration and Local Services,Economic Development and Housing,30554,International Relations,Payments In Advance,932001,Payments in advance,12-Jan-17,5647635583,E/TUNNEL INTERNET,4789,Payments in advance,870,0,870
Children and Young Peoples Services,Childrens Services,88011,Seaham Locality,Supplies and Services,304259,Equipment and Materials,12-Jan-17,5647635591,GRO HM PASSPORT OFFICE,9399,Equipment-purchase and rental,93.6,0,93.6
Regeneration and Local Services,Direct Services,10383,C&G - South Street Cleansing,Transport,215995,Running Costs of Vehicles,12-Jan-17,5652685827,SNOWBALLS (RAILWAY,5533,Vehicle running expenses,148.37,24.73,123.64
Regeneration and Local Services,Economic Development and Housing,30699,Business Growth and Innovation General,Supplies and Services,336005,Advertising,13-Jan-17,5647635147,ADROLL,7311,Advertising other than for staff,0.07,0,0.07
Children and Young Peoples Services,Childrens Services,85333,Coxhoe Satelite Home,Supplies and Services,312011,Newspapers Books and Periodicals,13-Jan-17,5647635517,Amazon UK Marketplace,5942,Books-school library,26.99,0,26.99
Children and Young Peoples Services,Education,71801,Selby Cottage Childcare Centre,Supplies and Services,324117,Provisions,13-Jan-17,5652685783,TESCO STORES 2278,5411,Catering costs - provisions,11.15,0,11.15
Children and Young Peoples Services,Education,71801,Selby Cottage Childcare Centre,Supplies and Services,304259,Equipment and Materials,13-Jan-17,5652685785,WILKO RETAIL LIMIT,5722,Equipment-purchase and rental,67.85,0,67.85
Regeneration and Local Services,Economic Development and Housing,39679,Group Repair - Dawdon Ph 9,Income,720130,Fees and Charges,13-Jan-17,5652685799,HMCOURT-SERVICES.G,9222,Fees-legal,110,0,110
Children and Young Peoples Services,Education,71733,Shildon Childcare,Income,720130,Fees and Charges,13-Jan-17,5652685803,WWW.MONEYCLAIM.GOV,9399,Fees-legal,60,0,60
Regeneration and Local Services,Economic Development and Housing,31500,Housing Solutions - Core Team,Supplies and Services,352001,Conference Expenses,13-Jan-17,5652685811,TRAVELODGE,3615,Conferencesseminars fees etc,133,22.17,110.83
Children and Young Peoples Services,Childrens Services,85965,Barnard,Supplies and Services,384999,Miscellaneous Expenses,13-Jan-17,5652685837,Amazon UK Marketplace,5942,Other expenses,17.98,0,17.98
Children and Young Peoples Services,Childrens Services,85957,Secure Management,Supplies and Services,304245,Equipment and Materials,13-Jan-17,5652685841,SCREWFIX DIRECT,5211,Materials,23.86,0,23.86
Children and Young Peoples Services,Childrens Services,85955,Auckland,Supplies and Services,304259,Equipment and Materials,13-Jan-17,5652685843,ARGOS RETAIL GROUP,5310,Equipment-purchase and rental,18.94,0,18.94
Regeneration and Local Services,Economic Development and Housing,30699,Business Growth and Innovation General,Supplies and Services,336005,Advertising,13-Jan-17,5652685853,TWITTER ADVERTISING,7311,Advertising other than for staff,60,0,60
Regeneration and Local Services,Spatial Policy Planning Assets & Environment,31222,North Pennines Allen Valleys Landscape Partnership,Supplies and Services,304259,Equipment and Materials,13-Jan-17,5652685875,CORE MUSIC CIC LTD,5733,Equipment-purchase and rental,50,0,50
Regeneration and Local Services,Spatial Policy Planning Assets & Environment,31222,North Pennines Allen Valleys Landscape Partnership,Supplies and Services,348037,Subsistence,13-Jan-17,5652685879,IZ PHILLIPSON PUBS LI,5812,Subsistence,22.55,0,22.55
Regeneration and Local Services,Economic Development and Housing,30737,Durham Works Flexible Fund,Transport,235057,Public Transport,13-Jan-17,5652685919,GO NORTH EAST - V/T,4131,Staff travelling,6.4,0,6.4
Regeneration and Local Services,Direct Services,21242,Catering - County Hall,Supplies and Services,324117,Provisions,13-Jan-17,5652685923,JR HOLLAND FOODSERVICE,5422,Catering costs - provisions,40.72,0,40.72
Regeneration and Local Services,Direct Services,21242,Catering - County Hall,Supplies and Services,324117,Provisions,13-Jan-17,5652685927,JR HOLLAND FOODSERVICE,5422,Catering costs - provisions,13.16,0,13.16
Regeneration and Local Services,Direct Services,21242,Catering - County Hall,Supplies and Services,324117,Provisions,13-Jan-17,5652685929,BRAKE BROS LTD,5811,Catering costs - provisions,305.64,50.94,254.7
Regeneration and Local Services,Direct Services,21242,Catering - County Hall,Supplies and Services,324117,Provisions,13-Jan-17,5652685929 - 1,BRAKE BROS LTD,5811,Catering costs - provisions,378.31,,378.31
Regeneration and Local Services,Direct Services,10367,C&G - South Grounds Maintenance,Transport,215995,Running Costs of Vehicles,13-Jan-17,5652685945,SNOWBALLS (RAILWAY,5533,Vehicle running expenses,88.8,14.8,74
Regeneration and Local Services,Direct Services,10900,Fleet - Meadowfield Fleet,Transport,215013,Running Costs of Vehicles,13-Jan-17,5652685989,DVLA VEHICLE TAX,9399,Vehicle Excise Duty (VED),652.5,0,652.5
Children and Young Peoples Services,Childrens Services,85957,Secure Management,Supplies and Services,324117,Provisions,13-Jan-17,5652686033,TESCO STORES 6329,5411,Catering costs - provisions,76.42,0,76.42
Children and Young Peoples Services,Childrens Services,85957,Secure Management,Supplies and Services,328041,Clothing Uniforms and Laundry,13-Jan-17,5652686037,WWW.BOOHOO.COM,5691,Clothing uniforms and laundry,-52,0,-52
Regeneration and Local Services,Direct Services,10301,C&G - North Grounds Maintenance,Supplies and Services,304221,Equipment and Materials,13-Jan-17,5652686057,AGRATECH SERVICES,5599,Direct materials,137.11,22.85,114.26
Regeneration and Local Services,Culture & Sport,11060,Hardwick Park Catering,Supplies and Services,324117,Provisions,13-Jan-17,5652686063,JR HOLLAND FOODSERVICE,5422,Catering costs - provisions,59.62,0,59.62
Regeneration and Local Services,Culture & Sport,11060,Hardwick Park Catering,Supplies and Services,324117,Provisions,13-Jan-17,5652686067,BRAKE BROS LTD,5811,Catering costs - provisions,147.42,24.57,122.85
Regeneration and Local Services,Culture & Sport,11060,Hardwick Park Catering,Supplies and Services,324117,Provisions,13-Jan-17,5652686067 - 1,BRAKE BROS LTD,5811,Catering costs - provisions,156,,156
Regeneration and Local Services,Culture & Sport,54815,Gala Theatre Stage School,Supplies and Services,304999,Equipment and Materials,13-Jan-17,5652686081,BIGDUG LIMITED,5072,Misc equipment tools and materials,210,35,175
Regeneration and Local Services,Economic Development and Housing,30762,Organisational Training & Development,Employees,40149,Recruitment Instruction and Training,13-Jan-17,5652686083,CITB,8220,Training-all costs,30,0,30
Regeneration and Local Services,Direct Services,10525,Catering - Green Lane,Supplies and Services,324117,Provisions,13-Jan-17,5652686107,JR HOLLAND FOODSERVICE,5422,Catering costs - provisions,65.01,0,65.01
Children and Young Peoples Services,Childrens Services,85352,Tow Law CU,Supplies and Services,308011,Furniture,13-Jan-17,5652686123,FLAIR BLINDS LIMITED,5712,Furniture repair and replacement,125,0,125
Adult and Health Services,Head of Adults,51622,OP/PD Dales,Supplies and Services,340001,Postages,13-Jan-17,5652686167,ROYAL MAIL ONLINE SHOP,9402,Postages,110,0,110
Regeneration and Local Services,Direct Services,10301,C&G - North Grounds Maintenance,Supplies and Services,304221,Equipment and Materials,13-Jan-17,5652686207,SPALDINGS LIMITED,5085,Direct materials,392.35,0,392.35
Regeneration and Local Services,Culture & Sport,54235,Bp Auckland Town Hall Cafe,Supplies and Services,324117,Provisions,13-Jan-17,5652686225,JR HOLLAND FOODSERVICE,5422,Catering costs - provisions,19.55,0,19.55
Regeneration and Local Services,Transport and Contracted Services,31701,Care Connect All Localities,Supplies and Services,344033,Telephones,13-Jan-17,5652686233,BT BILL PAYMENT 2,4812,Telephones general-all costs,88.47,14.75,73.72
Regeneration and Local Services,Transport and Contracted Services,31701,Care Connect All Localities,Supplies and Services,344033,Telephones,13-Jan-17,5652686237,BT BILL PAYMENT 2,4812,Telephones general-all costs,6.78,1.13,5.65
Regeneration and Local Services,Transport and Contracted Services,31701,Care Connect All Localities,Supplies and Services,344033,Telephones,13-Jan-17,5652686241,BT BILL PAYMENT 2,4812,Telephones general-all costs,15.3,2.55,12.75
Regeneration and Local Services,Direct Services,21324,Catering - Meadowfield,Supplies and Services,324117,Provisions,13-Jan-17,5652686245,JR HOLLAND FOODSERVICE,5422,Catering costs - provisions,46.47,0,46.47
Regeneration and Local Services,Direct Services,21324,Catering - Meadowfield,Supplies and Services,324117,Provisions,13-Jan-17,5652686251,JR HOLLAND FOODSERVICE,5422,Catering costs - provisions,9.87,0,9.87
Regeneration and Local Services,Direct Services,10301,C&G - North Grounds Maintenance,Supplies and Services,304999,Equipment and Materials,13-Jan-17,5652686293,GUSTHARTS CHAINSAW CTR,7699,Misc equipment tools and materials,95.54,15.92,79.62
Regeneration and Local Services,Culture & Sport,11086,Positive Futures,Supplies and Services,324117,Provisions,13-Jan-17,5652686323,W M MORRISONS,5411,Catering costs - provisions,21.03,0,21.03
Resources,Financial Services,65166,Finance - Post Entry Training,Supplies and Services,312009,Newspapers Books and Periodicals,13-Jan-17,5652686373,WWW.CIPS.ORG,8699,Newspapers books and periodicals,41.25,0,41.25
Resources,Financial Services,65166,Finance - Post Entry Training,Employees,40149,Recruitment Instruction and Training,13-Jan-17,5652686377,WWW.CIPS.ORG,8699,Training-all costs,99.96,0,99.96
Regeneration and Local Services,Spatial Policy Planning Assets & Environment,31200,North Pennines Core,Supplies and Services,328041,Clothing Uniforms and Laundry,13-Jan-17,5652686393,SAFETYSUPPL,5311,Clothing uniforms and laundry,42.24,7.04,35.2
Regeneration and Local Services,Spatial Policy Planning Assets & Environment,31200,North Pennines Core,Supplies and Services,328041,Clothing Uniforms and Laundry,13-Jan-17,5652686393 - 1,SAFETYSUPPL,5311,Clothing uniforms and laundry,5.07,,5.07
Regeneration and Local Services,Spatial Policy Planning Assets & Environment,31200,North Pennines Core,Supplies and Services,324117,Provisions,13-Jan-17,5652686395,SCOTMID CO-OP STANHOPE,5411,Catering costs - provisions,1.74,0,1.74
Children and Young Peoples Services,Childrens Services,85352,Tow Law CU,Supplies and Services,328041,Clothing Uniforms and Laundry,13-Jan-17,5661992033,LACOSTE DEVANLAY E COM,5691,Clothing uniforms and laundry,32,0,32
Children and Young Peoples Services,Childrens Services,85342,9 Cedar Drive Aycliffe,Supplies and Services,324117,Provisions,14-Jan-17,5652685851,TESCO STORES 2916,5411,Catering costs - provisions,165.99,0,165.99
Regeneration and Local Services,Economic Development and Housing,30699,Business Growth and Innovation General,Supplies and Services,342033,Computers and Communications,14-Jan-17,5652685855,WATCHFULPAYPAL,7379,Computer hardware,16.44,0,16.44
Children and Young Peoples Services,Childrens Services,85957,Secure Management,Supplies and Services,324117,Provisions,14-Jan-17,5652686039,TESCO STORES 6329,5411,Catering costs - provisions,124.44,0,124.44
Children and Young Peoples Services,Childrens Services,85957,Secure Management,Supplies and Services,328041,Clothing Uniforms and Laundry,14-Jan-17,5652686041,VERY.CO.UK,5964,Clothing uniforms and laundry,25,0,25
Resources,Resources Management,69000,Resources Management,Supplies and Services,324117,Provisions,14-Jan-17,5652686157,SAINSBURYS (2303),5411,Catering costs - provisions,3.5,0,3.5
Regeneration and Local Services,Culture & Sport,11191,Wellbeing4Life,Supplies and Services,324117,Provisions,14-Jan-17,5652686161,ALDI,5411,Catering costs - provisions,17.98,3,14.98
Regeneration and Local Services,Culture & Sport,54399,Local Delivery-Libraries,Supplies and Services,304999,Equipment and Materials,14-Jan-17,5652686183,Amazon Prime,5968,Misc equipment tools and materials,7.99,0,7.99
Adult and Health Services,Planning & Service Strategy,52968,Service Support Various,Supplies and Services,372009,Subscriptions,14-Jan-17,5658940691,SURVEYMONKEY.COM,5968,Subscriptions,300,0,300
Regeneration and Local Services,Economic Development and Housing,30699,Business Growth and Innovation General,Supplies and Services,312011,Newspapers Books and Periodicals,15-Jan-17,5652685859,FASTHOSTS INTERNET,4816,Books-school library,74.35,12.39,61.96
Regeneration and Local Services,Economic Development and Housing,30699,Business Growth and Innovation General,Supplies and Services,312011,Newspapers Books and Periodicals,15-Jan-17,5652685861,FASTHOSTS INTERNET,4816,Books-school library,40.75,6.79,33.96
Regeneration and Local Services,Economic Development and Housing,30699,Business Growth and Innovation General,Supplies and Services,312011,Newspapers Books and Periodicals,15-Jan-17,5652685865,FASTHOSTS INTERNET,4816,Books-school library,440.16,73.36,366.8
Regeneration and Local Services,Economic Development and Housing,30699,Business Growth and Innovation General,Supplies and Services,312011,Newspapers Books and Periodicals,15-Jan-17,5652685869,FASTHOSTS INTERNET,4816,Books-school library,26.38,4.4,21.98
Children and Young Peoples Services,Childrens Services,85957,Secure Management,Supplies and Services,328041,Clothing Uniforms and Laundry,15-Jan-17,5652686043,WWW.FOOTASYLUM.COM,5941,Clothing uniforms and laundry,-149.99,0,-149.99
Children and Young Peoples Services,Childrens Services,85352,Tow Law CU,Supplies and Services,324117,Provisions,15-Jan-17,5652686125,TESCO STORES 2371,5411,Catering costs - provisions,148.67,24.78,123.89
Regeneration and Local Services,Culture & Sport,54399,Local Delivery-Libraries,Supplies and Services,304403,Equipment and Materials,15-Jan-17,5658940701,AMAZON UK RETAIL AMAZO,5999,Other consumables,17.98,0,17.98
Regeneration and Local Services,Economic Development and Housing,30699,Business Growth and Innovation General,Supplies and Services,342033,Computers and Communications,16-Jan-17,5652685873,WATCHFULPAYPAL,7379,Computer hardware,0.45,0,0.45
Children and Young Peoples Services,Education,71801,Selby Cottage Childcare Centre,Supplies and Services,328041,Clothing Uniforms and Laundry,16-Jan-17,5658940415,POUNDLAND LTD 1330,5310,Clothing uniforms and laundry,32.15,0,32.15
Children and Young Peoples Services,Education,71801,Selby Cottage Childcare Centre,Supplies and Services,304259,Equipment and Materials,16-Jan-17,5658940417,WILKO RETAIL LIMIT,5722,Equipment-purchase and rental,23.89,0,23.89
Children and Young Peoples Services,Education,71801,Selby Cottage Childcare Centre,Supplies and Services,324117,Provisions,16-Jan-17,5658940419,ASDA HOME SHOPPING,5411,Catering costs - provisions,115.69,0,115.69
Children and Young Peoples Services,Education,71801,Selby Cottage Childcare Centre,Supplies and Services,324117,Provisions,16-Jan-17,5658940421,ASDA HOME SHOPPING,5411,Catering costs - provisions,41.61,0,41.61
Children and Young Peoples Services,Education,71801,Selby Cottage Childcare Centre,Supplies and Services,328041,Clothing Uniforms and Laundry,16-Jan-17,5658940423,B&M RETAIL LTD,5310,Clothing uniforms and laundry,46.69,0,46.69
Children and Young Peoples Services,Childrens Services,88093,Newton Aycliffe 0 - 5,Supplies and Services,324117,Provisions,16-Jan-17,5658940431,ASDA HOME SHOPPING,5411,Catering costs - provisions,31.94,0,31.94
Children and Young Peoples Services,Childrens Services,88093,Newton Aycliffe 0 - 5,Supplies and Services,324117,Provisions,16-Jan-17,5658940433,ASDA HOME SHOPPING,5411,Catering costs - provisions,-2,0,-2
Regeneration and Local Services,Economic Development and Housing,31500,Housing Solutions - Core Team,Supplies and Services,352001,Conference Expenses,16-Jan-17,5658940439,TRAVELODGE,3615,Conferencesseminars fees etc,41,6.83,34.17
Children and Young Peoples Services,Childrens Services,85957,Secure Management,Supplies and Services,338057,Services,16-Jan-17,5658940451,CETOX,5047,Medical fees,11,0,11
Regeneration and Local Services,Direct Services,21242,Catering - County Hall,Supplies and Services,324117,Provisions,16-Jan-17,5658940469,BRAMBLES FOODS LTD,5499,Catering costs - provisions,471.73,0,471.73
Regeneration and Local Services,Direct Services,21242,Catering - County Hall,Supplies and Services,324117,Provisions,16-Jan-17,5658940471,JR HOLLAND FOODSERVICE,5422,Catering costs - provisions,61.88,0,61.88
Regeneration and Local Services,Direct Services,21242,Catering - County Hall,Supplies and Services,324117,Provisions,16-Jan-17,5658940475,JR HOLLAND FOODSERVICE,5422,Catering costs - provisions,13.52,0,13.52
Regeneration and Local Services,Direct Services,21242,Catering - County Hall,Supplies and Services,324117,Provisions,16-Jan-17,5658940477,BRAKE BROS LTD,5811,Catering costs - provisions,210.74,0,210.74
Regeneration and Local Services,Direct Services,10900,Fleet - Meadowfield Fleet,Transport,215013,Running Costs of Vehicles,16-Jan-17,5658940521,POST OFFICE COUNTER,9402,Vehicle Excise Duty (VED),237.5,0,237.5
Regeneration and Local Services,Direct Services,10561,Fleet - Morrison Busty Fleet,Transport,215013,Running Costs of Vehicles,16-Jan-17,5658940523,POST OFFICE COUNTER,9402,Vehicle Excise Duty (VED),237.5,0,237.5
Children and Young Peoples Services,Childrens Services,88063,Bishop Auckland 0 - 5,Supplies and Services,324117,Provisions,16-Jan-17,5658940527,SPAR - GEM WEST AUCKLA,5411,Catering costs - provisions,3.09,0,3.09
Regeneration and Local Services,Economic Development and Housing,30749,Employability - Youth Contract,Transport,235005,Public Transport,16-Jan-17,5658940529,ARRIVA PASSENGER S,7538,Contract tickets,6.5,0,6.5
Regeneration and Local Services,Economic Development and Housing,30749,Employability - Youth Contract,Transport,235005,Public Transport,16-Jan-17,5658940531,ARRIVA PASSENGER S,7538,Contract tickets,7.8,0,7.8
Children and Young Peoples Services,Education,71732,Dean Bank Childcare,Supplies and Services,324117,Provisions,16-Jan-17,5658940535,ASDA HOME SHOPPING,5411,Catering costs - provisions,41.33,0,41.33
Children and Young Peoples Services,Education,71732,Dean Bank Childcare,Supplies and Services,324117,Provisions,16-Jan-17,5658940537,ASDA HOME SHOPPING,5411,Catering costs - provisions,-0.3,0,-0.3
Resources,Legal & Democratic Services,67910,Democratic Representation,Supplies and Services,324117,Provisions,16-Jan-17,5658940541,SAINSBURYS 2199,5411,Catering costs - provisions,7.6,0,7.6
Regeneration and Local Services,Economic Development and Housing,30737,Durham Works Flexible Fund,Transport,235057,Public Transport,16-Jan-17,5658940555,WWW.SIMPLYGO.COM,4131,Staff travelling,6.4,0,6.4
Regeneration and Local Services,Economic Development and Housing,30737,Durham Works Flexible Fund,Transport,235057,Public Transport,16-Jan-17,5658940557,WWW.SIMPLYGO.COM,4131,Staff travelling,5,0,5
Regeneration and Local Services,Economic Development and Housing,30737,Durham Works Flexible Fund,Transport,235057,Public Transport,16-Jan-17,5658940561,WWW.SIMPLYGO.COM,4131,Staff travelling,5,0,5
Regeneration and Local Services,Direct Services,10301,C&G - North Grounds Maintenance,Supplies and Services,312011,Newspapers Books and Periodicals,16-Jan-17,5658940581,DAVID DIXON LTD,5251,Books-school library,51.84,0,51.84
Regeneration and Local Services,Culture & Sport,11060,Hardwick Park Catering,Supplies and Services,324117,Provisions,16-Jan-17,5658940583,BRAKE BROS LTD,5811,Catering costs - provisions,14.88,2.48,12.4
Regeneration and Local Services,Culture & Sport,11060,Hardwick Park Catering,Supplies and Services,324117,Provisions,16-Jan-17,5658940583 - 1,BRAKE BROS LTD,5811,Catering costs - provisions,60.72,,60.72
Regeneration and Local Services,Direct Services,21234,Catering - Locomotion,Supplies and Services,324117,Provisions,16-Jan-17,5658940591,BRAMBLES FOODS LTD,5499,Catering costs - provisions,185.23,0,185.23
Regeneration and Local Services,Direct Services,10525,Catering - Green Lane,Supplies and Services,324117,Provisions,16-Jan-17,5658940599,BRAMBLES FOODS LTD,5499,Catering costs - provisions,87.26,0,87.26
Regeneration and Local Services,Direct Services,10525,Catering - Green Lane,Supplies and Services,324117,Provisions,16-Jan-17,5658940601,BRAKE BROS LTD,5811,Catering costs - provisions,82.42,0,82.42
Children and Young Peoples Services,Childrens Services,88037,One Point YEI,Supplies and Services,338045,Services,16-Jan-17,5658940617,DURHAM COUNTY COUNCIL,9399,Legal expenses,10,0,10
Children and Young Peoples Services,Childrens Services,88063,Bishop Auckland 0 - 5,Supplies and Services,324117,Provisions,16-Jan-17,5658940619,LIDL UK,5411,Catering costs - provisions,36,0,36
Children and Young Peoples Services,Childrens Services,85333,Coxhoe Satelite Home,Supplies and Services,324117,Provisions,16-Jan-17,5658940643,TESCO STORES 2371,5411,Catering costs - provisions,19.52,0,19.52
Children and Young Peoples Services,Childrens Services,88043,Consett 0 - 5,Supplies and Services,312011,Newspapers Books and Periodicals,16-Jan-17,5658940649,Amazon UK Marketplace,5942,Books-school library,43.2,0,43.2
Children and Young Peoples Services,Childrens Services,88043,Consett 0 - 5,Supplies and Services,308011,Furniture,16-Jan-17,5658940651,MAGUIRES,5713,Furniture repair and replacement,150,0,150
Children and Young Peoples Services,Childrens Services,88043,Consett 0 - 5,Supplies and Services,384237,Miscellaneous Expenses,16-Jan-17,5658940655,THE GIANTS GARDEN LTD,7999,Recreational exps outings parties,51,0,51
Children and Young Peoples Services,Childrens Services,88043,Consett 0 - 5,Supplies and Services,312011,Newspapers Books and Periodicals,16-Jan-17,5658940659,Amazon UK Marketplace,5942,Books-school library,32.51,0,32.51
Children and Young Peoples Services,Childrens Services,88043,Consett 0 - 5,Supplies and Services,312011,Newspapers Books and Periodicals,16-Jan-17,5658940663,Amazon UK Marketplace,5942,Books-school library,9.65,0,9.65
Children and Young Peoples Services,Childrens Services,85555,Child Protection Team Peterlee,Supplies and Services,384199,Miscellaneous Expenses,16-Jan-17,5658940681,MIDDLESBROUGH COUNCIL,9399,Other hired and contracted services,72,0,72
Children and Young Peoples Services,Childrens Services,85100,Child Protection & Disabilty Strategic Manager,Supplies and Services,384199,Miscellaneous Expenses,16-Jan-17,5658940685,SUNDERLAND CC,9399,Other hired and contracted services,10,0,10
Children and Young Peoples Services,Childrens Services,85555,Child Protection Team Peterlee,Supplies and Services,384199,Miscellaneous Expenses,16-Jan-17,5658940687,STOCKTON BOROUGH COUNC,9399,Other hired and contracted services,73,0,73
Regeneration and Local Services,Culture & Sport,54399,Local Delivery-Libraries,Supplies and Services,312011,Newspapers Books and Periodicals,16-Jan-17,5658940699,Amazon EU,5969,Books-school library,11.39,0,11.39
Regeneration and Local Services,Direct Services,10301,C&G - North Grounds Maintenance,Supplies and Services,304403,Equipment and Materials,16-Jan-17,5658940725,BESCOL,5231,Other consumables,45.8,7.63,38.17
Regeneration and Local Services,Culture & Sport,54235,Bp Auckland Town Hall Cafe,Supplies and Services,324117,Provisions,16-Jan-17,5658940737,BRAKE BROS LTD,5811,Catering costs - provisions,74.7,0,74.7
Regeneration and Local Services,Culture & Sport,54235,Bp Auckland Town Hall Cafe,Supplies and Services,324117,Provisions,16-Jan-17,5658940739,BRAKE BROS LTD,5811,Catering costs - provisions,43.14,0,43.14
Regeneration and Local Services,Direct Services,21324,Catering - Meadowfield,Supplies and Services,324117,Provisions,16-Jan-17,5658940741,BRAMBLES FOODS LTD,5499,Catering costs - provisions,80.4,0,80.4
Regeneration and Local Services,Culture & Sport,11086,Positive Futures,Supplies and Services,324117,Provisions,16-Jan-17,5658940763,TESCO STORES 6502,5411,Catering costs - provisions,2,0,2
Regeneration and Local Services,Technical Services,10984,Training and Development,Supplies and Services,312011,Newspapers Books and Periodicals,16-Jan-17,5658940767,Amazon EU,5969,Books-school library,114.31,0,114.31
Regeneration and Local Services,Direct Services,21235,Catering - Wharton Park,Supplies and Services,324117,Provisions,16-Jan-17,5658940827,BRAMBLES FOODS LTD,5499,Catering costs - provisions,197.13,0,197.13
Regeneration and Local Services,Direct Services,21235,Catering - Wharton Park,Supplies and Services,324117,Provisions,16-Jan-17,5658940829,JR HOLLAND FOODSERVICE,5422,Catering costs - provisions,47.02,0,47.02
Regeneration and Local Services,Culture & Sport,10605,Woodhouse Close Leisure Complex,Supplies and Services,324117,Provisions,16-Jan-17,5658940839,JR HOLLAND FOODSERVICE,5422,Catering costs - provisions,38.65,0,38.65
Regeneration and Local Services,Culture & Sport,10605,Woodhouse Close Leisure Complex,Supplies and Services,324117,Provisions,16-Jan-17,5658940843,BRAKE BROS LTD,5811,Catering costs - provisions,88.43,0,88.43
Regeneration and Local Services,Economic Development and Housing,30749,Employability - Youth Contract,Transport,215995,Running Costs of Vehicles,16-Jan-17,5658940861,BRIDGE END GARAGE,5541,Vehicle running expenses,51,0,51
Children and Young Peoples Services,Childrens Services,85333,Coxhoe Satelite Home,Supplies and Services,324117,Provisions,16-Jan-17,5661992095,ALDI,5411,Catering costs - provisions,21.68,0,21.68
Regeneration and Local Services,Direct Services,10367,C&G - South Grounds Maintenance,Transport,215995,Running Costs of Vehicles,16-Jan-17,5665828085,SNOWBALLS (RAILWAY,5533,Vehicle running expenses,64.8,10.8,54
Regeneration and Local Services,Direct Services,10367,C&G - South Grounds Maintenance,Transport,215995,Running Costs of Vehicles,16-Jan-17,5665828087,SNOWBALLS (RAILWAY,5533,Vehicle running expenses,46.93,7.82,39.11
Children and Young Peoples Services,Childrens Services,85957,Secure Management,Supplies and Services,328041,Clothing Uniforms and Laundry,17-Jan-17,5661991693,M and M Direct Ltd,5941,Clothing uniforms and laundry,42.47,0,42.47
Children and Young Peoples Services,Childrens Services,85957,Secure Management,Supplies and Services,328041,Clothing Uniforms and Laundry,17-Jan-17,5661991697,LOOFECLOTHING.COM,5611,Clothing uniforms and laundry,47.94,0,47.94
Children and Young Peoples Services,Childrens Services,85957,Secure Management,Supplies and Services,328041,Clothing Uniforms and Laundry,17-Jan-17,5661991699,WWW.FOOTASYLUM.COM,5941,Clothing uniforms and laundry,74.98,0,74.98
Children and Young Peoples Services,Childrens Services,85957,Secure Management,Supplies and Services,328041,Clothing Uniforms and Laundry,17-Jan-17,5661991703,VERY.CO.UK,5964,Clothing uniforms and laundry,105,0,105
Children and Young Peoples Services,Childrens Services,85957,Secure Management,Supplies and Services,328041,Clothing Uniforms and Laundry,17-Jan-17,5661991707,VERY.CO.UK,5964,Clothing uniforms and laundry,17.5,0,17.5
Children and Young Peoples Services,Childrens Services,85957,Secure Management,Supplies and Services,342033,Computers and Communications,17-Jan-17,5661991709,VERY.CO.UK,5964,Computer hardware,3.99,0,3.99
Children and Young Peoples Services,Childrens Services,85957,Secure Management,Supplies and Services,328041,Clothing Uniforms and Laundry,17-Jan-17,5661991711,VERY.CO.UK,5964,Clothing uniforms and laundry,3.99,0,3.99
Children and Young Peoples Services,Childrens Services,85957,Secure Management,Supplies and Services,384999,Miscellaneous Expenses,17-Jan-17,5661991713,ARGOS RETAIL GROUP,5310,Other expenses,13.94,0,13.94
Regeneration and Local Services,Economic Development and Housing,30699,Business Growth and Innovation General,Supplies and Services,304999,Equipment and Materials,17-Jan-17,5661991721,PatentInspirationEU,5817,Misc equipment tools and materials,87.38,0,87.38
Regeneration and Local Services,Economic Development and Housing,30737,Durham Works Flexible Fund,Supplies and Services,384999,Miscellaneous Expenses,17-Jan-17,5661991787,ASDA STORES LTD,5411,Other expenses,10,0,10
Regeneration and Local Services,Economic Development and Housing,30737,Durham Works Flexible Fund,Supplies and Services,384999,Miscellaneous Expenses,17-Jan-17,5661991791,ASDA STORES LTD,5411,Other expenses,10,0,10
Regeneration and Local Services,Direct Services,21242,Catering - County Hall,Supplies and Services,324117,Provisions,17-Jan-17,5661991797,FREEMAN CATERING BUTCH,5422,Catering costs - provisions,97.55,0,97.55
Regeneration and Local Services,Direct Services,21242,Catering - County Hall,Supplies and Services,324117,Provisions,17-Jan-17,5661991803,FREEMAN CATERING BUTCH,5422,Catering costs - provisions,79.07,0,79.07
Regeneration and Local Services,Direct Services,21242,Catering - County Hall,Supplies and Services,324117,Provisions,17-Jan-17,5661991807,JR HOLLAND FOODSERVICE,5422,Catering costs - provisions,59.01,0,59.01
Regeneration and Local Services,Direct Services,21242,Catering - County Hall,Supplies and Services,324117,Provisions,17-Jan-17,5661991809,JR HOLLAND FOODSERVICE,5422,Catering costs - provisions,6.58,0,6.58
Regeneration and Local Services,Direct Services,21242,Catering - County Hall,Supplies and Services,324117,Provisions,17-Jan-17,5661991813,BRAKE BROS LTD,5811,Catering costs - provisions,-12.23,-2.04,-10.19
Regeneration and Local Services,Economic Development and Housing,30553,Europe Direct Scheme,Supplies and Services,384926,Miscellaneous Expenses,17-Jan-17,5661991819,VIRGINTRAINSEC DHM STN,4112,International visits,120,0,120
Regeneration and Local Services,Culture & Sport,54812,Gala Theatre - Catering etc,Supplies and Services,324117,Provisions,17-Jan-17,5661991823,FREEMAN CATERING BUTCH,5422,Catering costs - provisions,75.69,0,75.69
Regeneration and Local Services,Culture & Sport,54812,Gala Theatre - Catering etc,Supplies and Services,324117,Provisions,17-Jan-17,5661991827,JR HOLLAND FOODSERVICE,5422,Catering costs - provisions,33.26,0,33.26
Regeneration and Local Services,Culture & Sport,54812,Gala Theatre - Catering etc,Supplies and Services,324117,Provisions,17-Jan-17,5661991831,BRAKE BROS LTD,5811,Catering costs - provisions,8.58,1.43,7.15
Regeneration and Local Services,Culture & Sport,54812,Gala Theatre - Catering etc,Supplies and Services,324117,Provisions,17-Jan-17,5661991831 - 1,BRAKE BROS LTD,5811,Catering costs - provisions,82.04,,82.04
Regeneration and Local Services,Economic Development and Housing,30749,Employability - Youth Contract,Transport,235005,Public Transport,17-Jan-17,5661991877,ARRIVA PASSENGER S,7538,Contract tickets,7.8,0,7.8
Children and Young Peoples Services,Education,71732,Dean Bank Childcare,Supplies and Services,324117,Provisions,17-Jan-17,5661991897,CO-OP GROUP 010518,5411,Catering costs - provisions,9.28,0,9.28
Regeneration and Local Services,Economic Development and Housing,30737,Durham Works Flexible Fund,Transport,235005,Public Transport,17-Jan-17,5661991915,ARRIVA PASSENGER S,7538,Contract tickets,59,0,59
Regeneration and Local Services,Economic Development and Housing,30737,Durham Works Flexible Fund,Supplies and Services,304259,Equipment and Materials,17-Jan-17,5661991917,CURRYS,5732,Equipment-purchase and rental,239.99,40,199.99
Children and Young Peoples Services,Childrens Services,88094,Newton Aycliffe 5 - 19,Supplies and Services,304403,Equipment and Materials,17-Jan-17,5661991925,ARGOS RETAIL GROUP,5310,Other consumables,73.94,0,73.94
Children and Young Peoples Services,Childrens Services,85957,Secure Management,Supplies and Services,328041,Clothing Uniforms and Laundry,17-Jan-17,5661991927,SELECT,5691,Clothing uniforms and laundry,-25.98,0,-25.98
Regeneration and Local Services,Direct Services,10301,C&G - North Grounds Maintenance,Supplies and Services,304403,Equipment and Materials,17-Jan-17,5661991933,BESCOL,5231,Other consumables,82.15,13.69,68.46
Regeneration and Local Services,Direct Services,10301,C&G - North Grounds Maintenance,Supplies and Services,304259,Equipment and Materials,17-Jan-17,5661991935,HARELAW SAWMILL,5211,Equipment-purchase and rental,323.52,53.92,269.6
Regeneration and Local Services,Culture & Sport,11060,Hardwick Park Catering,Supplies and Services,324117,Provisions,17-Jan-17,5661991941,FREEMAN CATERING BUTCH,5422,Catering costs - provisions,22.06,0,22.06
Regeneration and Local Services,Culture & Sport,11060,Hardwick Park Catering,Supplies and Services,324117,Provisions,17-Jan-17,5661991945,FREEMAN CATERING BUTCH,5422,Catering costs - provisions,19.19,0,19.19
Regeneration and Local Services,Culture & Sport,11060,Hardwick Park Catering,Supplies and Services,324117,Provisions,17-Jan-17,5661991947,FREEMAN CATERING BUTCH,5422,Catering costs - provisions,12.94,0,12.94
Regeneration and Local Services,Culture & Sport,11060,Hardwick Park Catering,Supplies and Services,324117,Provisions,17-Jan-17,5661991951,JR HOLLAND FOODSERVICE,5422,Catering costs - provisions,43.87,0,43.87
Regeneration and Local Services,Culture & Sport,11060,Hardwick Park Catering,Supplies and Services,324117,Provisions,17-Jan-17,5661991955,JR HOLLAND FOODSERVICE,5422,Catering costs - provisions,16.61,0,16.61
Regeneration and Local Services,Culture & Sport,11060,Hardwick Park Catering,Supplies and Services,324117,Provisions,17-Jan-17,5661991959,BRAKE BROS LTD,5811,Catering costs - provisions,-16.9,-2.82,-14.08
Resources,I.C.T. Services,70204,Operations - System & Repairs Team,Supplies and Services,312011,Newspapers Books and Periodicals,17-Jan-17,5661991973,Amazon UK Marketplace,5942,Books-school library,31.16,0,31.16
Regeneration and Local Services,Culture & Sport,54815,Gala Theatre Stage School,Supplies and Services,304259,Equipment and Materials,17-Jan-17,5661991975,SHEETMUSICPLUS.COM,5733,Equipment-purchase and rental,80.41,0,80.41
Children and Young Peoples Services,Childrens Services,85551,Short Break Services-Park Hse Sher,Supplies and Services,324117,Provisions,17-Jan-17,5661991991,TESCO STORES 2371,5411,Catering costs - provisions,9.49,0,9.49
Regeneration and Local Services,Direct Services,21234,Catering - Locomotion,Supplies and Services,324117,Provisions,17-Jan-17,5661991995,JR HOLLAND FOODSERVICE,5422,Catering costs - provisions,29.28,0,29.28
Regeneration and Local Services,Direct Services,10525,Catering - Green Lane,Supplies and Services,324117,Provisions,17-Jan-17,5661992021,FREEMAN CATERING BUTCH,5422,Catering costs - provisions,82.91,0,82.91
Regeneration and Local Services,Direct Services,10525,Catering - Green Lane,Supplies and Services,324117,Provisions,17-Jan-17,5661992025,FREEMAN CATERING BUTCH,5422,Catering costs - provisions,6.06,0,6.06
Regeneration and Local Services,Direct Services,10525,Catering - Green Lane,Supplies and Services,324117,Provisions,17-Jan-17,5661992029,BRAKE BROS LTD,5811,Catering costs - provisions,108.18,18.03,90.15
Regeneration and Local Services,Direct Services,10525,Catering - Green Lane,Supplies and Services,324117,Provisions,17-Jan-17,5661992029 - 1,BRAKE BROS LTD,5811,Catering costs - provisions,168.06,,168.06
Regeneration and Local Services,Economic Development and Housing,30749,Employability - Youth Contract,Supplies and Services,304259,Equipment and Materials,17-Jan-17,5661992089,DVLA DRIVER ONLINE,9399,Equipment-purchase and rental,20,0,20
Children and Young Peoples Services,Childrens Services,88043,Consett 0 - 5,Supplies and Services,312011,Newspapers Books and Periodicals,17-Jan-17,5661992103,Amazon UK Marketplace,5942,Books-school library,8.8,0,8.8
Regeneration and Local Services,Economic Development and Housing,31500,Housing Solutions - Core Team,Supplies and Services,352001,Conference Expenses,17-Jan-17,5661992105,TRAVELODGE,3615,Conferencesseminars fees etc,48,8,40
Regeneration and Local Services,Economic Development and Housing,31500,Housing Solutions - Core Team,Supplies and Services,352001,Conference Expenses,17-Jan-17,5661992105 - 1,TRAVELODGE,3615,Conferencesseminars fees etc,2,,2
Regeneration and Local Services,Direct Services,10301,C&G - North Grounds Maintenance,Supplies and Services,304403,Equipment and Materials,17-Jan-17,5661992153,BESCOL,5231,Other consumables,20.4,3.4,17
Regeneration and Local Services,Culture & Sport,54235,Bp Auckland Town Hall Cafe,Supplies and Services,324117,Provisions,17-Jan-17,5661992163,JR HOLLAND FOODSERVICE,5422,Catering costs - provisions,9.25,0,9.25
Regeneration and Local Services,Transport and Contracted Services,31701,Care Connect All Localities,Supplies and Services,344033,Telephones,17-Jan-17,5661992165,BT BILL PAYMENT 2,4812,Telephones general-all costs,74.22,12.37,61.85
Regeneration and Local Services,Transport and Contracted Services,31701,Care Connect All Localities,Supplies and Services,344033,Telephones,17-Jan-17,5661992169,BT BILL PAYMENT 2,4812,Telephones general-all costs,113.97,19,94.97
Regeneration and Local Services,Transport and Contracted Services,31701,Care Connect All Localities,Supplies and Services,344033,Telephones,17-Jan-17,5661992171,BT BILL PAYMENT 2,4812,Telephones general-all costs,15.45,2.58,12.87
Regeneration and Local Services,Transport and Contracted Services,31701,Care Connect All Localities,Supplies and Services,344033,Telephones,17-Jan-17,5661992173,BT BILL PAYMENT 2,4812,Telephones general-all costs,179.27,29.88,149.39
Regeneration and Local Services,Transport and Contracted Services,31701,Care Connect All Localities,Supplies and Services,344033,Telephones,17-Jan-17,5661992177,BT BILL PAYMENT 2,4812,Telephones general-all costs,84.72,14.12,70.6
Regeneration and Local Services,Transport and Contracted Services,31701,Care Connect All Localities,Supplies and Services,344033,Telephones,17-Jan-17,5661992181,BT BILL PAYMENT 2,4812,Telephones general-all costs,96.72,16.12,80.6
Regeneration and Local Services,Transport and Contracted Services,31701,Care Connect All Localities,Supplies and Services,344033,Telephones,17-Jan-17,5661992185,BT BILL PAYMENT 2,4812,Telephones general-all costs,-51.37,-8.56,-42.81
Regeneration and Local Services,Transport and Contracted Services,31701,Care Connect All Localities,Supplies and Services,344033,Telephones,17-Jan-17,5661992189,BT BILL PAYMENT 2,4812,Telephones general-all costs,-10.69,-1.78,-8.91
Regeneration and Local Services,Direct Services,21324,Catering - Meadowfield,Supplies and Services,324117,Provisions,17-Jan-17,5661992195,FREEMAN CATERING BUTCH,5422,Catering costs - provisions,68.86,0,68.86
Regeneration and Local Services,Direct Services,21324,Catering - Meadowfield,Supplies and Services,324117,Provisions,17-Jan-17,5661992199,FREEMAN CATERING BUTCH,5422,Catering costs - provisions,53.99,0,53.99
Regeneration and Local Services,Direct Services,21324,Catering - Meadowfield,Supplies and Services,324117,Provisions,17-Jan-17,5661992203,BRAKE BROS LTD,5811,Catering costs - provisions,61.15,0,61.15
Children and Young Peoples Services,Childrens Services,71404,Laurel Avenue Childrens Centre,Supplies and Services,324117,Provisions,17-Jan-17,5661992261,TESCO STORES 2371,5411,Catering costs - provisions,23.8,0,23.8
Regeneration and Local Services,Culture & Sport,10605,Woodhouse Close Leisure Complex,Supplies and Services,324117,Provisions,17-Jan-17,5661992277,FREEMAN CATERING BUTCH,5422,Catering costs - provisions,33.2,0,33.2
Resources,Financial Services,65166,Finance - Post Entry Training,Employees,40149,Recruitment Instruction and Training,17-Jan-17,5661992281,WWW.CIPS.ORG,8699,Training-all costs,99.96,0,99.96
Regeneration and Local Services,Economic Development and Housing,31500,Housing Solutions - Core Team,Employees,40149,Recruitment Instruction and Training,17-Jan-17,5665827831,PREMIER INN,3811,Training-all costs,88.99,14.83,74.16
Children and Young Peoples Services,Childrens Services,85957,Secure Management,Supplies and Services,328041,Clothing Uniforms and Laundry,17-Jan-17,5665827843,SPORTSDIRECT.COM,5941,Clothing uniforms and laundry,74.99,0,74.99
Children and Young Peoples Services,Childrens Services,85957,Secure Management,Supplies and Services,328041,Clothing Uniforms and Laundry,17-Jan-17,5665827845,SPORTSDIRECT.COM,5941,Clothing uniforms and laundry,146.47,0,146.47
Children and Young Peoples Services,Childrens Services,85957,Secure Management,Supplies and Services,328041,Clothing Uniforms and Laundry,17-Jan-17,5665827849,gethelabel.com,5651,Clothing uniforms and laundry,48.94,0,48.94
Children and Young Peoples Services,Childrens Services,71440,Barnard Castle One Point Hub,Supplies and Services,304403,Equipment and Materials,17-Jan-17,5665827903,AMAZON UK RETAIL AMAZO,5999,Other consumables,129.59,0,129.59
Children and Young Peoples Services,Childrens Services,88043,Consett 0 - 5,Supplies and Services,304403,Equipment and Materials,17-Jan-17,5665828121,AMAZON UK RETAIL AMAZO,5999,Other consumables,23.85,0,23.85
Regeneration and Local Services,Economic Development and Housing,30737,Durham Works Flexible Fund,Supplies and Services,328041,Clothing Uniforms and Laundry,17-Jan-17,5665828277,MATALAN.CO.UK,5691,Clothing uniforms and laundry,35.95,0,35.95
Regeneration and Local Services,Direct Services,10367,C&G - South Grounds Maintenance,Transport,215995,Running Costs of Vehicles,17-Jan-17,5670159993,SNOWBALLS (RAILWAY,5533,Vehicle running expenses,78.7,13.12,65.58
Regeneration and Local Services,Economic Development and Housing,30699,Business Growth and Innovation General,Supplies and Services,304999,Equipment and Materials,18-Jan-17,5661991723,PatentInspirationEU,5817,Misc equipment tools and materials,2.4,0,2.4
Regeneration and Local Services,Culture & Sport,54815,Gala Theatre Stage School,Supplies and Services,304259,Equipment and Materials,18-Jan-17,5661991979,SHEETMUSICPLUS.COM,5733,Equipment-purchase and rental,2.21,0,2.21
Children and Young Peoples Services,Education,71801,Selby Cottage Childcare Centre,Supplies and Services,324117,Provisions,18-Jan-17,5665827815,TESCO STORES 2278,5411,Catering costs - provisions,13.39,0,13.39
Adult and Health Services,Head of Adults,52760,OP Management,Income,720130,Fees and Charges,18-Jan-17,5665827821,HMCOURT-SERVICES.G,9222,Fees-legal,100,0,100
Children and Young Peoples Services,Childrens Services,85957,Secure Management,Supplies and Services,328041,Clothing Uniforms and Laundry,18-Jan-17,5665827841,WWW.FOOTLOCKER.EU,5661,Clothing uniforms and laundry,109.99,0,109.99
Children and Young Peoples Services,Childrens Services,85957,Secure Management,Supplies and Services,324117,Provisions,18-Jan-17,5665827851,TESCO STORES 6329,5411,Catering costs - provisions,83.03,0,83.03
Regeneration and Local Services,Economic Development and Housing,30699,Business Growth and Innovation General,Supplies and Services,304999,Equipment and Materials,18-Jan-17,5665827857,LINKEDIN-242 9470786,5968,Misc equipment tools and materials,91.4,0,91.4
Children and Young Peoples Services,Childrens Services,71440,Barnard Castle One Point Hub,Supplies and Services,312011,Newspapers Books and Periodicals,18-Jan-17,5665827885,Amazon UK Marketplace,5942,Books-school library,5.99,0,5.99
Children and Young Peoples Services,Childrens Services,71440,Barnard Castle One Point Hub,Supplies and Services,312011,Newspapers Books and Periodicals,18-Jan-17,5665827889,Amazon UK Marketplace,5942,Books-school library,22.4,0,22.4
Children and Young Peoples Services,Childrens Services,71440,Barnard Castle One Point Hub,Supplies and Services,312011,Newspapers Books and Periodicals,18-Jan-17,5665827891,Amazon UK Marketplace,5942,Books-school library,41.76,0,41.76
Children and Young Peoples Services,Childrens Services,71440,Barnard Castle One Point Hub,Supplies and Services,312011,Newspapers Books and Periodicals,18-Jan-17,5665827893,Amazon UK Marketplace,5942,Books-school library,39.95,0,39.95
Children and Young Peoples Services,Childrens Services,71440,Barnard Castle One Point Hub,Supplies and Services,304999,Equipment and Materials,18-Jan-17,5665827897,BOOTS/0557,5912,Misc equipment tools and materials,17.69,0,17.69
Children and Young Peoples Services,Childrens Services,71440,Barnard Castle One Point Hub,Supplies and Services,328041,Clothing Uniforms and Laundry,18-Jan-17,5665827899,ORIGINAL FACTORY S,5311,Clothing uniforms and laundry,33.05,0,33.05
Adult and Health Services,Head of Adults,52269,Intermediate Care Plus - North,Supplies and Services,340001,Postages,18-Jan-17,5665827905,ROYAL MAIL ONLINE SHOP,9402,Postages,110,0,110
Regeneration and Local Services,Direct Services,21242,Catering - County Hall,Supplies and Services,324117,Provisions,18-Jan-17,5665827909,JR HOLLAND FOODSERVICE,5422,Catering costs - provisions,175.47,0,175.47
Regeneration and Local Services,Direct Services,21242,Catering - County Hall,Supplies and Services,324117,Provisions,18-Jan-17,5665827913,JR HOLLAND FOODSERVICE,5422,Catering costs - provisions,52.77,0,52.77
Regeneration and Local Services,Direct Services,21242,Catering - County Hall,Supplies and Services,324117,Provisions,18-Jan-17,5665827915,JR HOLLAND FOODSERVICE,5422,Catering costs - provisions,31.35,0,31.35
Regeneration and Local Services,Direct Services,21242,Catering - County Hall,Supplies and Services,324117,Provisions,18-Jan-17,5665827919,BRAKE BROS LTD,5811,Catering costs - provisions,260.14,0,260.14
Regeneration and Local Services,Spatial Policy Planning Assets & Environment,31200,North Pennines Core,Supplies and Services,384999,Miscellaneous Expenses,18-Jan-17,5665827945,HIGH PENNINE ANIMAL FE,5995,Other expenses,13.5,0,13.5
Regeneration and Local Services,Economic Development and Housing,30749,Employability - Youth Contract,Transport,235005,Public Transport,18-Jan-17,5665827953,ARRIVA PASSENGER S,7538,Contract tickets,92,0,92
Children and Young Peoples Services,Childrens Services,85341,High Etherley Satelite Home,Supplies and Services,324117,Provisions,18-Jan-17,5665827971,TESCO STORES 6329,5411,Catering costs - provisions,35.5,0,35.5
Resources,Legal & Democratic Services,69540,Charter Trust,Supplies and Services,312009,Newspapers Books and Periodicals,18-Jan-17,5665827979,WH SMITH,5994,Newspapers books and periodicals,5.99,0,5.99
Children and Young Peoples Services,Childrens Services,85332,Middlestone Moor CU,Supplies and Services,324117,Provisions,18-Jan-17,5665827983,TESCO STORES 2371,5411,Catering costs - provisions,98.73,0,98.73
Children and Young Peoples Services,Childrens Services,88094,Newton Aycliffe 5 - 19,Supplies and Services,304403,Equipment and Materials,18-Jan-17,5665827993,GRO HM PASSPORT OFFICE,9399,Other consumables,9.25,0,9.25
Regeneration and Local Services,Culture & Sport,11060,Hardwick Park Catering,Supplies and Services,324117,Provisions,18-Jan-17,5665828011,JR HOLLAND FOODSERVICE,5422,Catering costs - provisions,32.63,0,32.63
Regeneration and Local Services,Culture & Sport,11060,Hardwick Park Catering,Supplies and Services,324117,Provisions,18-Jan-17,5665828015,BRAKE BROS LTD,5811,Catering costs - provisions,276.78,46.13,230.65
Regeneration and Local Services,Culture & Sport,11060,Hardwick Park Catering,Supplies and Services,324117,Provisions,18-Jan-17,5665828015 - 1,BRAKE BROS LTD,5811,Catering costs - provisions,199.29,,199.29
Regeneration and Local Services,Culture & Sport,11060,Hardwick Park Catering,Supplies and Services,324117,Provisions,18-Jan-17,5665828021,BRAKE BROS LTD,5811,Catering costs - provisions,112.93,0,112.93
Regeneration and Local Services,Culture & Sport,54815,Gala Theatre Stage School,Supplies and Services,324117,Provisions,18-Jan-17,5665828023,MARKS&SPENCER PLC,5411,Catering costs - provisions,93,0,93
Regeneration and Local Services,Culture & Sport,54815,Gala Theatre Stage School,Supplies and Services,384999,Miscellaneous Expenses,18-Jan-17,5665828027,ATG TICKET WEB,7922,Other expenses,83.35,13.89,69.46
Regeneration and Local Services,Economic Development and Housing,30762,Organisational Training & Development,Employees,40149,Recruitment Instruction and Training,18-Jan-17,5665828031,CITB,8220,Training-all costs,30,0,30
Regeneration and Local Services,Economic Development and Housing,30762,Organisational Training & Development,Employees,40149,Recruitment Instruction and Training,18-Jan-17,5665828033,CITB,8220,Training-all costs,30,0,30
Regeneration and Local Services,Economic Development and Housing,30762,Organisational Training & Development,Employees,40149,Recruitment Instruction and Training,18-Jan-17,5665828035,CITB,8220,Training-all costs,30,0,30
Regeneration and Local Services,Economic Development and Housing,30762,Organisational Training & Development,Employees,40149,Recruitment Instruction and Training,18-Jan-17,5665828039,CITB,8220,Training-all costs,30,0,30
Regeneration and Local Services,Direct Services,21234,Catering - Locomotion,Supplies and Services,324117,Provisions,18-Jan-17,5665828041,BRAKE BROS LTD,5811,Catering costs - provisions,102.18,17.03,85.15
Regeneration and Local Services,Direct Services,21234,Catering - Locomotion,Supplies and Services,324117,Provisions,18-Jan-17,5665828041 - 1,BRAKE BROS LTD,5811,Catering costs - provisions,85.4,,85.4
Regeneration and Local Services,Direct Services,21234,Catering - Locomotion,Supplies and Services,324117,Provisions,18-Jan-17,5665828047,BRAKE BROS LTD,5811,Catering costs - provisions,141.12,0,141.12
Resources,Financial Services,52865,SF-Financial Services Team,Supplies and Services,332047,Printing Stationery and Gen Off Exps,18-Jan-17,5665828051,Amazon UK Marketplace,5942,Stationery,17.5,0,17.5
Regeneration and Local Services,Direct Services,10525,Catering - Green Lane,Supplies and Services,324117,Provisions,18-Jan-17,5665828053,JR HOLLAND FOODSERVICE,5422,Catering costs - provisions,36.41,0,36.41
Children and Young Peoples Services,Childrens Services,74000,TTF-Attachment and Results,Supplies and Services,384700,Miscellaneous Expenses,18-Jan-17,5665828067,WILKO.COM,5722,Miscellaneous grants,124,0,124
Children and Young Peoples Services,Childrens Services,88064,Bishop Auckland 5 - 19,Supplies and Services,324117,Provisions,18-Jan-17,5665828071,ASDA STORES,5411,Catering costs - provisions,26.57,0,26.57
Children and Young Peoples Services,Childrens Services,74000,TTF-Attachment and Results,Supplies and Services,384700,Miscellaneous Expenses,18-Jan-17,5665828075,TESCO - Seller_IST_1_2,5999,Miscellaneous grants,72,0,72
Regeneration and Local Services,Direct Services,10367,C&G - South Grounds Maintenance,Supplies and Services,324117,Provisions,18-Jan-17,5665828081,J M RAINE,5399,Catering costs - provisions,157.26,0,157.26
Children and Young Peoples Services,Childrens Services,85333,Coxhoe Satelite Home,Supplies and Services,324117,Provisions,18-Jan-17,5665828095,CO-OP GROUP 310016,5411,Catering costs - provisions,9.15,0,9.15
Children and Young Peoples Services,Childrens Services,85333,Coxhoe Satelite Home,Supplies and Services,324117,Provisions,18-Jan-17,5665828097,CO-OP GROUP 310016,5411,Catering costs - provisions,6.04,0,6.04
Children and Young Peoples Services,Childrens Services,88043,Consett 0 - 5,Supplies and Services,312011,Newspapers Books and Periodicals,18-Jan-17,5665828115,Amazon UK Marketplace,5942,Books-school library,13.3,0,13.3
Children and Young Peoples Services,Childrens Services,88043,Consett 0 - 5,Supplies and Services,312011,Newspapers Books and Periodicals,18-Jan-17,5665828119,Amazon UK Marketplace,5942,Books-school library,7.8,0,7.8
Regeneration and Local Services,Direct Services,10301,C&G - North Grounds Maintenance,Supplies and Services,304259,Equipment and Materials,18-Jan-17,5665828169,HARELAW SAWMILL,5211,Equipment-purchase and rental,397.4,0,397.4
Children and Young Peoples Services,Childrens Services,85801,CDYOS - Support,Supplies and Services,304259,Equipment and Materials,18-Jan-17,5665828181,GRO HM PASSPORT OFFICE,9399,Equipment-purchase and rental,27.75,0,27.75
Regeneration and Local Services,Culture & Sport,54235,Bp Auckland Town Hall Cafe,Supplies and Services,324117,Provisions,18-Jan-17,5665828187,JR HOLLAND FOODSERVICE,5422,Catering costs - provisions,37.13,0,37.13
Regeneration and Local Services,Direct Services,21324,Catering - Meadowfield,Supplies and Services,324117,Provisions,18-Jan-17,5665828203,JR HOLLAND FOODSERVICE,5422,Catering costs - provisions,69.93,0,69.93
Regeneration and Local Services,Direct Services,21324,Catering - Meadowfield,Supplies and Services,324117,Provisions,18-Jan-17,5665828207,JR HOLLAND FOODSERVICE,5422,Catering costs - provisions,13.45,0,13.45
Regeneration and Local Services,Direct Services,21324,Catering - Meadowfield,Supplies and Services,324117,Provisions,18-Jan-17,5665828209,BRAKE BROS LTD,5811,Catering costs - provisions,33.06,5.51,27.55
Regeneration and Local Services,Direct Services,21324,Catering - Meadowfield,Supplies and Services,324117,Provisions,18-Jan-17,5665828209 - 1,BRAKE BROS LTD,5811,Catering costs - provisions,114.34,,114.34
Regeneration and Local Services,Culture & Sport,11191,Wellbeing4Life,Supplies and Services,324117,Provisions,18-Jan-17,5665828269,SAINSBURYS SACAT 0776,5411,Catering costs - provisions,21.62,0,21.62
Regeneration and Local Services,Culture & Sport,11191,Wellbeing4Life,Supplies and Services,324117,Provisions,18-Jan-17,5665828273,CO-OP GROUP 310016,5411,Catering costs - provisions,2.99,0,2.99
Regeneration and Local Services,Culture & Sport,10605,Woodhouse Close Leisure Complex,Supplies and Services,324117,Provisions,18-Jan-17,5665828289,JR HOLLAND FOODSERVICE,5422,Catering costs - provisions,34.86,0,34.86
Regeneration and Local Services,Culture & Sport,10605,Woodhouse Close Leisure Complex,Supplies and Services,324117,Provisions,18-Jan-17,5665828293,BRAKE BROS LTD,5811,Catering costs - provisions,64.82,0,64.82
Children and Young Peoples Services,Childrens Services,88003,Peterlee 0 - 5,Supplies and Services,312011,Newspapers Books and Periodicals,18-Jan-17,5665828329,Amazon UK Marketplace,5942,Books-school library,41.49,6.92,34.57
Children and Young Peoples Services,Childrens Services,88003,Peterlee 0 - 5,Supplies and Services,304403,Equipment and Materials,18-Jan-17,5665828335,AMAZON UK RETAIL AMAZO,5999,Other consumables,-29.5,0,-29.5
Regeneration and Local Services,Economic Development and Housing,31500,Housing Solutions - Core Team,Employees,40149,Recruitment Instruction and Training,18-Jan-17,5670159723,PREMIER INN,3811,Training-all costs,88.99,14.83,74.16
Children and Young Peoples Services,Childrens Services,85352,Tow Law CU,Supplies and Services,384999,Miscellaneous Expenses,18-Jan-17,5670159941,MIDDLESBROUGH FC,7922,Other expenses,22.5,0,22.5
Resources,I.C.T. Services,65432,Web Development Group,Supplies and Services,312009,Newspapers Books and Periodicals,18-Jan-17,5670160021,AMAZON UK RETAIL AMAZO,5999,Newspapers books and periodicals,27.57,0,27.57
Children and Young Peoples Services,Childrens Services,88094,Newton Aycliffe 5 - 19,Supplies and Services,304403,Equipment and Materials,18-Jan-17,5738073927,GRO HM PASSPORT OFFICE,9399,Other consumables,-9.25,0,-9.25
Children and Young Peoples Services,Childrens Services,85801,CDYOS - Support,Supplies and Services,304259,Equipment and Materials,18-Jan-17,5738074063,GRO HM PASSPORT OFFICE,9399,Equipment-purchase and rental,-9.25,0,-9.25
Children and Young Peoples Services,Education,71801,Selby Cottage Childcare Centre,Supplies and Services,324117,Provisions,19-Jan-17,5670159693,TESCO STORES 2278,5411,Catering costs - provisions,5.68,0,5.68
Children and Young Peoples Services,Childrens Services,88094,Newton Aycliffe 5 - 19,Supplies and Services,304403,Equipment and Materials,19-Jan-17,5670159713,Amazon UK Marketplace,5942,Other consumables,2.44,0,2.44
Children and Young Peoples Services,Childrens Services,88094,Newton Aycliffe 5 - 19,Supplies and Services,304403,Equipment and Materials,19-Jan-17,5670159717,Amazon UK Marketplace,5942,Other consumables,0.93,0,0.93
Children and Young Peoples Services,Childrens Services,85957,Secure Management,Supplies and Services,324117,Provisions,19-Jan-17,5670159741,TESCO STORES 6329,5411,Catering costs - provisions,106.77,0,106.77
Children and Young Peoples Services,Childrens Services,85957,Secure Management,Supplies and Services,304259,Equipment and Materials,19-Jan-17,5670159745,ARGOS RETAIL GROUP,5310,Equipment-purchase and rental,33.94,0,33.94
Children and Young Peoples Services,Childrens Services,85957,Secure Management,Supplies and Services,328041,Clothing Uniforms and Laundry,19-Jan-17,5670159749,WWW.FOOTLOCKER.EU,5661,Clothing uniforms and laundry,-129.99,0,-129.99
Regeneration and Local Services,Economic Development and Housing,30699,Business Growth and Innovation General,Supplies and Services,336005,Advertising,19-Jan-17,5670159765,ADROLL,7311,Advertising other than for staff,7.47,0,7.47
Regeneration and Local Services,Economic Development and Housing,31500,Housing Solutions - Core Team,Supplies and Services,384700,Miscellaneous Expenses,19-Jan-17,5670159775,MATALAN.CO.UK,5691,Miscellaneous grants,50,0,50
Regeneration and Local Services,Economic Development and Housing,31500,Housing Solutions - Core Team,Supplies and Services,384700,Miscellaneous Expenses,19-Jan-17,5670159777,MATALAN.CO.UK,5691,Miscellaneous grants,55,0,55
Regeneration and Local Services,Economic Development and Housing,31500,Housing Solutions - Core Team,Supplies and Services,384700,Miscellaneous Expenses,19-Jan-17,5670159779,MATALAN.CO.UK,5691,Miscellaneous grants,60,0,60
Regeneration and Local Services,Economic Development and Housing,31500,Housing Solutions - Core Team,Supplies and Services,384700,Miscellaneous Expenses,19-Jan-17,5670159781,WILKO.COM,5722,Miscellaneous grants,250,0,250
Dedicated Schools Grant,Dedicated Schools Grant,79075,Learning Difficulties Team,Supplies and Services,384956,Miscellaneous Expenses,19-Jan-17,5670159785,WWW.ELKLAN.CO.UK,8299,Licences,-50,0,-50
Children and Young Peoples Services,Childrens Services,71440,Barnard Castle One Point Hub,Supplies and Services,312011,Newspapers Books and Periodicals,19-Jan-17,5670159801,Amazon UK Marketplace,5942,Books-school library,9.36,0,9.36
Regeneration and Local Services,Direct Services,21242,Catering - County Hall,Supplies and Services,324117,Provisions,19-Jan-17,5670159805,JR HOLLAND FOODSERVICE,5422,Catering costs - provisions,59.71,0,59.71
Regeneration and Local Services,Direct Services,21242,Catering - County Hall,Supplies and Services,324117,Provisions,19-Jan-17,5670159809,JR HOLLAND FOODSERVICE,5422,Catering costs - provisions,13.16,0,13.16
Regeneration and Local Services,Direct Services,21242,Catering - County Hall,Supplies and Services,324117,Provisions,19-Jan-17,5670159811,BRAKE BROS LTD,5811,Catering costs - provisions,211.28,0,211.28
Children and Young Peoples Services,Childrens Services,88037,One Point YEI,Supplies and Services,384999,Miscellaneous Expenses,19-Jan-17,5670159815,DURHAM COUNTY COUNCIL,9399,Other expenses,12,0,12
Resources,I.C.T. Services,65464,Domains,Supplies and Services,372009,Subscriptions,19-Jan-17,5670159821,WEB NETWORKSOLUTIONS,5968,Subscriptions,111.39,0,111.39
Regeneration and Local Services,Culture & Sport,54812,Gala Theatre - Catering etc,Supplies and Services,324117,Provisions,19-Jan-17,5670159829,JR HOLLAND FOODSERVICE,5422,Catering costs - provisions,47.68,0,47.68
Regeneration and Local Services,Economic Development and Housing,30737,Durham Works Flexible Fund,Transport,235005,Public Transport,19-Jan-17,5670159853,ARRIVA PASSENGER S,7538,Contract tickets,7.8,0,7.8
Dedicated Schools Grant,Dedicated Schools Grant,79063,Partial Hearing-Belmont Comp,Supplies and Services,384999,Miscellaneous Expenses,19-Jan-17,5670159859,WP-THE EAR FOUNDAT,8398,Other expenses,10,0,10
Regeneration and Local Services,Direct Services,10301,C&G - North Grounds Maintenance,Supplies and Services,328041,Clothing Uniforms and Laundry,19-Jan-17,5670159871,THOMAS OWEN & SONS /N/,5611,Clothing uniforms and laundry,463.16,77.19,385.97
Children and Young Peoples Services,Childrens Services,71442,Durham One Point Hub,Supplies and Services,304259,Equipment and Materials,19-Jan-17,5670159893,WILKO.COM,5722,Equipment-purchase and rental,24,0,24
Regeneration and Local Services,Culture & Sport,11060,Hardwick Park Catering,Supplies and Services,324117,Provisions,19-Jan-17,5670159907,JR HOLLAND FOODSERVICE,5422,Catering costs - provisions,29.02,0,29.02
Resources,I.C.T. Services,70204,Operations - System & Repairs Team,Supplies and Services,304999,Equipment and Materials,19-Jan-17,5670159917,THE REPLACE BASE LTD,7699,Misc equipment tools and materials,109.92,18.32,91.6
Resources,I.C.T. Services,70204,Operations - System & Repairs Team,Supplies and Services,304999,Equipment and Materials,19-Jan-17,5670159917 - 1,THE REPLACE BASE LTD,7699,Misc equipment tools and materials,4.78,,4.78
Regeneration and Local Services,Direct Services,21234,Catering - Locomotion,Supplies and Services,324117,Provisions,19-Jan-17,5670159923,JR HOLLAND FOODSERVICE,5422,Catering costs - provisions,43.26,0,43.26
Regeneration and Local Services,Direct Services,10525,Catering - Green Lane,Supplies and Services,324117,Provisions,19-Jan-17,5670159935,BRAKE BROS LTD,5811,Catering costs - provisions,-4.65,0,-4.65
Children and Young Peoples Services,Childrens Services,85352,Tow Law CU,Supplies and Services,324117,Provisions,19-Jan-17,5670159951,TESCO STORES 2371,5411,Catering costs - provisions,217.45,0,217.45
Children and Young Peoples Services,Childrens Services,88063,Bishop Auckland 0 - 5,Supplies and Services,384999,Miscellaneous Expenses,19-Jan-17,5670159959,ASDA STORES,5411,Other expenses,188.95,0,188.95
Children and Young Peoples Services,Childrens Services,74000,TTF-Attachment and Results,Supplies and Services,384700,Miscellaneous Expenses,19-Jan-17,5670159961,TESCO - PLO,5999,Miscellaneous grants,137.89,0,137.89
Regeneration and Local Services,Direct Services,10367,C&G - South Grounds Maintenance,Supplies and Services,304221,Equipment and Materials,19-Jan-17,5670159989,CORNFORTH INDUSTRIAL S,5085,Direct materials,96,16,80
Regeneration and Local Services,Economic Development and Housing,30749,Employability - Youth Contract,Supplies and Services,352001,Conference Expenses,19-Jan-17,5670160007,TRAVELODGE,3615,Conferencesseminars fees etc,48,8,40
Regeneration and Local Services,Direct Services,19100,Fleet - Strategic Fleet,Employees,40149,Recruitment Instruction and Training,19-Jan-17,5670160011,JAUPT,9399,Training-all costs,252,0,252
Resources,I.C.T. Services,65487,ICT Telephony Recharges,Supplies and Services,344033,Telephones,19-Jan-17,5670160019,Amazon UK Marketplace,5942,Telephones general-all costs,2.99,0,2.99
Resources,Legal & Democratic Services,67910,Democratic Representation,Supplies and Services,348037,Subsistence,19-Jan-17,5670160023,IMPERIAL LONDON HOTELS,7011,Subsistence,166,0,166
Regeneration and Local Services,Direct Services,10301,C&G - North Grounds Maintenance,Supplies and Services,304259,Equipment and Materials,19-Jan-17,5670160049,HARELAW SAWMILL,5211,Equipment-purchase and rental,25.06,4.18,20.88
Children and Young Peoples Services,Childrens Services,85333,Coxhoe Satelite Home,Supplies and Services,308011,Furniture,19-Jan-17,5670160067,IKEA LIMITED,5712,Furniture repair and replacement,25,0,25
Regeneration and Local Services,Economic Development and Housing,30737,Durham Works Flexible Fund,Supplies and Services,328041,Clothing Uniforms and Laundry,19-Jan-17,5670160099,NEW LOOK 1503,5621,Clothing uniforms and laundry,38.03,0,38.03
Regeneration and Local Services,Economic Development and Housing,30737,Durham Works Flexible Fund,Supplies and Services,344033,Telephones,19-Jan-17,5670160101,CARPHONE WAREHOUSE,4812,Telephones general-all costs,22.5,3.75,18.75
Regeneration and Local Services,Economic Development and Housing,30737,Durham Works Flexible Fund,Supplies and Services,344033,Telephones,19-Jan-17,5670160101 - 1,CARPHONE WAREHOUSE,4812,Telephones general-all costs,9.99,,9.99
Regeneration and Local Services,Economic Development and Housing,30737,Durham Works Flexible Fund,Supplies and Services,344033,Telephones,19-Jan-17,5670160105,CARPHONE WAREHOUSE,4812,Telephones general-all costs,22.5,3.75,18.75
Regeneration and Local Services,Economic Development and Housing,30737,Durham Works Flexible Fund,Supplies and Services,344033,Telephones,19-Jan-17,5670160105 - 1,CARPHONE WAREHOUSE,4812,Telephones general-all costs,9.99,,9.99
Regeneration and Local Services,Culture & Sport,26591,Hardwick Park,Supplies and Services,384999,Miscellaneous Expenses,19-Jan-17,5670160127,WWW.RISUSWHOLESALE,5945,Other expenses,47.99,8,39.99
Regeneration and Local Services,Economic Development and Housing,30708,VCD - Marketing & Information,Supplies and Services,372009,Subscriptions,19-Jan-17,5670160131,ANIMOTO INC,5968,Subscriptions,192,0,192
Resources,Financial Services,65166,Finance - Post Entry Training,Employees,40149,Recruitment Instruction and Training,19-Jan-17,5670160135,WWW.CIPS.ORG,8699,Training-all costs,99.96,0,99.96
Regeneration and Local Services,Economic Development and Housing,31500,Housing Solutions - Core Team,Employees,40149,Recruitment Instruction and Training,19-Jan-17,5675237081,PREMIER INN,3811,Training-all costs,82.99,13.83,69.16
Resources,Internal Audit and Insurance,65104,Internal Audit,Supplies and Services,372009,Subscriptions,19-Jan-17,5675237565,ISACA,8299,Subscriptions,146.56,0,146.56
Resources,Internal Audit and Insurance,65104,Internal Audit,Supplies and Services,364320,Grants to Voluntary Organisations,19-Jan-17,5675237571,SCARMAN,7011,Accommodation assistance,108,18,90
Children and Young Peoples Services,Childrens Services,88094,Newton Aycliffe 5 - 19,Supplies and Services,304403,Equipment and Materials,20-Jan-17,5670159719,Amazon UK Marketplace,5942,Other consumables,3.36,0,3.36
Regeneration and Local Services,Economic Development and Housing,30699,Business Growth and Innovation General,Supplies and Services,336005,Advertising,20-Jan-17,5670159767,ADROLL,7311,Advertising other than for staff,0.21,0,0.21
Resources,I.C.T. Services,65464,Domains,Supplies and Services,304999,Equipment and Materials,20-Jan-17,5670159825,WEB NETWORKSOLUTIONS,5968,Misc equipment tools and materials,3.06,0,3.06
Children and Young Peoples Services,Education,71801,Selby Cottage Childcare Centre,Supplies and Services,324117,Provisions,20-Jan-17,5675237055,TESCO STORES 2278,5411,Catering costs - provisions,6.3,0,6.3
Children and Young Peoples Services,Childrens Services,88094,Newton Aycliffe 5 - 19,Supplies and Services,304403,Equipment and Materials,20-Jan-17,5675237067,Amazon UK Marketplace,5942,Other consumables,8.98,0,8.98
Regeneration and Local Services,Economic Development and Housing,31500,Housing Solutions - Core Team,Employees,40149,Recruitment Instruction and Training,20-Jan-17,5675237085,PREMIER INN,3811,Training-all costs,213.97,35.66,178.31
Children and Young Peoples Services,Childrens Services,85957,Secure Management,Supplies and Services,384999,Miscellaneous Expenses,20-Jan-17,5675237125,WWW.COOPERSOFSTORTFORD,5311,Other expenses,104.94,0,104.94
Children and Young Peoples Services,Childrens Services,85957,Secure Management,Supplies and Services,324117,Provisions,20-Jan-17,5675237129,TESCO STORES 6329,5411,Catering costs - provisions,77.06,0,77.06
Children and Young Peoples Services,Childrens Services,85957,Secure Management,Supplies and Services,324117,Provisions,20-Jan-17,5675237133,TESCO STORES 6329,5411,Catering costs - provisions,-3.15,0,-3.15
Regeneration and Local Services,Economic Development and Housing,30699,Business Growth and Innovation General,Supplies and Services,336005,Advertising,20-Jan-17,5675237149,TWITTER ADVERTISING,7311,Advertising other than for staff,130,0,130
Children and Young Peoples Services,Childrens Services,71440,Barnard Castle One Point Hub,Supplies and Services,312011,Newspapers Books and Periodicals,20-Jan-17,5675237209,Amazon UK Marketplace,5942,Books-school library,2.39,0,2.39
Regeneration and Local Services,Direct Services,21242,Catering - County Hall,Supplies and Services,324117,Provisions,20-Jan-17,5675237215,JR HOLLAND FOODSERVICE,5422,Catering costs - provisions,59.9,0,59.9
Regeneration and Local Services,Direct Services,21242,Catering - County Hall,Supplies and Services,324117,Provisions,20-Jan-17,5675237219,JR HOLLAND FOODSERVICE,5422,Catering costs - provisions,13.16,0,13.16
Regeneration and Local Services,Direct Services,21242,Catering - County Hall,Supplies and Services,324117,Provisions,20-Jan-17,5675237221,BRAKE BROS LTD,5811,Catering costs - provisions,608.34,101.39,506.95
Regeneration and Local Services,Direct Services,21242,Catering - County Hall,Supplies and Services,324117,Provisions,20-Jan-17,5675237221 - 1,BRAKE BROS LTD,5811,Catering costs - provisions,208.07,,208.07
Children and Young Peoples Services,Education,70169,Durham SSP,Supplies and Services,384199,Miscellaneous Expenses,20-Jan-17,5675237243,TYNE AND WEAR SPORT,8299,Other hired and contracted services,35,0,35
Regeneration and Local Services,Direct Services,21242,Catering - County Hall,Supplies and Services,312011,Newspapers Books and Periodicals,20-Jan-17,5675237279,HOME BARGAINS,5251,Books-school library,8.17,0,8.17
Regeneration and Local Services,Economic Development and Housing,30749,Employability - Youth Contract,Transport,235057,Public Transport,20-Jan-17,5675237337,WWW.SIMPLYGO.COM,4131,Staff travelling,89,0,89
Regeneration and Local Services,Economic Development and Housing,30737,Durham Works Flexible Fund,Supplies and Services,328041,Clothing Uniforms and Laundry,20-Jan-17,5675237371,PEACOCK STORES LTD,5331,Clothing uniforms and laundry,34.05,0,34.05
Regeneration and Local Services,Economic Development and Housing,30737,Durham Works Flexible Fund,Supplies and Services,328041,Clothing Uniforms and Laundry,20-Jan-17,5675237373,PRIMARK,5651,Clothing uniforms and laundry,54.1,0,54.1
Regeneration and Local Services,Direct Services,10301,C&G - North Grounds Maintenance,Supplies and Services,304403,Equipment and Materials,20-Jan-17,5675237389,BESCOL,5231,Other consumables,35.08,5.85,29.23
Regeneration and Local Services,Culture & Sport,11060,Hardwick Park Catering,Supplies and Services,324117,Provisions,20-Jan-17,5675237413,JR HOLLAND FOODSERVICE,5422,Catering costs - provisions,9.98,0,9.98
Regeneration and Local Services,Economic Development and Housing,30762,Organisational Training & Development,Employees,40149,Recruitment Instruction and Training,20-Jan-17,5675237431,CITB,8220,Training-all costs,30,0,30
Regeneration and Local Services,Economic Development and Housing,30762,Organisational Training & Development,Employees,40149,Recruitment Instruction and Training,20-Jan-17,5675237435,CITB,8220,Training-all costs,30,0,30
Regeneration and Local Services,Direct Services,10525,Catering - Green Lane,Supplies and Services,324117,Provisions,20-Jan-17,5675237457,JR HOLLAND FOODSERVICE,5422,Catering costs - provisions,56.7,0,56.7
Regeneration and Local Services,Economic Development and Housing,30749,Employability - Youth Contract,Transport,235057,Public Transport,20-Jan-17,5675237517,Trainline,4112,Staff travelling,8.62,0,8.62
Regeneration and Local Services,Economic Development and Housing,30749,Employability - Youth Contract,Supplies and Services,352001,Conference Expenses,20-Jan-17,5675237519,TRAVELODGE,3615,Conferencesseminars fees etc,140,23.33,116.67
Regeneration and Local Services,Economic Development and Housing,30749,Employability - Youth Contract,Transport,235005,Public Transport,20-Jan-17,5675237521,ARRIVA PASSENGER S,7538,Contract tickets,48,0,48
Children and Young Peoples Services,Childrens Services,85333,Coxhoe Satelite Home,Supplies and Services,324117,Provisions,20-Jan-17,5675237525,TESCO STORES 2371,5411,Catering costs - provisions,68.47,0,68.47
Resources,Corporate Finance,69810,Health and Safety,Supplies and Services,332047,Printing Stationery and Gen Off Exps,20-Jan-17,5675237553,Amazon UK Marketplace,5942,Stationery,5.88,0,5.88
Transformation and Partnerships,Policy & Communications Division,60270,Communications and Marketing,Supplies and Services,332047,Printing Stationery and Gen Off Exps,20-Jan-17,5675237557,Amazon UK Marketplace,5942,Stationery,9.99,0,9.99
Transformation and Partnerships,Policy & Communications Division,60270,Communications and Marketing,Supplies and Services,372009,Subscriptions,20-Jan-17,5675237561,HOOTSUITE MEDIA INC.,7399,Subscriptions,5.85,0,5.85
Resources,Corporate Finance,65109,Pensions,Supplies and Services,384199,Miscellaneous Expenses,20-Jan-17,5675237567,DARLINGTON BC INTERNET,9399,Other hired and contracted services,12,0,12
Transformation and Partnerships,Policy & Communications Division,60050,Service Management,Supplies and Services,364320,Grants to Voluntary Organisations,20-Jan-17,5675237573,IMPERIAL LONDON HOTELS,7011,Accommodation assistance,119,0,119
Children and Young Peoples Services,Education,70105,M and A Parent Partnership,Supplies and Services,340001,Postages,20-Jan-17,5675237579,ROYAL MAIL ONLINE SHOP,9402,Postages,119,0,119
Children and Young Peoples Services,Childrens Services,88001,Peterlee Locality,Supplies and Services,312011,Newspapers Books and Periodicals,20-Jan-17,5675237627,Amazon UK Marketplace,5942,Books-school library,26.56,0,26.56
Children and Young Peoples Services,Childrens Services,88001,Peterlee Locality,Supplies and Services,384999,Miscellaneous Expenses,20-Jan-17,5675237633,PAYPAL RELAX KIDS,5945,Other expenses,47.47,0,47.47
Regeneration and Local Services,Culture & Sport,54235,Bp Auckland Town Hall Cafe,Supplies and Services,324117,Provisions,20-Jan-17,5675237643,JR HOLLAND FOODSERVICE,5422,Catering costs - provisions,8.18,0,8.18
Regeneration and Local Services,Transport and Contracted Services,31701,Care Connect All Localities,Supplies and Services,344033,Telephones,20-Jan-17,5675237647,BT BILL PAYMENT 2,4812,Telephones general-all costs,88.47,14.75,73.72
Regeneration and Local Services,Transport and Contracted Services,31701,Care Connect All Localities,Supplies and Services,344033,Telephones,20-Jan-17,5675237649,BT BILL PAYMENT 2,4812,Telephones general-all costs,5.05,0.84,4.21
Regeneration and Local Services,Transport and Contracted Services,31701,Care Connect All Localities,Supplies and Services,344033,Telephones,20-Jan-17,5675237651,BT BILL PAYMENT 2,4812,Telephones general-all costs,88.47,14.75,73.72
Regeneration and Local Services,Transport and Contracted Services,31701,Care Connect All Localities,Supplies and Services,344033,Telephones,20-Jan-17,5675237653,BT BILL PAYMENT 2,4812,Telephones general-all costs,6.09,1.02,5.07
Regeneration and Local Services,Transport and Contracted Services,31701,Care Connect All Localities,Supplies and Services,344033,Telephones,20-Jan-17,5675237655,BT BILL PAYMENT 2,4812,Telephones general-all costs,66.46,11.08,55.38
Regeneration and Local Services,Direct Services,21324,Catering - Meadowfield,Supplies and Services,324117,Provisions,20-Jan-17,5675237719,JR HOLLAND FOODSERVICE,5422,Catering costs - provisions,45.54,0,45.54
Regeneration and Local Services,Direct Services,21324,Catering - Meadowfield,Supplies and Services,324117,Provisions,20-Jan-17,5675237721,JR HOLLAND FOODSERVICE,5422,Catering costs - provisions,9.87,0,9.87
Children and Young Peoples Services,Childrens Services,71693,Brandon Childrens Centre,Supplies and Services,312011,Newspapers Books and Periodicals,20-Jan-17,5675237829,Amazon UK Marketplace,5942,Books-school library,22.45,0,22.45
Children and Young Peoples Services,Childrens Services,88094,Newton Aycliffe 5 - 19,Supplies and Services,304403,Equipment and Materials,21-Jan-17,5675237071,AMAZON UK RETAIL AMAZO,5999,Other consumables,73.95,0,73.95
Children and Young Peoples Services,Childrens Services,85957,Secure Management,Supplies and Services,324117,Provisions,21-Jan-17,5675237137,TESCO STORES 6329,5411,Catering costs - provisions,106.97,0,106.97
Regeneration and Local Services,Culture & Sport,11219,Office Services,Supplies and Services,304999,Equipment and Materials,21-Jan-17,5675237303,GOOGLE ADWS2420292471,5968,Misc equipment tools and materials,37.07,0,37.07
Children and Young Peoples Services,Education,71732,Dean Bank Childcare,Supplies and Services,312011,Newspapers Books and Periodicals,21-Jan-17,5675237351,Amazon UK Marketplace,5942,Books-school library,2,0,2
Children and Young Peoples Services,Childrens Services,85551,Short Break Services-Park Hse Sher,Supplies and Services,324117,Provisions,21-Jan-17,5675237439,ASDA SUPERSTORE 4987,5411,Catering costs - provisions,15,0,15
Resources,Legal & Democratic Services,67910,Democratic Representation,Supplies and Services,332047,Printing Stationery and Gen Off Exps,21-Jan-17,5675237577,Amazon UK Marketplace,5942,Stationery,55.86,0,55.86
Children and Young Peoples Services,Childrens Services,88001,Peterlee Locality,Supplies and Services,312011,Newspapers Books and Periodicals,21-Jan-17,5675237635,Amazon UK Marketplace,5942,Books-school library,8.05,0,8.05
Children and Young Peoples Services,Childrens Services,88001,Peterlee Locality,Supplies and Services,304403,Equipment and Materials,21-Jan-17,5675237639,AMAZON UK RETAIL AMAZO,5999,Other consumables,20.41,0,20.41
Regeneration and Local Services,Culture & Sport,11086,Positive Futures,Supplies and Services,324117,Provisions,21-Jan-17,5675237783,W M MORRISONS,5411,Catering costs - provisions,14.2,0,14.2
Children and Young Peoples Services,Childrens Services,85342,9 Cedar Drive Aycliffe,Employees,40149,Recruitment Instruction and Training,21-Jan-17,5682113109,PARENTPAY E-COM R,8220,Training-all costs,30,0,30
Children and Young Peoples Services,Childrens Services,88094,Newton Aycliffe 5 - 19,Supplies and Services,304403,Equipment and Materials,22-Jan-17,5675237075,Amazon UK Marketplace,5942,Other consumables,52.42,0,52.42
Children and Young Peoples Services,Childrens Services,85341,High Etherley Satelite Home,Supplies and Services,324117,Provisions,22-Jan-17,5675237365,TESCO STORES 6329,5411,Catering costs - provisions,145.68,0,145.68
Regeneration and Local Services,Economic Development and Housing,30737,Durham Works Flexible Fund,Transport,235005,Public Transport,22-Jan-17,5675237375,ARRIVA PASSENGER S,7538,Contract tickets,25,0,25
Children and Young Peoples Services,Childrens Services,85333,Coxhoe Satelite Home,Supplies and Services,304259,Equipment and Materials,22-Jan-17,5675237529,B & Q 1343,5211,Equipment-purchase and rental,6.97,0,6.97
Children and Young Peoples Services,Childrens Services,85333,Coxhoe Satelite Home,Supplies and Services,324117,Provisions,22-Jan-17,5675237531,CO-OP GROUP 310016,5411,Catering costs - provisions,16.48,0,16.48
Children and Young Peoples Services,Childrens Services,85333,Coxhoe Satelite Home,Supplies and Services,324117,Provisions,22-Jan-17,5675237535,TESCO STORES 2371,5411,Catering costs - provisions,25.37,0,25.37
Resources,I.C.T. Services,65487,ICT Telephony Recharges,Supplies and Services,342033,Computers and Communications,22-Jan-17,5675237583,"Amazon Svcs Europe,SAR",5942,Computer hardware,22.95,0,22.95
Resources,I.C.T. Services,65487,ICT Telephony Recharges,Supplies and Services,342033,Computers and Communications,22-Jan-17,5675237585,Amazon UK Marketplace,5942,Computer hardware,20,0,20
Children and Young Peoples Services,Childrens Services,88001,Peterlee Locality,Supplies and Services,312011,Newspapers Books and Periodicals,22-Jan-17,5675237637,Amazon UK Marketplace,5942,Books-school library,32.48,0,32.48
Regeneration and Local Services,Culture & Sport,54399,Local Delivery-Libraries,Supplies and Services,304403,Equipment and Materials,22-Jan-17,5682113547,AMAZON UK RETAIL AMAZO,5999,Other consumables,7.99,0,7.99
Transformation and Partnerships,Policy & Communications Division,60270,Communications and Marketing,Third Party Payments,430100,Rendered by Private Contractors,23-Jan-17,5675237589,HOOTSUITE MEDIA INC.,7399,Payments to sub-contractors,0.16,0,0.16
Resources,Internal Audit and Insurance,65104,Internal Audit,Supplies and Services,372009,Subscriptions,23-Jan-17,5675237591,ISACA,8299,Subscriptions,4.03,0,4.03
Children and Young Peoples Services,Education,54640,Durham Learning Resources,Supplies and Services,332047,Printing Stationery and Gen Off Exps,23-Jan-17,5682113017,DAVENPORT PAPER CO LTD,5943,Stationery,36.75,6.13,30.62
Resources,Financial Services,65180,Collections,Supplies and Services,338045,Services,23-Jan-17,5682113019,HMCOURTS-SERVICE.G,9222,Legal expenses,"5,928.00",0,5928
Children and Young Peoples Services,Childrens Services,88093,Newton Aycliffe 0 - 5,Supplies and Services,324117,Provisions,23-Jan-17,5682113039,ASDA HOME SHOPPING,5411,Catering costs - provisions,27.91,0,27.91
Children and Young Peoples Services,Childrens Services,85342,9 Cedar Drive Aycliffe,Supplies and Services,308011,Furniture,23-Jan-17,5682113087,WWW.TAGTEAMWEAR.CO.UK,5714,Furniture repair and replacement,18.45,0,18.45
Regeneration and Local Services,Economic Development and Housing,30699,Business Growth and Innovation General,Third Party Payments,430100,Rendered by Private Contractors,23-Jan-17,5682113099,MAILCHIMP,7399,Payments to sub-contractors,60.51,0,60.51
Regeneration and Local Services,Economic Development and Housing,30737,Durham Works Flexible Fund,Transport,230031,Contract Hire,23-Jan-17,5682113135,ARRIVA PASSENGER S,7538,Pupils-transport to play fields etc,85.5,0,85.5
Regeneration and Local Services,Direct Services,21242,Catering - County Hall,Supplies and Services,324117,Provisions,23-Jan-17,5682113141,BRAMBLES FOODS LTD,5499,Catering costs - provisions,476.34,0,476.34
Regeneration and Local Services,Direct Services,21242,Catering - County Hall,Supplies and Services,324117,Provisions,23-Jan-17,5682113145,JR HOLLAND FOODSERVICE,5422,Catering costs - provisions,83.64,0,83.64
Regeneration and Local Services,Direct Services,21242,Catering - County Hall,Supplies and Services,324117,Provisions,23-Jan-17,5682113149,JR HOLLAND FOODSERVICE,5422,Catering costs - provisions,13.52,0,13.52
Regeneration and Local Services,Direct Services,21242,Catering - County Hall,Supplies and Services,324117,Provisions,23-Jan-17,5682113151,JR HOLLAND FOODSERVICE,5422,Catering costs - provisions,4.07,0,4.07
Regeneration and Local Services,Direct Services,21242,Catering - County Hall,Supplies and Services,324117,Provisions,23-Jan-17,5682113155,BRAKE BROS LTD,5811,Catering costs - provisions,107.68,0,107.68
Regeneration and Local Services,Direct Services,10367,C&G - South Grounds Maintenance,Supplies and Services,304999,Equipment and Materials,23-Jan-17,5682113231,NEW ROW FARM NURSERIES,5193,Misc equipment tools and materials,388.08,64.68,323.4
Children and Young Peoples Services,Childrens Services,88063,Bishop Auckland 0 - 5,Supplies and Services,324117,Provisions,23-Jan-17,5682113237,SAINSBURYS SACAT 2199,5411,Catering costs - provisions,14.69,0,14.69
Regeneration and Local Services,Economic Development and Housing,30749,Employability - Youth Contract,Supplies and Services,328041,Clothing Uniforms and Laundry,23-Jan-17,5682113241,NEW LOOK INTERNET,5621,Clothing uniforms and laundry,108.94,0,108.94
Children and Young Peoples Services,Education,71732,Dean Bank Childcare,Supplies and Services,324117,Provisions,23-Jan-17,5682113255,ASDA HOME SHOPPING,5411,Catering costs - provisions,53.77,0,53.77
Regeneration and Local Services,Economic Development and Housing,30737,Durham Works Flexible Fund,Transport,235057,Public Transport,23-Jan-17,5682113287,WWW.SIMPLYGO.COM,4131,Staff travelling,6.4,0,6.4
Regeneration and Local Services,Economic Development and Housing,30737,Durham Works Flexible Fund,Transport,235057,Public Transport,23-Jan-17,5682113289,WWW.SIMPLYGO.COM,4131,Staff travelling,5,0,5
Regeneration and Local Services,Culture & Sport,11060,Hardwick Park Catering,Supplies and Services,324117,Provisions,23-Jan-17,5682113311,JR HOLLAND FOODSERVICE,5422,Catering costs - provisions,12.65,0,12.65
Regeneration and Local Services,Culture & Sport,11060,Hardwick Park Catering,Supplies and Services,324117,Provisions,23-Jan-17,5682113315,BRAKE BROS LTD,5811,Catering costs - provisions,37.62,6.27,31.35
Regeneration and Local Services,Culture & Sport,11060,Hardwick Park Catering,Supplies and Services,324117,Provisions,23-Jan-17,5682113315 - 1,BRAKE BROS LTD,5811,Catering costs - provisions,98.24,,98.24
Regeneration and Local Services,Direct Services,21234,Catering - Locomotion,Supplies and Services,324117,Provisions,23-Jan-17,5682113333,BRAMBLES FOODS LTD,5499,Catering costs - provisions,163.11,0,163.11
Regeneration and Local Services,Direct Services,10525,Catering - Green Lane,Supplies and Services,324117,Provisions,23-Jan-17,5682113369,BRAMBLES FOODS LTD,5499,Catering costs - provisions,84.93,0,84.93
Regeneration and Local Services,Direct Services,10525,Catering - Green Lane,Supplies and Services,324117,Provisions,23-Jan-17,5682113371,BRAKE BROS LTD,5811,Catering costs - provisions,50.83,0,50.83
Children and Young Peoples Services,Childrens Services,88063,Bishop Auckland 0 - 5,Supplies and Services,324117,Provisions,23-Jan-17,5682113413,WM MORRISON 040,5411,Catering costs - provisions,22.38,0,22.38
Regeneration and Local Services,Economic Development and Housing,30749,Employability - Youth Contract,Supplies and Services,340001,Postages,23-Jan-17,5682113499,POST OFFICE COUNTER,9402,Postages,3.48,0,3.48
Resources,Resources Management,69000,Resources Management,Supplies and Services,324117,Provisions,23-Jan-17,5682113503,CO-OP GROUP 010503,5411,Catering costs - provisions,2,0,2
Resources,Legal & Democratic Services,67953,Coroner County Durham & Darlington,Supplies and Services,340001,Postages,23-Jan-17,5682113521,ROYAL MAIL ONLINE SHOP,9402,Postages,320,0,320
Resources,Legal & Democratic Services,67953,Coroner County Durham & Darlington,Supplies and Services,340001,Postages,23-Jan-17,5682113525,ROYAL MAIL ONLINE SHOP,9402,Postages,320,0,320
Children and Young Peoples Services,Childrens Services,88001,Peterlee Locality,Supplies and Services,312011,Newspapers Books and Periodicals,23-Jan-17,5682113599,Amazon UK Marketplace,5942,Books-school library,6.73,0,6.73
Regeneration and Local Services,Culture & Sport,54235,Bp Auckland Town Hall Cafe,Supplies and Services,324117,Provisions,23-Jan-17,5682113605,JR HOLLAND FOODSERVICE,5422,Catering costs - provisions,11.61,0,11.61
Regeneration and Local Services,Direct Services,21324,Catering - Meadowfield,Supplies and Services,324117,Provisions,23-Jan-17,5682113673,BRAMBLES FOODS LTD,5499,Catering costs - provisions,80.4,0,80.4
Children and Young Peoples Services,Childrens Services,85333,Coxhoe Satelite Home,Supplies and Services,324117,Provisions,23-Jan-17,5682113701,SAINSBURYS (2303),5411,Catering costs - provisions,93.3,0,93.3
Children and Young Peoples Services,Childrens Services,85333,Coxhoe Satelite Home,Supplies and Services,324117,Provisions,23-Jan-17,5682113705,SAINSBURYS (2303),5411,Catering costs - provisions,30.73,0,30.73
Regeneration and Local Services,Culture & Sport,11086,Positive Futures,Supplies and Services,324117,Provisions,23-Jan-17,5682113763,ASDA STORES,5411,Catering costs - provisions,13.35,0,13.35
Regeneration and Local Services,Culture & Sport,11086,Positive Futures,Supplies and Services,324117,Provisions,23-Jan-17,5682113765,W M MORRISONS,5411,Catering costs - provisions,3.55,0,3.55
Regeneration and Local Services,Economic Development and Housing,30737,Durham Works Flexible Fund,Supplies and Services,324117,Provisions,23-Jan-17,5682113807,ONE STOP 2969,5411,Catering costs - provisions,27.5,0,27.5
Regeneration and Local Services,Direct Services,21235,Catering - Wharton Park,Supplies and Services,324117,Provisions,23-Jan-17,5682113819,BRAMBLES FOODS LTD,5499,Catering costs - provisions,53.24,0,53.24
Regeneration and Local Services,Direct Services,21235,Catering - Wharton Park,Supplies and Services,324117,Provisions,23-Jan-17,5682113825,JR HOLLAND FOODSERVICE,5422,Catering costs - provisions,38.54,0,38.54
Adult and Health Services,Planning & Service Strategy,54630,Comm Marketing and Information,Supplies and Services,336005,Advertising,23-Jan-17,5682113829,FACEBK UT4JBBSSS2,7311,Advertising other than for staff,331.68,0,331.68
Adult and Health Services,Planning & Service Strategy,54630,Comm Marketing and Information,Supplies and Services,336005,Advertising,23-Jan-17,5682113833,FACEBK WT4JBBSSS2,7311,Advertising other than for staff,68.36,0,68.36
Regeneration and Local Services,Culture & Sport,10605,Woodhouse Close Leisure Complex,Supplies and Services,324117,Provisions,23-Jan-17,5682113841,JR HOLLAND FOODSERVICE,5422,Catering costs - provisions,24.35,0,24.35
Regeneration and Local Services,Culture & Sport,10605,Woodhouse Close Leisure Complex,Supplies and Services,324117,Provisions,23-Jan-17,5682113843,BRAKE BROS LTD,5811,Catering costs - provisions,70.47,0,70.47
Resources,Financial Services,65178,Awards,Supplies and Services,352001,Conference Expenses,23-Jan-17,5682113847,WWW.IRRV.ORG.UK,2741,Conferencesseminars fees etc,936,0,936
Resources,Financial Services,65178,Awards,Supplies and Services,372009,Subscriptions,23-Jan-17,5682113849,IRRV,8999,Subscriptions,"1,314.00",219,1095
Resources,Financial Services,65166,Finance - Post Entry Training,Employees,40149,Recruitment Instruction and Training,23-Jan-17,5682113851,WWW.CIPS.ORG,8699,Training-all costs,187.68,0,187.68
Regeneration and Local Services,Economic Development and Housing,30749,Employability - Youth Contract,Supplies and Services,324117,Provisions,23-Jan-17,5682113879,ONE STOP 2969,5411,Catering costs - provisions,92,0,92
Regeneration and Local Services,Economic Development and Housing,31500,Housing Solutions - Core Team,Employees,40149,Recruitment Instruction and Training,23-Jan-17,5685353449,PREMIER INN,3811,Training-all costs,75,12.5,62.5
Regeneration and Local Services,Economic Development and Housing,30699,Business Growth and Innovation General,Supplies and Services,342033,Computers and Communications,23-Jan-17,5685353503,FONTS.COM,7372,Computer hardware,9.6,1.6,8
Regeneration and Local Services,Economic Development and Housing,30699,Business Growth and Innovation General,Third Party Payments,430100,Rendered by Private Contractors,24-Jan-17,5682113103,MAILCHIMP,7399,Payments to sub-contractors,1.66,0,1.66
Children and Young Peoples Services,Education,71801,Selby Cottage Childcare Centre,Supplies and Services,304259,Equipment and Materials,24-Jan-17,5685353413,WILKO RETAIL LIMIT,5722,Equipment-purchase and rental,110.1,0,110.1
Children and Young Peoples Services,Education,71801,Selby Cottage Childcare Centre,Supplies and Services,324117,Provisions,24-Jan-17,5685353421,ASDA STORES LTD 4313,5411,Catering costs - provisions,23.05,0,23.05
Adult and Health Services,EnvironmentHealth & Consumer Protection,10934,Works in Default Holding Code,Income,720130,Fees and Charges,24-Jan-17,5685353431,COUNTY COURT,9222,Fees-legal,110,0,110
Resources,Financial Services,65180,Collections,Supplies and Services,338045,Services,24-Jan-17,5685353433,HMCOURT-SERVICES.G,9222,Legal expenses,110,0,110
Children and Young Peoples Services,Childrens Services,88093,Newton Aycliffe 0 - 5,Supplies and Services,304245,Equipment and Materials,24-Jan-17,5685353437,WILKO RETAIL LIMIT,5722,Materials,5.5,0,5.5
Children and Young Peoples Services,Childrens Services,88093,Newton Aycliffe 0 - 5,Supplies and Services,304245,Equipment and Materials,24-Jan-17,5685353441,TESCO STORES 2916,5411,Materials,3,0,3
Resources,Corporate Finance,69822,E-Learning,Employees,40149,Recruitment Instruction and Training,24-Jan-17,5685353455,WWW.ILXGROUP.COM,8220,Training-all costs,168,0,168
Regeneration and Local Services,Direct Services,10383,C&G - South Street Cleansing,Supplies and Services,304221,Equipment and Materials,24-Jan-17,5685353469,AZTEC CHEMICALS LTD,5169,Direct materials,297.6,49.6,248
Children and Young Peoples Services,Childrens Services,85957,Secure Management,Supplies and Services,328041,Clothing Uniforms and Laundry,24-Jan-17,5685353477,M and M Direct Ltd,5941,Clothing uniforms and laundry,149.97,0,149.97
Children and Young Peoples Services,Childrens Services,85957,Secure Management,Supplies and Services,328041,Clothing Uniforms and Laundry,24-Jan-17,5685353479,ProDirectSelect,5941,Clothing uniforms and laundry,19.95,0,19.95
Children and Young Peoples Services,Childrens Services,85956,Lumley,Supplies and Services,384999,Miscellaneous Expenses,24-Jan-17,5685353483,ARGOS RETAIL GROUP,5310,Other expenses,116.91,0,116.91
Children and Young Peoples Services,Childrens Services,85957,Secure Management,Supplies and Services,328041,Clothing Uniforms and Laundry,24-Jan-17,5685353485,SCOTTS INTERNET,5941,Clothing uniforms and laundry,43.99,0,43.99
Children and Young Peoples Services,Childrens Services,85957,Secure Management,Supplies and Services,328041,Clothing Uniforms and Laundry,24-Jan-17,5685353489,gethelabel.com,5651,Clothing uniforms and laundry,25.94,0,25.94
Children and Young Peoples Services,Childrens Services,85957,Secure Management,Supplies and Services,304252,Equipment and Materials,24-Jan-17,5685353491,JAMES ARMSTRONG & CO L,7216,Equipment-repairsserviceinsurance,-499.87,0,-499.87
Regeneration and Local Services,Economic Development and Housing,30699,Business Growth and Innovation General,Supplies and Services,304999,Equipment and Materials,24-Jan-17,5685353499,LINKEDIN-243 5177256,5968,Misc equipment tools and materials,49.37,0,49.37
Regeneration and Local Services,Projects and Business services,22902,Waste Strategy,Supplies and Services,352001,Conference Expenses,24-Jan-17,5685353533,WWW.LETSRECYCLE.COM,7311,Conferencesseminars fees etc,156,26,130
Regeneration and Local Services,Projects and Business services,22902,Waste Strategy,Supplies and Services,352001,Conference Expenses,24-Jan-17,5685353533 - 1,WWW.LETSRECYCLE.COM,7311,Conferencesseminars fees etc,4.43,,4.43
Regeneration and Local Services,Direct Services,21242,Catering - County Hall,Supplies and Services,324117,Provisions,24-Jan-17,5685353557,FREEMAN CATERING BUTCH,5422,Catering costs - provisions,106.49,0,106.49
Regeneration and Local Services,Direct Services,21242,Catering - County Hall,Supplies and Services,324117,Provisions,24-Jan-17,5685353559,JR HOLLAND FOODSERVICE,5422,Catering costs - provisions,42.85,0,42.85
Regeneration and Local Services,Direct Services,21242,Catering - County Hall,Supplies and Services,324117,Provisions,24-Jan-17,5685353565,JR HOLLAND FOODSERVICE,5422,Catering costs - provisions,6.58,0,6.58
Children and Young Peoples Services,Education,70169,Durham SSP,Supplies and Services,384199,Miscellaneous Expenses,24-Jan-17,5685353573,COMPANIES HOUSE,9399,Other hired and contracted services,13,0,13
